﻿Department family,Entity,Date of payment,Expense type,Expense area,Supplier,Transaction number,Amount in Sterling,Supplier VAT Registration Number
Department of Health,Guys and St Thomas NHS Foundation Trust,27/05/2021,(81400) Medical Surgical Supplies & Equipment,(id:41900) TAP,MRI DEVICES LTD,id:14110441    ,    10400.00
Department of Health,Guys and St Thomas NHS Foundation Trust,21/05/2021,(82600) Uniforms & Clothing,(id:41905) TAP,NHS SUPPLY CHAIN (MAIDSTONE),id:13964496    ,  22.32
Department of Health,Guys and St Thomas NHS Foundation Trust,21/05/2021,(83400) Office Equipment,(id:41905) TAP,NHS SUPPLY CHAIN (MAIDSTONE),id:14041934  ,   2.13
Department of Health,Guys and St Thomas NHS Foundation Trust,27/05/2021,(81200) Medical Surgical Supplies & Equipment,(id:41907) TAP,AMBU LIMITED,id:14017594  ,1908.00
Department of Health,Guys and St Thomas NHS Foundation Trust,21/05/2021,(81230) Medical Surgical Supplies & Equipment,(id:41907) TAP,NHS SUPPLY CHAIN (MAIDSTONE),id:14006357 , 970.33
Department of Health,Guys and St Thomas NHS Foundation Trust,21/05/2021,(81230) Medical Surgical Supplies & Equipment,(id:41907) TAP,NHS SUPPLY CHAIN (MAIDSTONE),id:14041934 , 632.40
Department of Health,Guys and St Thomas NHS Foundation Trust,21/05/2021,(81100) Dressings,(id:850419) TAP,NHS SUPPLY CHAIN (MAIDSTONE),id:14006357   , 101.88
Department of Health,Guys and St Thomas NHS Foundation Trust,21/05/2021,(82000) Provisions & Kitchens,(id:41918) TAP,NHS SUPPLY CHAIN (MAIDSTONE),id:14041934  , 147.04
Department of Health,Guys and St Thomas NHS Foundation Trust,21/05/2021,(83400) Office Equipment,(id:41918) TAP,NHS SUPPLY CHAIN (MAIDSTONE),id:14006357  , 235.11
Department of Health,Guys and St Thomas NHS Foundation Trust,21/05/2021,(81255) Medical Surgical Supplies & Equipment,(id:41918) TAP,NHS SUPPLY CHAIN (MAIDSTONE),id:14006357 ,   4.06
Department of Health,Guys and St Thomas NHS Foundation Trust,21/05/2021,(82600) Uniforms & Clothing,(id:41916) TAP,NHS SUPPLY CHAIN (MAIDSTONE),id:14041934    ,  18.72
Department of Health,Guys and St Thomas NHS Foundation Trust,21/05/2021,(81100) Dressings,(id:41916) TAP,NHS SUPPLY CHAIN (MAIDSTONE),id:14041934    , 247.18
Department of Health,Guys and St Thomas NHS Foundation Trust,21/05/2021,(81100) Dressings,(id:41916) TAP,NHS SUPPLY CHAIN (MAIDSTONE),id:14006357    , 476.90
Department of Health,Guys and St Thomas NHS Foundation Trust,21/05/2021,(81200) Medical Surgical Supplies & Equipment,(id:41916) TAP,NHS SUPPLY CHAIN (MAIDSTONE),id:14006357 , 905.52
Department of Health,Guys and St Thomas NHS Foundation Trust,21/05/2021,(82700) Uniforms & Clothing,(id:41923) TAP,NHS SUPPLY CHAIN (MAIDSTONE),id:14006357    ,  71.06
Department of Health,Guys and St Thomas NHS Foundation Trust,21/05/2021,(81100) Dressings,(id:41883) TAP,NHS SUPPLY CHAIN (MAIDSTONE),id:14006357    , 793.82
Department of Health,Guys and St Thomas NHS Foundation Trust,07/05/2021,(81200) Medical Surgical Supplies & Equipment,(id:41883) TAP,JOHNSON & JOHNSON MEDICAL LTD,id:14009161,  65.20
Department of Health,Guys and St Thomas NHS Foundation Trust,07/05/2021,(81200) Medical Surgical Supplies & Equipment,(id:41883) TAP,WAGSTAFF INTERIORS GROUP,id:14001754,  78.00
Department of Health,Guys and St Thomas NHS Foundation Trust,21/05/2021,(81200) Medical Surgical Supplies & Equipment,(id:41883) TAP,JOHNSON & JOHNSON MEDICAL LTD,id:14047226,  90.41
Department of Health,Guys and St Thomas NHS Foundation Trust,27/05/2021,(81200) Medical Surgical Supplies & Equipment,(id:41883) TAP,JOHNSON & JOHNSON MEDICAL LTD,id:14081546,  62.39
Department of Health,Guys and St Thomas NHS Foundation Trust,21/05/2021,(81255) Medical Surgical Supplies & Equipment,(id:41883) TAP,NHS SUPPLY CHAIN (MAIDSTONE),id:13964496 ,  18.48
Department of Health,Guys and St Thomas NHS Foundation Trust,07/05/2021,(81200) Medical Surgical Supplies & Equipment,(id:41913) TAP,SCC PLC)SPECIALIST COMPUTER CENTRES,id:14037954    , 270.00
Department of Health,Guys and St Thomas NHS Foundation Trust,21/05/2021,(81200) Medical Surgical Supplies & Equipment,(id:41913) TAP,NHS SUPPLY CHAIN (MAIDSTONE),id:14006357 ,  34.08
Department of Health,Guys and St Thomas NHS Foundation Trust,21/05/2021,(81700) Lab Equipment Purchase,(id:41913) TAP,NHS SUPPLY CHAIN (MAIDSTONE),id:13964496 ,   3.28
Department of Health,Guys and St Thomas NHS Foundation Trust,21/05/2021,(82800) Bedding & Linen,(id:41897) TAP,NHS SUPPLY CHAIN (MAIDSTONE),id:14041934   , 163.88
Department of Health,Guys and St Thomas NHS Foundation Trust,21/05/2021,(82800) Bedding & Linen,(id:41897) TAP,NHS SUPPLY CHAIN (MAIDSTONE),id:13964496   ,  70.24
Department of Health,Guys and St Thomas NHS Foundation Trust,21/05/2021,(82700) Uniforms & Clothing,(id:41897) TAP,NHS SUPPLY CHAIN (MAIDSTONE),id:14006357    ,  43.68
Department of Health,Guys and St Thomas NHS Foundation Trust,14/05/2021,(81200) Medical Surgical Supplies & Equipment,(id:41897) TAP,JOHNSON & JOHNSON MEDICAL LTD,id:14019130, 931.04
Department of Health,Guys and St Thomas NHS Foundation Trust,21/05/2021,(81200) Medical Surgical Supplies & Equipment,(id:41897) TAP,JOHNSON & JOHNSON MEDICAL LTD,id:14055765, 145.09
Department of Health,Guys and St Thomas NHS Foundation Trust,21/05/2021,(81100) Dressings,(id:41897) TAP,NHS SUPPLY CHAIN (MAIDSTONE),id:13964496    ,  60.12
Department of Health,Guys and St Thomas NHS Foundation Trust,21/05/2021,(81100) Dressings,(id:41897) TAP,NHS SUPPLY CHAIN (MAIDSTONE),id:14041934    , 805.66
Department of Health,Guys and St Thomas NHS Foundation Trust,21/05/2021,(81225) Medical Surgical Supplies & Equipment,(id:41897) TAP,NHS SUPPLY CHAIN (MAIDSTONE),id:13964496 ,  41.31
Department of Health,Guys and St Thomas NHS Foundation Trust,21/05/2021,(81100) Dressings,(id:41894) TAP,NHS SUPPLY CHAIN (MAIDSTONE),id:14041934    ,  52.01
Department of Health,Guys and St Thomas NHS Foundation Trust,21/05/2021,(82700) Uniforms & Clothing,(id:41894) TAP,NHS SUPPLY CHAIN (MAIDSTONE),id:14041934    ,  52.97
Department of Health,Guys and St Thomas NHS Foundation Trust,21/05/2021,(82000) Provisions & Kitchens,(id:41958) Gastrointestinal Medicine & Surgery,NHS SUPPLY CHAIN (MAIDSTONE),id:14006357, 289.52
Department of Health,Guys and St Thomas NHS Foundation Trust,21/05/2021,(50552) Qualified Nursing Staff,(id:41958) Gastrointestinal Medicine & Surgery,CONTINENTAL NURSE LTD,id:14114502,2119.73
Department of Health,Guys and St Thomas NHS Foundation Trust,14/05/2021,(50552) Qualified Nursing Staff,(id:41958) Gastrointestinal Medicine & Surgery,CARE PROVIDERS HEALTHCARE,id:14095607 , 383.81
Department of Health,Guys and St Thomas NHS Foundation Trust,21/05/2021,(81700) Lab Equipment Purchase,(id:41958) Gastrointestinal Medicine & Surgery,NHS SUPPLY CHAIN (MAIDSTONE),id:14006357    ,  93.57
Department of Health,Guys and St Thomas NHS Foundation Trust,21/05/2021,(82700) Uniforms & Clothing,(id:41954) Gastrointestinal Medicine & Surgery,NHS SUPPLY CHAIN (MAIDSTONE),id:14006357  ,  31.68
Department of Health,Guys and St Thomas NHS Foundation Trust,21/05/2021,(82700) Uniforms & Clothing,(id:41954) Gastrointestinal Medicine & Surgery,NHS SUPPLY CHAIN (MAIDSTONE),id:14041934  ,  52.97
Department of Health,Guys and St Thomas NHS Foundation Trust,21/05/2021,(81200) Medical Surgical Supplies & Equipment,(id:41954) Gastrointestinal Medicine & Surgery,NHS SUPPLY CHAIN (MAIDSTONE),id:14006357    , 894.60
Department of Health,Guys and St Thomas NHS Foundation Trust,21/05/2021,(81000) Surgical Appliances,(id:41955) Gastrointestinal Medicine & Surgery,TALAR MADE ORTHOTICS LTD,id:14116677 ,  93.00
Department of Health,Guys and St Thomas NHS Foundation Trust,27/05/2021,(81000) Surgical Appliances,(id:41956) Gastrointestinal Medicine & Surgery,TALAR MADE ORTHOTICS LTD,id:14118434 ,  37.90
Department of Health,Guys and St Thomas NHS Foundation Trust,14/05/2021,(81100) Dressings,(id:41949) Gastrointestinal Medicine & Surgery,JOHNSON & JOHNSON MEDICAL LTD,id:14030076 , 678.78
Department of Health,Guys and St Thomas NHS Foundation Trust,21/05/2021,(81100) Dressings,(id:41949) Gastrointestinal Medicine & Surgery,NHS SUPPLY CHAIN (MAIDSTONE),id:14006357  ,1390.86
Department of Health,Guys and St Thomas NHS Foundation Trust,07/05/2021,(81200) Medical Surgical Supplies & Equipment,(id:41949) Gastrointestinal Medicine & Surgery,JOHNSON & JOHNSON MEDICAL LTD,id:14009163   ,  46.92
Department of Health,Guys and St Thomas NHS Foundation Trust,14/05/2021,(81200) Medical Surgical Supplies & Equipment,(id:41949) Gastrointestinal Medicine & Surgery,MEDTRONIC LTD,id:14030107    , 545.83
Department of Health,Guys and St Thomas NHS Foundation Trust,14/05/2021,(81200) Medical Surgical Supplies & Equipment,(id:41949) Gastrointestinal Medicine & Surgery,SQUADRON MEDICAL LTD,id:13347370  , 744.80
Department of Health,Guys and St Thomas NHS Foundation Trust,14/05/2021,(81200) Medical Surgical Supplies & Equipment,(id:41949) Gastrointestinal Medicine & Surgery,JOHNSON & JOHNSON MEDICAL LTD,id:14019135   ,  12.24
Department of Health,Guys and St Thomas NHS Foundation Trust,21/05/2021,(81200) Medical Surgical Supplies & Equipment,(id:41949) Gastrointestinal Medicine & Surgery,BARD LTD,id:14047295    , 718.84
Department of Health,Guys and St Thomas NHS Foundation Trust,27/05/2021,(81200) Medical Surgical Supplies & Equipment,(id:41949) Gastrointestinal Medicine & Surgery,JOHNSON & JOHNSON MEDICAL LTD,id:14064925   , 843.19
Department of Health,Guys and St Thomas NHS Foundation Trust,27/05/2021,(81200) Medical Surgical Supplies & Equipment,(id:41949) Gastrointestinal Medicine & Surgery,JOHNSON & JOHNSON MEDICAL LTD,id:14064947   , 821.52
Department of Health,Guys and St Thomas NHS Foundation Trust,21/05/2021,(81200) Medical Surgical Supplies & Equipment,(id:41949) Gastrointestinal Medicine & Surgery,JOHNSON & JOHNSON MEDICAL LTD,id:14047253   , 696.90
Department of Health,Guys and St Thomas NHS Foundation Trust,21/05/2021,(81200) Medical Surgical Supplies & Equipment,(id:41949) Gastrointestinal Medicine & Surgery,JOHNSON & JOHNSON MEDICAL LTD,id:14059262   ,1308.96
Department of Health,Guys and St Thomas NHS Foundation Trust,21/05/2021,(81280) Medical Surgical Supplies & Equipment,(id:41949) Gastrointestinal Medicine & Surgery,NHS SUPPLY CHAIN (MAIDSTONE),id:14041934    ,1620.00
Department of Health,Guys and St Thomas NHS Foundation Trust,21/05/2021,(81200) Medical Surgical Supplies & Equipment,(id:2367419) Gastrointestinal Medicine & Surgery,NHS SUPPLY CHAIN (MAIDSTONE),id:14006357  , 865.19
Department of Health,Guys and St Thomas NHS Foundation Trust,21/05/2021,(81100) Dressings,(id:2367419) Gastrointestinal Medicine & Surgery,NHS SUPPLY CHAIN (MAIDSTONE),id:13964496,   1.52
Department of Health,Guys and St Thomas NHS Foundation Trust,21/05/2021,(82800) Bedding & Linen,(id:41917) Gastrointestinal Medicine & Surgery,NHS SUPPLY CHAIN (MAIDSTONE),id:14041934 , 440.89
Department of Health,Guys and St Thomas NHS Foundation Trust,07/05/2021,(81200) Medical Surgical Supplies & Equipment,(id:41917) Gastrointestinal Medicine & Surgery,BOSTON SCIENTIFIC LTD,id:14009382 ,2120.40
Department of Health,Guys and St Thomas NHS Foundation Trust,14/05/2021,(81200) Medical Surgical Supplies & Equipment,(id:41917) Gastrointestinal Medicine & Surgery,BOSTON SCIENTIFIC LTD,id:14019318 , 910.68
Department of Health,Guys and St Thomas NHS Foundation Trust,21/05/2021,(81200) Medical Surgical Supplies & Equipment,(id:41917) Gastrointestinal Medicine & Surgery,NHS SUPPLY CHAIN (MAIDSTONE),id:14041934    ,7020.14
Department of Health,Guys and St Thomas NHS Foundation Trust,21/05/2021,(81200) Medical Surgical Supplies & Equipment,(id:41917) Gastrointestinal Medicine & Surgery,NHS SUPPLY CHAIN (MAIDSTONE),id:14006357    ,7117.10
Department of Health,Guys and St Thomas NHS Foundation Trust,27/05/2021,(81200) Medical Surgical Supplies & Equipment,(id:41917) Gastrointestinal Medicine & Surgery,COOK UK LTD,id:14081589 , 780.00
Department of Health,Guys and St Thomas NHS Foundation Trust,27/05/2021,(81200) Medical Surgical Supplies & Equipment,(id:41917) Gastrointestinal Medicine & Surgery,MEDTRONIC LTD,id:14069844    ,3870.00
Department of Health,Guys and St Thomas NHS Foundation Trust,21/05/2021,(81100) Dressings,(id:41917) Gastrointestinal Medicine & Surgery,NHS SUPPLY CHAIN (MAIDSTONE),id:13964496  ,  69.60
Department of Health,Guys and St Thomas NHS Foundation Trust,21/05/2021,(81400) Medical Surgical Supplies & Equipment,(id:41917) Gastrointestinal Medicine & Surgery,NHS SUPPLY CHAIN (MAIDSTONE),id:14006357    ,1817.48
Department of Health,Guys and St Thomas NHS Foundation Trust,14/05/2021,(86300) Healthcare from non-NHS bodies,(id:41917) Gastrointestinal Medicine & Surgery,18 WEEK SUPPORT LIMITED,id:14053714 ,    11900.00
Department of Health,Guys and St Thomas NHS Foundation Trust,21/05/2021,(86300) Healthcare from non-NHS bodies,(id:41917) Gastrointestinal Medicine & Surgery,18 WEEK SUPPORT LIMITED,id:14022514 ,    23800.00
Department of Health,Guys and St Thomas NHS Foundation Trust,14/05/2021,(89570) Other – Other Operating Expenditure,(id:41917) Gastrointestinal Medicine & Surgery,18 WEEK SUPPORT LIMITED,id:14053735,2504.95
Department of Health,Guys and St Thomas NHS Foundation Trust,14/05/2021,(89570) Other – Other Operating Expenditure,(id:41917) Gastrointestinal Medicine & Surgery,18 WEEK SUPPORT LIMITED,id:14022555,    23800.00
Department of Health,Guys and St Thomas NHS Foundation Trust,14/05/2021,(89570) Other – Other Operating Expenditure,(id:41917) Gastrointestinal Medicine & Surgery,18 WEEK SUPPORT LIMITED,id:14022474,    17850.00
Department of Health,Guys and St Thomas NHS Foundation Trust,21/05/2021,(83400) Office Equipment,(id:41942) Gastrointestinal Medicine & Surgery,NHS SUPPLY CHAIN (MAIDSTONE),id:14006357,  62.46
Department of Health,Guys and St Thomas NHS Foundation Trust,21/05/2021,(82000) Provisions & Kitchens,(id:41942) Gastrointestinal Medicine & Surgery,NHS SUPPLY CHAIN (MAIDSTONE),id:14006357,  15.60
Department of Health,Guys and St Thomas NHS Foundation Trust,07/05/2021,(81900) Lab Equipment Purchase,(id:111406) Pathology,VIAPATH ANALYTICS LLP,id:14017976 ,    19046.96
Department of Health,Guys and St Thomas NHS Foundation Trust,07/05/2021,(81900) Lab Equipment Purchase,(id:111406) Pathology,VIAPATH SERVICES LLP,id:13979175  ,    27544.00
Department of Health,Guys and St Thomas NHS Foundation Trust,07/05/2021,(81900) Lab Equipment Purchase,(id:111406) Pathology,VIAPATH ANALYTICS LLP,id:13979197 ,    52179.00
Department of Health,Guys and St Thomas NHS Foundation Trust,21/05/2021,(81900) Lab Equipment Purchase,(id:111406) Pathology,VIAPATH SERVICES LLP,id:14076877  ,  3134989.00
Department of Health,Guys and St Thomas NHS Foundation Trust,27/05/2021,(89600) Non-Healthcare from other NHS bodies,(id:42134) Pathology,NHS BLOOD AND TRANSPLANT,id:14115916,   207668.39
Department of Health,Guys and St Thomas NHS Foundation Trust,14/05/2021,(89600) Non-Healthcare from other NHS bodies,(id:42134) Pathology,NHS BLOOD AND TRANSPLANT,id:14001415,   207668.39
Department of Health,Guys and St Thomas NHS Foundation Trust,21/05/2021,(89600) Non-Healthcare from other NHS bodies,(id:42134) Pathology,NHS BLOOD AND TRANSPLANT,id:14115955,7829.67
Department of Health,Guys and St Thomas NHS Foundation Trust,21/05/2021,(89270) Establishment,(id:3821419) Cancer Strategy,WHITE BICYCLE LTD,id:14054297  ,3500.00
Department of Health,Guys and St Thomas NHS Foundation Trust,14/05/2021,(81100) Dressings,(id:2625419) Transplant Renal and Urology,JOHNSON & JOHNSON MEDICAL LTD,id:14036543 , 556.60
Department of Health,Guys and St Thomas NHS Foundation Trust,21/05/2021,(81700) Lab Equipment Purchase,(id:42419) Transplant Renal and Urology,NHS SUPPLY CHAIN (MAIDSTONE),id:14006357 ,  72.47
Department of Health,Guys and St Thomas NHS Foundation Trust,07/05/2021,(81200) Medical Surgical Supplies & Equipment,(id:42439) Transplant Renal and Urology,INTUITIVE SURGICAL LTD,id:14045394  ,    26748.00
Department of Health,Guys and St Thomas NHS Foundation Trust,21/05/2021,(81100) Dressings,(id:42449) Transplant Renal and Urology,NHS SUPPLY CHAIN (MAIDSTONE),id:14006357    ,   1.39
Department of Health,Guys and St Thomas NHS Foundation Trust,21/05/2021,(81100) Dressings,(id:42449) Transplant Renal and Urology,NHS SUPPLY CHAIN (MAIDSTONE),id:14041934    ,  10.80
Department of Health,Guys and St Thomas NHS Foundation Trust,14/05/2021,(81200) Medical Surgical Supplies & Equipment,(id:42450) Transplant Renal and Urology,STRYKER UK LTD,id:14067374, 613.87
Department of Health,Guys and St Thomas NHS Foundation Trust,27/05/2021,(81200) Medical Surgical Supplies & Equipment,(id:42450) Transplant Renal and Urology,STRYKER UK LTD,id:14118054, 613.87
Department of Health,Guys and St Thomas NHS Foundation Trust,21/05/2021,(81100) Dressings,(id:42442) Transplant Renal and Urology,NHS SUPPLY CHAIN (MAIDSTONE),id:14006357    , 220.58
Department of Health,Guys and St Thomas NHS Foundation Trust,21/05/2021,(81700) Lab Equipment Purchase,(id:42442) Transplant Renal and Urology,NHS SUPPLY CHAIN (MAIDSTONE),id:14006357 ,  75.91
Department of Health,Guys and St Thomas NHS Foundation Trust,21/05/2021,(81100) Dressings,(id:42443) Transplant Renal and Urology,NHS SUPPLY CHAIN (MAIDSTONE),id:13964496    , 186.72
Department of Health,Guys and St Thomas NHS Foundation Trust,21/05/2021,(81200) Medical Surgical Supplies & Equipment,(id:42443) Transplant Renal and Urology,NHS SUPPLY CHAIN (MAIDSTONE),id:14041934 , 863.58
Department of Health,Guys and St Thomas NHS Foundation Trust,14/05/2021,(81200) Medical Surgical Supplies & Equipment,(id:42444) Transplant Renal and Urology,BOSTON SCIENTIFIC LTD,id:14024766   ,1378.09
Department of Health,Guys and St Thomas NHS Foundation Trust,21/05/2021,(81100) Dressings,(id:42446) Transplant Renal and Urology,JOHNSON & JOHNSON MEDICAL LTD,id:14047244   , 556.60
Department of Health,Guys and St Thomas NHS Foundation Trust,14/05/2021,(81200) Medical Surgical Supplies & Equipment,(id:42446) Transplant Renal and Urology,STRYKER UK LTD,id:14050470, 504.00
Department of Health,Guys and St Thomas NHS Foundation Trust,21/05/2021,(81200) Medical Surgical Supplies & Equipment,(id:42446) Transplant Renal and Urology,NHS SUPPLY CHAIN (MAIDSTONE),id:14041934 ,4511.95
Department of Health,Guys and St Thomas NHS Foundation Trust,07/05/2021,(81400) Medical Surgical Supplies & Equipment,(id:42446) Transplant Renal and Urology,INTUITIVE SURGICAL LTD,id:13970423  ,5700.00
Department of Health,Guys and St Thomas NHS Foundation Trust,14/05/2021,(81400) Medical Surgical Supplies & Equipment,(id:42446) Transplant Renal and Urology,ERBE MEDICAL UK LTD,id:14072234, 750.00
Department of Health,Guys and St Thomas NHS Foundation Trust,21/05/2021,(82000) Provisions & Kitchens,(id:42447) Transplant Renal and Urology,NHS SUPPLY CHAIN (MAIDSTONE),id:14041934  ,   3.14
Department of Health,Guys and St Thomas NHS Foundation Trust,27/05/2021,(83610) IT Costs,(id:42447) Transplant Renal and Urology,OFFICE DEPOT UK LTD,id:14081458    , 528.00
Department of Health,Guys and St Thomas NHS Foundation Trust,14/05/2021,(81400) Medical Surgical Supplies & Equipment,(id:42447) Transplant Renal and Urology,ERBE MEDICAL UK LTD,id:14072214, 500.00
Department of Health,Guys and St Thomas NHS Foundation Trust,21/05/2021,(81100) Dressings,(id:42447) Transplant Renal and Urology,NHS SUPPLY CHAIN (MAIDSTONE),id:14006357    , 113.43
Department of Health,Guys and St Thomas NHS Foundation Trust,07/05/2021,(81000) Surgical Appliances,(id:42447) Transplant Renal and Urology,TALAR MADE ORTHOTICS LTD,id:14064515   ,  25.66
Department of Health,Guys and St Thomas NHS Foundation Trust,21/05/2021,(82800) Bedding & Linen,(id:2653419) Transplant Renal and Urology,NHS SUPPLY CHAIN (MAIDSTONE),id:14041934 , 110.40
Department of Health,Guys and St Thomas NHS Foundation Trust,21/05/2021,(81200) Medical Surgical Supplies & Equipment,(id:2653419) Transplant Renal and Urology,NHS SUPPLY CHAIN (MAIDSTONE),id:14006357    , 241.32
Department of Health,Guys and St Thomas NHS Foundation Trust,07/05/2021,(81200) Medical Surgical Supplies & Equipment,(id:42420) Transplant Renal and Urology,BAXTER HEALTHCARE LTD,id:14005974   ,4920.48
Department of Health,Guys and St Thomas NHS Foundation Trust,27/05/2021,(81200) Medical Surgical Supplies & Equipment,(id:42420) Transplant Renal and Urology,BAXTER HEALTHCARE LTD,id:13907794   ,1731.26
Department of Health,Guys and St Thomas NHS Foundation Trust,21/05/2021,(81200) Medical Surgical Supplies & Equipment,(id:42420) Transplant Renal and Urology,NHS SUPPLY CHAIN (MAIDSTONE),id:13964496 ,2134.61
Department of Health,Guys and St Thomas NHS Foundation Trust,21/05/2021,(81200) Medical Surgical Supplies & Equipment,(id:42420) Transplant Renal and Urology,NHS SUPPLY CHAIN (MAIDSTONE),id:14041934 ,2193.73
Department of Health,Guys and St Thomas NHS Foundation Trust,21/05/2021,(82800) Bedding & Linen,(id:42420) Transplant Renal and Urology,NHS SUPPLY CHAIN (MAIDSTONE),id:14006357   , 636.40
Department of Health,Guys and St Thomas NHS Foundation Trust,21/05/2021,(82800) Bedding & Linen,(id:42420) Transplant Renal and Urology,NHS SUPPLY CHAIN (MAIDSTONE),id:13964496   , 333.98
Department of Health,Guys and St Thomas NHS Foundation Trust,21/05/2021,(81200) Medical Surgical Supplies & Equipment,(id:3671419) Transplant Renal and Urology,NHS SUPPLY CHAIN (MAIDSTONE),id:14006357    ,1348.33
Department of Health,Guys and St Thomas NHS Foundation Trust,21/05/2021,(83400) Office Equipment,(id:42435) Transplant Renal and Urology,NHS SUPPLY CHAIN (MAIDSTONE),id:14006357  ,  56.10
Department of Health,Guys and St Thomas NHS Foundation Trust,07/05/2021,(81200) Medical Surgical Supplies & Equipment,(id:42433) Transplant Renal and Urology,JOHNSON & JOHNSON MEDICAL LTD,id:14009156,1912.25
Department of Health,Guys and St Thomas NHS Foundation Trust,07/05/2021,(89640) Non-Healthcare from NHS Trusts,(id:42433) Transplant Renal and Urology,MAIDSTONE AND TUNBRIDGE WELLS NHS TRUST,id:14023874  , 516.69
Department of Health,Guys and St Thomas NHS Foundation Trust,21/05/2021,(81100) Dressings,(id:42428) Transplant Renal and Urology,NHS SUPPLY CHAIN (MAIDSTONE),id:14006357    ,  14.69
Department of Health,Guys and St Thomas NHS Foundation Trust,21/05/2021,(81700) Lab Equipment Purchase,(id:42428) Transplant Renal and Urology,NHS SUPPLY CHAIN (MAIDSTONE),id:14041934 , 247.90
Department of Health,Guys and St Thomas NHS Foundation Trust,07/05/2021,(81200) Medical Surgical Supplies & Equipment,(id:42422) Transplant Renal and Urology,BAXTER HEALTHCARE LTD,id:14006354   ,1077.04
Department of Health,Guys and St Thomas NHS Foundation Trust,21/05/2021,(81200) Medical Surgical Supplies & Equipment,(id:42422) Transplant Renal and Urology,NXSTAGE MEDICAL UK LIMITED,id:13730996   ,1636.80
Department of Health,Guys and St Thomas NHS Foundation Trust,21/05/2021,(81200) Medical Surgical Supplies & Equipment,(id:42422) Transplant Renal and Urology,NXSTAGE MEDICAL UK LIMITED,id:14046934   ,2291.52
Department of Health,Guys and St Thomas NHS Foundation Trust,27/05/2021,(83400) Office Equipment,(id:42422) Transplant Renal and Urology,BAXTER HEALTHCARE LTD,id:14061616    , 703.68
Department of Health,Guys and St Thomas NHS Foundation Trust,07/05/2021,(81200) Medical Surgical Supplies & Equipment,(id:42421) Transplant Renal and Urology,BAXTER HEALTHCARE LTD,id:13945975   , 640.69
Department of Health,Guys and St Thomas NHS Foundation Trust,21/05/2021,(81700) Lab Equipment Purchase,(id:42421) Transplant Renal and Urology,NHS SUPPLY CHAIN (MAIDSTONE),id:14006357 ,1280.52
Department of Health,Guys and St Thomas NHS Foundation Trust,21/05/2021,(81200) Medical Surgical Supplies & Equipment,(id:42432) Transplant Renal and Urology,NHS SUPPLY CHAIN (MAIDSTONE),id:14041934 ,  53.40
Department of Health,Guys and St Thomas NHS Foundation Trust,07/05/2021,(81200) Medical Surgical Supplies & Equipment,(id:42427) Transplant Renal and Urology,KIMAL PLC,id:13927979,2460.00
Department of Health,Guys and St Thomas NHS Foundation Trust,07/05/2021,(81200) Medical Surgical Supplies & Equipment,(id:42425) Transplant Renal and Urology,KIMAL RENAL CARE LTD,id:14045717    ,1269.00
Department of Health,Guys and St Thomas NHS Foundation Trust,27/05/2021,(50552) Qualified Nursing Staff,(id:42482) Surgery,MSI GROUP LTD,id:14138703 , 331.39
Department of Health,Guys and St Thomas NHS Foundation Trust,21/05/2021,(81200) Medical Surgical Supplies & Equipment,(id:42483) Surgery,NHS SUPPLY CHAIN (MAIDSTONE),id:14006357  ,  25.58
Department of Health,Guys and St Thomas NHS Foundation Trust,21/05/2021,(81100) Dressings,(id:42483) Surgery,NHS SUPPLY CHAIN (MAIDSTONE),id:14041934, 565.32
Department of Health,Guys and St Thomas NHS Foundation Trust,07/05/2021,(81200) Medical Surgical Supplies & Equipment,(id:42484) Surgery,MEDARTIS LTD,id:13991174   ,2333.48
Department of Health,Guys and St Thomas NHS Foundation Trust,21/05/2021,(81200) Medical Surgical Supplies & Equipment,(id:42484) Surgery,NHS SUPPLY CHAIN (MAIDSTONE),id:13964496  ,1821.93
Department of Health,Guys and St Thomas NHS Foundation Trust,21/05/2021,(81200) Medical Surgical Supplies & Equipment,(id:42484) Surgery,NHS SUPPLY CHAIN (MAIDSTONE),id:14041934  ,  54.58
Department of Health,Guys and St Thomas NHS Foundation Trust,21/05/2021,(81200) Medical Surgical Supplies & Equipment,(id:42484) Surgery,JOHNSON & JOHNSON MEDICAL LTD,id:14047227 , 105.41
Department of Health,Guys and St Thomas NHS Foundation Trust,27/05/2021,(81200) Medical Surgical Supplies & Equipment,(id:42484) Surgery,Q MEDICAL TECHNOLOGIES LTD,id:13502106    ,9826.80
Department of Health,Guys and St Thomas NHS Foundation Trust,21/05/2021,(82800) Bedding & Linen,(id:42484) Surgery,NHS SUPPLY CHAIN (MAIDSTONE),id:14006357    ,  88.80
Department of Health,Guys and St Thomas NHS Foundation Trust,21/05/2021,(84656) Establishment,(id:42485) Surgery,DICT8 LIMITED,id:14065554 , 504.60
Department of Health,Guys and St Thomas NHS Foundation Trust,21/05/2021,(81700) Lab Equipment Purchase,(id:42485) Surgery,NHS SUPPLY CHAIN (MAIDSTONE),id:14006357  ,  18.38
Department of Health,Guys and St Thomas NHS Foundation Trust,21/05/2021,(81000) Surgical Appliances,(id:42485) Surgery,TALAR MADE ORTHOTICS LTD,id:14116755    ,  46.50
Department of Health,Guys and St Thomas NHS Foundation Trust,21/05/2021,(82000) Provisions & Kitchens,(id:42485) Surgery,NHS SUPPLY CHAIN (MAIDSTONE),id:14041934   ,  88.96
Department of Health,Guys and St Thomas NHS Foundation Trust,21/05/2021,(81200) Medical Surgical Supplies & Equipment,(id:42485) Surgery,NHS SUPPLY CHAIN (MAIDSTONE),id:14041934  , 666.58
Department of Health,Guys and St Thomas NHS Foundation Trust,21/05/2021,(81200) Medical Surgical Supplies & Equipment,(id:42485) Surgery,NHS SUPPLY CHAIN (MAIDSTONE),id:14006357  ,1113.38
Department of Health,Guys and St Thomas NHS Foundation Trust,21/05/2021,(83400) Office Equipment,(id:884419) Surgery,NHS SUPPLY CHAIN (MAIDSTONE),id:14041934  ,   2.92
Department of Health,Guys and St Thomas NHS Foundation Trust,21/05/2021,(81100) Dressings,(id:42463) Surgery,NHS SUPPLY CHAIN (MAIDSTONE),id:14006357,  46.25
Department of Health,Guys and St Thomas NHS Foundation Trust,21/05/2021,(81200) Medical Surgical Supplies & Equipment,(id:42464) Surgery,NHS SUPPLY CHAIN (MAIDSTONE),id:14041934  ,  11.29
Department of Health,Guys and St Thomas NHS Foundation Trust,21/05/2021,(83400) Office Equipment,(id:42465) Surgery,NHS SUPPLY CHAIN (MAIDSTONE),id:14006357   , 187.16
Department of Health,Guys and St Thomas NHS Foundation Trust,21/05/2021,(81200) Medical Surgical Supplies & Equipment,(id:42465) Surgery,NHS SUPPLY CHAIN (MAIDSTONE),id:14041934  , 712.94
Department of Health,Guys and St Thomas NHS Foundation Trust,21/05/2021,(81100) Dressings,(id:42465) Surgery,NHS SUPPLY CHAIN (MAIDSTONE),id:14041934, 290.31
Department of Health,Guys and St Thomas NHS Foundation Trust,21/05/2021,(81100) Dressings,(id:42465) Surgery,NHS SUPPLY CHAIN (MAIDSTONE),id:13964496,  13.42
Department of Health,Guys and St Thomas NHS Foundation Trust,21/05/2021,(81100) Dressings,(id:42466) Surgery,NHS SUPPLY CHAIN (MAIDSTONE),id:14006357, 199.87
Department of Health,Guys and St Thomas NHS Foundation Trust,21/05/2021,(82600) Uniforms & Clothing,(id:42467) Surgery,BUNZL HEALTHCARE,id:14098716  ,1003.74
Department of Health,Guys and St Thomas NHS Foundation Trust,14/05/2021,(81200) Medical Surgical Supplies & Equipment,(id:42467) Surgery,STRYKER UK LTD,id:14063375 , 502.32
Department of Health,Guys and St Thomas NHS Foundation Trust,27/05/2021,(81200) Medical Surgical Supplies & Equipment,(id:42467) Surgery,JOHNSON & JOHNSON MEDICAL LTD,id:14064935 , 620.10
Department of Health,Guys and St Thomas NHS Foundation Trust,21/05/2021,(83400) Office Equipment,(id:42467) Surgery,NHS SUPPLY CHAIN (MAIDSTONE),id:14006357   , 581.83
Department of Health,Guys and St Thomas NHS Foundation Trust,21/05/2021,(81225) Medical Surgical Supplies & Equipment,(id:42467) Surgery,NHS SUPPLY CHAIN (MAIDSTONE),id:14041934  ,  16.25
Department of Health,Guys and St Thomas NHS Foundation Trust,21/05/2021,(82000) Provisions & Kitchens,(id:42459) Surgery,NHS SUPPLY CHAIN (MAIDSTONE),id:14006357   , 166.41
Department of Health,Guys and St Thomas NHS Foundation Trust,21/05/2021,(82000) Provisions & Kitchens,(id:42459) Surgery,NHS SUPPLY CHAIN (MAIDSTONE),id:14041934   ,  78.58
Department of Health,Guys and St Thomas NHS Foundation Trust,07/05/2021,(81000) Surgical Appliances,(id:42459) Surgery,TALAR MADE ORTHOTICS LTD,id:14064515    , 252.00
Department of Health,Guys and St Thomas NHS Foundation Trust,21/05/2021,(81700) Lab Equipment Purchase,(id:42459) Surgery,NHS SUPPLY CHAIN (MAIDSTONE),id:14006357  ,  22.39
Department of Health,Guys and St Thomas NHS Foundation Trust,07/05/2021,(81000) Surgical Appliances,(id:42461) Surgery,TALAR MADE ORTHOTICS LTD,id:14064294    , 392.50
Department of Health,Guys and St Thomas NHS Foundation Trust,21/05/2021,(81000) Surgical Appliances,(id:42461) Surgery,TALAR MADE ORTHOTICS LTD,id:14116755    , 114.31
Department of Health,Guys and St Thomas NHS Foundation Trust,21/05/2021,(81000) Surgical Appliances,(id:42461) Surgery,TALAR MADE ORTHOTICS LTD,id:14117156    , 851.11
Department of Health,Guys and St Thomas NHS Foundation Trust,27/05/2021,(81000) Surgical Appliances,(id:42461) Surgery,TALAR MADE ORTHOTICS LTD,id:14118419    , 105.00
Department of Health,Guys and St Thomas NHS Foundation Trust,27/05/2021,(81000) Surgical Appliances,(id:42461) Surgery,MEDI UK LTD,id:14134974  , 121.19
Department of Health,Guys and St Thomas NHS Foundation Trust,27/05/2021,(81000) Surgical Appliances,(id:42461) Surgery,TALAR MADE ORTHOTICS LTD,id:14118314    , 788.04
Department of Health,Guys and St Thomas NHS Foundation Trust,27/05/2021,(81000) Surgical Appliances,(id:42461) Surgery,TALAR MADE ORTHOTICS LTD,id:14118416    ,1032.00
Department of Health,Guys and St Thomas NHS Foundation Trust,07/05/2021,(81275) Medical Surgical Supplies & Equipment,(id:42279) Cancer Supportive Services and R&D,HORIBA ABX UK LTD,id:14037235 , 574.13
Department of Health,Guys and St Thomas NHS Foundation Trust,21/05/2021,(89280) Other - Consultancy costs,(id:42277) Cancer Supportive Services and R&D,BEVERLEY THOMAS,id:14097954, 810.00
Department of Health,Guys and St Thomas NHS Foundation Trust,07/05/2021,(83500) Furniture & Fittings,(id:2169419) Haematology Cellular Pathology and Supporting Services,TECHNIBLINDS LTD,id:14036280  , 531.05
Department of Health,Guys and St Thomas NHS Foundation Trust,21/05/2021,(81200) Medical Surgical Supplies & Equipment,(id:42265) Haematology Cellular Pathology and Supporting Services,NHS SUPPLY CHAIN (MAIDSTONE),id:14006357,2323.14
Department of Health,Guys and St Thomas NHS Foundation Trust,07/05/2021,(50552) Qualified Nursing Staff,(id:42265) Haematology Cellular Pathology and Supporting Services,GLOBE LOCUMS LTD,id:14063805 , 586.50
Department of Health,Guys and St Thomas NHS Foundation Trust,07/05/2021,(50470) Medical Training Grades,(id:42267) Haematology Cellular Pathology and Supporting Services,KINGS COLLEGE LONDON:03529700,id:13932655   , 770.57
Department of Health,Guys and St Thomas NHS Foundation Trust,21/05/2021,(82800) Bedding & Linen,(id:42268) Haematology Cellular Pathology and Supporting Services,NHS SUPPLY CHAIN (MAIDSTONE),id:14041934  ,  23.41
Department of Health,Guys and St Thomas NHS Foundation Trust,27/05/2021,(81000) Surgical Appliances,(id:42268) Haematology Cellular Pathology and Supporting Services,MEDI UK LTD,id:14134834, 182.13
Department of Health,Guys and St Thomas NHS Foundation Trust,21/05/2021,(81100) Dressings,(id:42270) Haematology Cellular Pathology and Supporting Services,NHS SUPPLY CHAIN (MAIDSTONE),id:14006357   , 106.24
Department of Health,Guys and St Thomas NHS Foundation Trust,21/05/2021,(82800) Bedding & Linen,(id:42270) Haematology Cellular Pathology and Supporting Services,NHS SUPPLY CHAIN (MAIDSTONE),id:14006357  ,  84.10
Department of Health,Guys and St Thomas NHS Foundation Trust,21/05/2021,(83400) Office Equipment,(id:42272) Haematology Cellular Pathology and Supporting Services,NHS SUPPLY CHAIN (MAIDSTONE),id:14006357 ,  38.52
Department of Health,Guys and St Thomas NHS Foundation Trust,21/05/2021,(81700) Lab Equipment Purchase,(id:42272) Haematology Cellular Pathology and Supporting Services,NHS SUPPLY CHAIN (MAIDSTONE),id:14041934,  36.04
Department of Health,Guys and St Thomas NHS Foundation Trust,26/05/2021,(80205) Drug Costs,(id:42273) Haematology Cellular Pathology and Supporting Services,HEALTHCARE AT HOME LTD,id:14117427   ,5095.75
Department of Health,Guys and St Thomas NHS Foundation Trust,14/05/2021,(80205) Drug Costs,(id:42273) Haematology Cellular Pathology and Supporting Services,HEALTHCARE AT HOME LTD,id:14086214   ,1177.00
Department of Health,Guys and St Thomas NHS Foundation Trust,14/05/2021,(80205) Drug Costs,(id:42273) Haematology Cellular Pathology and Supporting Services,HEALTHCARE AT HOME LTD,id:14086116   ,2627.00
Department of Health,Guys and St Thomas NHS Foundation Trust,14/05/2021,(80205) Drug Costs,(id:42273) Haematology Cellular Pathology and Supporting Services,HEALTHCARE AT HOME LTD,id:14085834   ,4200.00
Department of Health,Guys and St Thomas NHS Foundation Trust,14/05/2021,(80205) Drug Costs,(id:42273) Haematology Cellular Pathology and Supporting Services,HEALTHCARE AT HOME LTD,id:14085854   ,6927.00
Department of Health,Guys and St Thomas NHS Foundation Trust,21/05/2021,(80205) Drug Costs,(id:42273) Haematology Cellular Pathology and Supporting Services,HEALTHCARE AT HOME LTD,id:14110276   ,2388.00
Department of Health,Guys and St Thomas NHS Foundation Trust,21/05/2021,(80205) Drug Costs,(id:42273) Haematology Cellular Pathology and Supporting Services,HEALTHCARE AT HOME LTD,id:14108614   ,4927.00
Department of Health,Guys and St Thomas NHS Foundation Trust,27/05/2021,(54052) Technical Officers,(id:42128) Haematology Cellular Pathology and Supporting Services,TOTAL ASSIST RECRUITMENT LTD,id:14138821    , 734.27
Department of Health,Guys and St Thomas NHS Foundation Trust,07/05/2021,(55040) Admin & Clerical,(id:2002419) Oncology Services,KINGS COLLEGE LONDON:03529700,id:13932674,3107.80
Department of Health,Guys and St Thomas NHS Foundation Trust,07/05/2021,(50200) Consultants,(id:2002419) Oncology Services,KINGS COLLEGE LONDON:03529700,id:13932674,1524.73
Department of Health,Guys and St Thomas NHS Foundation Trust,07/05/2021,(81000) Surgical Appliances,(id:42257) Oncology Services,TALAR MADE ORTHOTICS LTD,id:14064274    , 252.00
Department of Health,Guys and St Thomas NHS Foundation Trust,07/05/2021,(81000) Surgical Appliances,(id:42261) Oncology Services,MEDI UK LTD,id:14064574  ,  51.26
Department of Health,Guys and St Thomas NHS Foundation Trust,07/05/2021,(81200) Medical Surgical Supplies & Equipment,(id:42260) Oncology Services,KIMAL PLC,id:14043555 ,4262.28
Department of Health,Guys and St Thomas NHS Foundation Trust,14/05/2021,(81400) Medical Surgical Supplies & Equipment,(id:42260) Oncology Services,NHS SUPPLY CHAIN ( CAPITAL FUND ONLY),id:14078375   ,1391.75
Department of Health,Guys and St Thomas NHS Foundation Trust,21/05/2021,(83400) Office Equipment,(id:42260) Oncology Services,NHS SUPPLY CHAIN (MAIDSTONE),id:14006357   , 175.39
Department of Health,Guys and St Thomas NHS Foundation Trust,21/05/2021,(82000) Provisions & Kitchens,(id:42259) Oncology Services,NHS SUPPLY CHAIN (MAIDSTONE),id:14041934   , 113.70
Department of Health,Guys and St Thomas NHS Foundation Trust,21/05/2021,(83400) Office Equipment,(id:42259) Oncology Services,NHS SUPPLY CHAIN (MAIDSTONE),id:13964496   ,  18.44
Department of Health,Guys and St Thomas NHS Foundation Trust,21/05/2021,(83400) Office Equipment,(id:42259) Oncology Services,NHS SUPPLY CHAIN (MAIDSTONE),id:14041934   , 200.68
Department of Health,Guys and St Thomas NHS Foundation Trust,21/05/2021,(82800) Bedding & Linen,(id:42280) Surgical Oncology,NHS SUPPLY CHAIN (MAIDSTONE),id:14006357    ,  31.97
Department of Health,Guys and St Thomas NHS Foundation Trust,14/05/2021,(81200) Medical Surgical Supplies & Equipment,(id:42280) Surgical Oncology,IDEAL MEDICAL SOLUTIONS LTD,id:14071794   , 623.40
Department of Health,Guys and St Thomas NHS Foundation Trust,21/05/2021,(81100) Dressings,(id:243406) Surgical Oncology,NHS SUPPLY CHAIN (MAIDSTONE),id:14041934    ,  87.00
Department of Health,Guys and St Thomas NHS Foundation Trust,21/05/2021,(82000) Provisions & Kitchens,(id:243406) Surgical Oncology,NHS SUPPLY CHAIN (MAIDSTONE),id:13964496  ,  78.02
Department of Health,Guys and St Thomas NHS Foundation Trust,21/05/2021,(82800) Bedding & Linen,(id:42473) Surgical Oncology,NHS SUPPLY CHAIN (MAIDSTONE),id:14006357    ,  55.20
Department of Health,Guys and St Thomas NHS Foundation Trust,07/05/2021,(81100) Dressings,(id:42473) Surgical Oncology,JEWEL MANAGEMENT LTD T/A GENERAL MEDICAL,id:14042695   , 785.94
Department of Health,Guys and St Thomas NHS Foundation Trust,21/05/2021,(81100) Dressings,(id:42473) Surgical Oncology,NHS SUPPLY CHAIN (MAIDSTONE),id:14006357,  68.26
Department of Health,Guys and St Thomas NHS Foundation Trust,07/05/2021,(81200) Medical Surgical Supplies & Equipment,(id:42473) Surgical Oncology,JOHNSON & JOHNSON MEDICAL LTD,id:13994342 , 541.55
Department of Health,Guys and St Thomas NHS Foundation Trust,21/05/2021,(81200) Medical Surgical Supplies & Equipment,(id:42473) Surgical Oncology,CCMED LTD,id:14108936 , 538.20
Department of Health,Guys and St Thomas NHS Foundation Trust,14/05/2021,(81200) Medical Surgical Supplies & Equipment,(id:42473) Surgical Oncology,DELTA SURGICAL LTD,id:14029377  ,1180.80
Department of Health,Guys and St Thomas NHS Foundation Trust,14/05/2021,(81200) Medical Surgical Supplies & Equipment,(id:42473) Surgical Oncology,MEDTRONIC LTD,id:14019361  , 554.40
Department of Health,Guys and St Thomas NHS Foundation Trust,27/05/2021,(81200) Medical Surgical Supplies & Equipment,(id:42473) Surgical Oncology,CCMED LTD,id:14119914 , 867.00
Department of Health,Guys and St Thomas NHS Foundation Trust,27/05/2021,(81215) Medical Surgical Supplies & Equipment,(id:42473) Surgical Oncology,CCMED LTD,id:14118899 , 632.76
Department of Health,Guys and St Thomas NHS Foundation Trust,21/05/2021,(83400) Office Equipment,(id:42474) Surgical Oncology,NHS SUPPLY CHAIN (MAIDSTONE),id:14006357   , 228.41
Department of Health,Guys and St Thomas NHS Foundation Trust,26/05/2021,(54052) Technical Officers,(id:42475) Surgical Oncology,PRICEWATERHOUSECOOPERS LLP,id:14136634   , 577.44
Department of Health,Guys and St Thomas NHS Foundation Trust,21/05/2021,(81225) Medical Surgical Supplies & Equipment,(id:42475) Surgical Oncology,NHS SUPPLY CHAIN (MAIDSTONE),id:14041934  ,    11721.17
Department of Health,Guys and St Thomas NHS Foundation Trust,21/05/2021,(81225) Medical Surgical Supplies & Equipment,(id:42475) Surgical Oncology,NHS SUPPLY CHAIN (MAIDSTONE),id:14006357  ,    21613.47
Department of Health,Guys and St Thomas NHS Foundation Trust,07/05/2021,(81200) Medical Surgical Supplies & Equipment,(id:42286) Surgical Oncology,MEDTRONIC LTD,id:14009452  , 465.59
Department of Health,Guys and St Thomas NHS Foundation Trust,07/05/2021,(81200) Medical Surgical Supplies & Equipment,(id:42286) Surgical Oncology,MEDTRONIC LTD,id:13994366  ,2386.87
Department of Health,Guys and St Thomas NHS Foundation Trust,14/05/2021,(81200) Medical Surgical Supplies & Equipment,(id:42286) Surgical Oncology,MEDTRONIC LTD,id:14019368  ,1233.59
Department of Health,Guys and St Thomas NHS Foundation Trust,27/05/2021,(83610) IT Costs,(id:42284) Surgical Oncology,SCC PLC)SPECIALIST COMPUTER CENTRES,id:14134565    , 774.00
Department of Health,Guys and St Thomas NHS Foundation Trust,21/05/2021,(81700) Lab Equipment Purchase,(id:42284) Surgical Oncology,NHS SUPPLY CHAIN (MAIDSTONE),id:14006357  ,  19.16
Department of Health,Guys and St Thomas NHS Foundation Trust,21/05/2021,(81225) Medical Surgical Supplies & Equipment,(id:42470) Surgical Oncology,NHS SUPPLY CHAIN (MAIDSTONE),id:14041934  ,  19.39
Department of Health,Guys and St Thomas NHS Foundation Trust,21/05/2021,(81700) Lab Equipment Purchase,(id:42470) Surgical Oncology,NHS SUPPLY CHAIN (MAIDSTONE),id:14006357  ,  78.86
Department of Health,Guys and St Thomas NHS Foundation Trust,21/05/2021,(81200) Medical Surgical Supplies & Equipment,(id:42471) Surgical Oncology,SEVERN HEALTHCARE TECHNOLOGIES LTD,id:14051757 , 508.80
Department of Health,Guys and St Thomas NHS Foundation Trust,21/05/2021,(82700) Uniforms & Clothing,(id:2182419) Acute & General Medicine,NHS SUPPLY CHAIN (MAIDSTONE),id:13964496 ,  48.08
Department of Health,Guys and St Thomas NHS Foundation Trust,21/05/2021,(82800) Bedding & Linen,(id:2182419) Acute & General Medicine,NHS SUPPLY CHAIN (MAIDSTONE),id:13964496,  15.36
Department of Health,Guys and St Thomas NHS Foundation Trust,21/05/2021,(82800) Bedding & Linen,(id:41858) Acute & General Medicine,NHS SUPPLY CHAIN (MAIDSTONE),id:14041934  , 116.97
Department of Health,Guys and St Thomas NHS Foundation Trust,21/05/2021,(81100) Dressings,(id:41858) Acute & General Medicine,NHS SUPPLY CHAIN (MAIDSTONE),id:14041934   ,9560.07
Department of Health,Guys and St Thomas NHS Foundation Trust,14/05/2021,(50522) Unqualified Nursing Staff,(id:41858) Acute & General Medicine,MSI GROUP LTD,id:14095809  , 208.27
Department of Health,Guys and St Thomas NHS Foundation Trust,21/05/2021,(81200) Medical Surgical Supplies & Equipment,(id:41858) Acute & General Medicine,NHS SUPPLY CHAIN (MAIDSTONE),id:14006357, 377.85
Department of Health,Guys and St Thomas NHS Foundation Trust,21/05/2021,(82600) Uniforms & Clothing,(id:41859) Acute & General Medicine,NHS SUPPLY CHAIN (MAIDSTONE),id:14041934   ,  40.35
Department of Health,Guys and St Thomas NHS Foundation Trust,21/05/2021,(50522) Unqualified Nursing Staff,(id:41859) Acute & General Medicine,MEDICSPRO LTD,id:14114708  , 797.87
Department of Health,Guys and St Thomas NHS Foundation Trust,14/05/2021,(83500) Furniture & Fittings,(id:41859) Acute & General Medicine,TECHNIBLINDS LTD,id:14078354    , 500.40
Department of Health,Guys and St Thomas NHS Foundation Trust,21/05/2021,(81255) Medical Surgical Supplies & Equipment,(id:41860) Acute & General Medicine,NHS SUPPLY CHAIN (MAIDSTONE),id:14041934,  17.53
Department of Health,Guys and St Thomas NHS Foundation Trust,07/05/2021,(50522) Unqualified Nursing Staff,(id:41860) Acute & General Medicine,MSI GROUP LTD,id:14063661  , 269.22
Department of Health,Guys and St Thomas NHS Foundation Trust,14/05/2021,(50522) Unqualified Nursing Staff,(id:41860) Acute & General Medicine,MSI GROUP LTD,id:14095809  , 208.27
Department of Health,Guys and St Thomas NHS Foundation Trust,21/05/2021,(81225) Medical Surgical Supplies & Equipment,(id:41860) Acute & General Medicine,NHS SUPPLY CHAIN (MAIDSTONE),id:14006357,  14.55
Department of Health,Guys and St Thomas NHS Foundation Trust,21/05/2021,(81200) Medical Surgical Supplies & Equipment,(id:41868) Acute & General Medicine,NHS SUPPLY CHAIN (MAIDSTONE),id:14041934, 452.02
Department of Health,Guys and St Thomas NHS Foundation Trust,21/05/2021,(50200) Consultants,(id:41868) Acute & General Medicine,SOUTH LONDON AND MAUDSLEY NHS FOUNDATION TRUST,id:13910874   ,3700.00
Department of Health,Guys and St Thomas NHS Foundation Trust,21/05/2021,(83400) Office Equipment,(id:41868) Acute & General Medicine,NHS SUPPLY CHAIN (MAIDSTONE),id:14006357 ,  26.52
Department of Health,Guys and St Thomas NHS Foundation Trust,21/05/2021,(81225) Medical Surgical Supplies & Equipment,(id:41869) Acute & General Medicine,NHS SUPPLY CHAIN (MAIDSTONE),id:13964496, 287.52
Department of Health,Guys and St Thomas NHS Foundation Trust,21/05/2021,(81700) Lab Equipment Purchase,(id:41869) Acute & General Medicine,NHS SUPPLY CHAIN (MAIDSTONE),id:13964496,  66.21
Department of Health,Guys and St Thomas NHS Foundation Trust,21/05/2021,(81000) Surgical Appliances,(id:41872) Acute & General Medicine,TALAR MADE ORTHOTICS LTD,id:14117174  , 114.00
Department of Health,Guys and St Thomas NHS Foundation Trust,27/05/2021,(81000) Surgical Appliances,(id:41872) Acute & General Medicine,TALAR MADE ORTHOTICS LTD,id:14117999  , 114.00
Department of Health,Guys and St Thomas NHS Foundation Trust,14/05/2021,(50552) Qualified Nursing Staff,(id:41872) Acute & General Medicine,CONTINENTAL NURSE LTD,id:14095775 ,2046.77
Department of Health,Guys and St Thomas NHS Foundation Trust,14/05/2021,(50552) Qualified Nursing Staff,(id:41872) Acute & General Medicine,MEDICSPRO LTD,id:14095671    ,1814.13
Department of Health,Guys and St Thomas NHS Foundation Trust,21/05/2021,(50552) Qualified Nursing Staff,(id:41872) Acute & General Medicine,GLOBE LOCUMS LTD,id:14114719 , 325.47
Department of Health,Guys and St Thomas NHS Foundation Trust,21/05/2021,(50552) Qualified Nursing Staff,(id:41872) Acute & General Medicine,CONTINENTAL NURSE LTD,id:14114444 ,1722.62
Department of Health,Guys and St Thomas NHS Foundation Trust,21/05/2021,(50552) Qualified Nursing Staff,(id:41872) Acute & General Medicine,MEDICSPRO LTD,id:14114552    ,1466.68
Department of Health,Guys and St Thomas NHS Foundation Trust,27/05/2021,(50552) Qualified Nursing Staff,(id:41872) Acute & General Medicine,CONTINENTAL NURSE LTD,id:14138897 ,1716.90
Department of Health,Guys and St Thomas NHS Foundation Trust,21/05/2021,(82800) Bedding & Linen,(id:41882) Acute & General Medicine,NHS SUPPLY CHAIN (MAIDSTONE),id:13964496  ,  23.41
Department of Health,Guys and St Thomas NHS Foundation Trust,27/05/2021,(81000) Surgical Appliances,(id:41876) Acute & General Medicine,TALAR MADE ORTHOTICS LTD,id:14117999  , 345.00
Department of Health,Guys and St Thomas NHS Foundation Trust,27/05/2021,(81000) Surgical Appliances,(id:41876) Acute & General Medicine,TALAR MADE ORTHOTICS LTD,id:14118295  , 394.50
Department of Health,Guys and St Thomas NHS Foundation Trust,21/05/2021,(83400) Office Equipment,(id:41878) Acute & General Medicine,NHS SUPPLY CHAIN (MAIDSTONE),id:14006357 , 146.06
Department of Health,Guys and St Thomas NHS Foundation Trust,21/05/2021,(82800) Bedding & Linen,(id:41878) Acute & General Medicine,NHS SUPPLY CHAIN (MAIDSTONE),id:14006357  , 218.71
Department of Health,Guys and St Thomas NHS Foundation Trust,21/05/2021,(81100) Dressings,(id:41878) Acute & General Medicine,NHS SUPPLY CHAIN (MAIDSTONE),id:14006357   , 196.52
Department of Health,Guys and St Thomas NHS Foundation Trust,14/05/2021,(50522) Unqualified Nursing Staff,(id:41878) Acute & General Medicine,MSI GROUP LTD,id:14095811  , 203.95
Department of Health,Guys and St Thomas NHS Foundation Trust,21/05/2021,(81700) Lab Equipment Purchase,(id:41878) Acute & General Medicine,NHS SUPPLY CHAIN (MAIDSTONE),id:14041934,  47.51
Department of Health,Guys and St Thomas NHS Foundation Trust,21/05/2021,(81700) Lab Equipment Purchase,(id:41878) Acute & General Medicine,NHS SUPPLY CHAIN (MAIDSTONE),id:14006357,  28.49
Department of Health,Guys and St Thomas NHS Foundation Trust,07/05/2021,(50522) Unqualified Nursing Staff,(id:41879) Acute & General Medicine,CARE PROVIDERS HEALTHCARE,id:14066917, 621.04
Department of Health,Guys and St Thomas NHS Foundation Trust,27/05/2021,(50522) Unqualified Nursing Staff,(id:41879) Acute & General Medicine,GLOBE LOCUMS LTD,id:14138898    , 244.04
Department of Health,Guys and St Thomas NHS Foundation Trust,27/05/2021,(50522) Unqualified Nursing Staff,(id:41879) Acute & General Medicine,MSI GROUP LTD,id:14138826  , 280.70
Department of Health,Guys and St Thomas NHS Foundation Trust,07/05/2021,(81200) Medical Surgical Supplies & Equipment,(id:41879) Acute & General Medicine,ARJO UK LIMITED,id:14046717   ,1358.40
Department of Health,Guys and St Thomas NHS Foundation Trust,21/05/2021,(81700) Lab Equipment Purchase,(id:41879) Acute & General Medicine,NHS SUPPLY CHAIN (MAIDSTONE),id:14041934,  20.22
Department of Health,Guys and St Thomas NHS Foundation Trust,07/05/2021,(50522) Unqualified Nursing Staff,(id:41880) Acute & General Medicine,GLOBE LOCUMS LTD,id:14063631    , 251.75
Department of Health,Guys and St Thomas NHS Foundation Trust,21/05/2021,(50522) Unqualified Nursing Staff,(id:41880) Acute & General Medicine,GLOBE LOCUMS LTD,id:14114452    , 187.55
Department of Health,Guys and St Thomas NHS Foundation Trust,27/05/2021,(50522) Unqualified Nursing Staff,(id:41880) Acute & General Medicine,MSI GROUP LTD,id:14139010  , 273.46
Department of Health,Guys and St Thomas NHS Foundation Trust,14/05/2021,(50552) Qualified Nursing Staff,(id:41881) Acute & General Medicine,CARE PROVIDERS HEALTHCARE,id:14095705  , 731.57
Department of Health,Guys and St Thomas NHS Foundation Trust,14/05/2021,(50522) Unqualified Nursing Staff,(id:41881) Acute & General Medicine,MSI GROUP LTD,id:14095809  , 208.27
Department of Health,Guys and St Thomas NHS Foundation Trust,21/05/2021,(50522) Unqualified Nursing Staff,(id:41881) Acute & General Medicine,GLOBE LOCUMS LTD,id:14114452    , 187.55
Department of Health,Guys and St Thomas NHS Foundation Trust,21/05/2021,(50522) Unqualified Nursing Staff,(id:41881) Acute & General Medicine,CARE PROVIDERS HEALTHCARE,id:14114755, 939.46
Department of Health,Guys and St Thomas NHS Foundation Trust,21/05/2021,(50522) Unqualified Nursing Staff,(id:41881) Acute & General Medicine,MSI GROUP LTD,id:14114812  , 265.91
Department of Health,Guys and St Thomas NHS Foundation Trust,21/05/2021,(50522) Unqualified Nursing Staff,(id:41881) Acute & General Medicine,MSI GROUP LTD,id:14116314  , 273.46
Department of Health,Guys and St Thomas NHS Foundation Trust,27/05/2021,(50522) Unqualified Nursing Staff,(id:41881) Acute & General Medicine,GLOBE LOCUMS LTD,id:14138778    , 508.52
Department of Health,Guys and St Thomas NHS Foundation Trust,21/05/2021,(81275) Medical Surgical Supplies & Equipment,(id:41881) Acute & General Medicine,NHS SUPPLY CHAIN (MAIDSTONE),id:14006357,   2.50
Department of Health,Guys and St Thomas NHS Foundation Trust,21/05/2021,(81255) Medical Surgical Supplies & Equipment,(id:41881) Acute & General Medicine,NHS SUPPLY CHAIN (MAIDSTONE),id:14006357,   1.56
Department of Health,Guys and St Thomas NHS Foundation Trust,21/05/2021,(83400) Office Equipment,(id:42025) Dental Services,NHS SUPPLY CHAIN (MAIDSTONE),id:14041934,  16.85
Department of Health,Guys and St Thomas NHS Foundation Trust,14/05/2021,(50203) Consultants,(id:42010) Dental Services,KINGS COLLEGE LONDON:03529700,id:13811314    ,    25299.42
Department of Health,Guys and St Thomas NHS Foundation Trust,21/05/2021,(81200) Medical Surgical Supplies & Equipment,(id:42037) Dental Services,NHS SUPPLY CHAIN (MAIDSTONE),id:14006357    ,  44.28
Department of Health,Guys and St Thomas NHS Foundation Trust,21/05/2021,(81200) Medical Surgical Supplies & Equipment,(id:42037) Dental Services,3M UNITEK,id:14106215   ,1032.00
Department of Health,Guys and St Thomas NHS Foundation Trust,21/05/2021,(81200) Medical Surgical Supplies & Equipment,(id:42037) Dental Services,3M UNITEK,id:14106254   , 948.96
Department of Health,Guys and St Thomas NHS Foundation Trust,21/05/2021,(81200) Medical Surgical Supplies & Equipment,(id:42037) Dental Services,3M UNITEK,id:14106280   , 988.32
Department of Health,Guys and St Thomas NHS Foundation Trust,27/05/2021,(81200) Medical Surgical Supplies & Equipment,(id:42037) Dental Services,3M UNITED KINGDOM PLC,id:14134688 , 936.36
Department of Health,Guys and St Thomas NHS Foundation Trust,27/05/2021,(81200) Medical Surgical Supplies & Equipment,(id:42037) Dental Services,HENRY SCHEIN,id:14115904, 235.55
Department of Health,Guys and St Thomas NHS Foundation Trust,21/05/2021,(81100) Dressings,(id:42005) Dental Services,NHS SUPPLY CHAIN (MAIDSTONE),id:14006357  ,  12.05
Department of Health,Guys and St Thomas NHS Foundation Trust,21/05/2021,(81200) Medical Surgical Supplies & Equipment,(id:42005) Dental Services,NHS SUPPLY CHAIN (MAIDSTONE),id:14041934    ,1127.22
Department of Health,Guys and St Thomas NHS Foundation Trust,14/05/2021,(81200) Medical Surgical Supplies & Equipment,(id:42007) Dental Services,HENRY SCHEIN,id:14074676, 914.00
Department of Health,Guys and St Thomas NHS Foundation Trust,14/05/2021,(50200) Consultants,(id:42033) Dental Services,KINGS COLLEGE LONDON:03529700,id:13683235    ,3729.09
Department of Health,Guys and St Thomas NHS Foundation Trust,14/05/2021,(50200) Consultants,(id:42033) Dental Services,KINGS COLLEGE LONDON:03529700,id:13811314    ,3731.27
Department of Health,Guys and St Thomas NHS Foundation Trust,21/05/2021,(83400) Office Equipment,(id:42028) Dental Services,NHS SUPPLY CHAIN (MAIDSTONE),id:14006357,  22.45
Department of Health,Guys and St Thomas NHS Foundation Trust,14/05/2021,(81400) Medical Surgical Supplies & Equipment,(id:42028) Dental Services,DIACO LTD,id:14067834   ,3898.00
Department of Health,Guys and St Thomas NHS Foundation Trust,21/05/2021,(81255) Medical Surgical Supplies & Equipment,(id:42028) Dental Services,NHS SUPPLY CHAIN (MAIDSTONE),id:14006357    ,  13.80
Department of Health,Guys and St Thomas NHS Foundation Trust,07/05/2021,(81200) Medical Surgical Supplies & Equipment,(id:42016) Dental Services,DENTSPLY IH LTD,id:14030798  ,1475.32
Department of Health,Guys and St Thomas NHS Foundation Trust,21/05/2021,(81200) Medical Surgical Supplies & Equipment,(id:42016) Dental Services,DENTSPLY IH LTD,id:13823654  , 544.65
Department of Health,Guys and St Thomas NHS Foundation Trust,21/05/2021,(81200) Medical Surgical Supplies & Equipment,(id:42016) Dental Services,DENTSPLY IH LTD,id:13823554  , 586.20
Department of Health,Guys and St Thomas NHS Foundation Trust,27/05/2021,(81200) Medical Surgical Supplies & Equipment,(id:42016) Dental Services,STRAUMANN LTD,id:14118056    , 584.34
Department of Health,Guys and St Thomas NHS Foundation Trust,21/05/2021,(81200) Medical Surgical Supplies & Equipment,(id:2884419) Dental Services,TECHNOVENT LTD,id:14107856 ,1259.04
Department of Health,Guys and St Thomas NHS Foundation Trust,21/05/2021,(81200) Medical Surgical Supplies & Equipment,(id:2884419) Dental Services,CERAMET UK LTD T/A CERAMET UK DENTAL SOLUTIONS,id:14103634    , 759.90
Department of Health,Guys and St Thomas NHS Foundation Trust,14/05/2021,(50343) Other Medical Grades,(id:42022) Dental Services,KINGS COLLEGE LONDON:03529700,id:13683235,1533.98
Department of Health,Guys and St Thomas NHS Foundation Trust,14/05/2021,(50343) Other Medical Grades,(id:42022) Dental Services,KINGS COLLEGE LONDON:03529700,id:13811314,1586.49
Department of Health,Guys and St Thomas NHS Foundation Trust,21/05/2021,(50343) Other Medical Grades,(id:42022) Dental Services,KINGS COLLEGE LONDON:03529700,id:13506134,1530.12
Department of Health,Guys and St Thomas NHS Foundation Trust,14/05/2021,(50200) Consultants,(id:42022) Dental Services,KINGS COLLEGE LONDON:03529700,id:13683235    ,2678.17
Department of Health,Guys and St Thomas NHS Foundation Trust,21/05/2021,(81400) Medical Surgical Supplies & Equipment,(id:41994) Dental Services,RIVERSIDE ENVIRONMENTAL SERVICES LTD,id:14066574 , 660.00
Department of Health,Guys and St Thomas NHS Foundation Trust,21/05/2021,(82600) Uniforms & Clothing,(id:42014) Dental Services,NHS SUPPLY CHAIN (MAIDSTONE),id:14041934  , 400.63
Department of Health,Guys and St Thomas NHS Foundation Trust,14/05/2021,(81400) Medical Surgical Supplies & Equipment,(id:42014) Dental Services,NHS SUPPLY CHAIN ( CAPITAL FUND ONLY),id:14078714,9392.92
Department of Health,Guys and St Thomas NHS Foundation Trust,14/05/2021,(50200) Consultants,(id:42035) Dental Services,KINGS COLLEGE LONDON:03529700,id:13811314    ,    10555.63
Department of Health,Guys and St Thomas NHS Foundation Trust,21/05/2021,(84657) Establishment,(id:42035) Dental Services,IRON MOUNTAIN (UK) LTD,id:14048275    ,1810.93
Department of Health,Guys and St Thomas NHS Foundation Trust,21/05/2021,(83400) Office Equipment,(id:1634429) Dental Services,NHS SUPPLY CHAIN (MAIDSTONE),id:14041934   , 183.94
Department of Health,Guys and St Thomas NHS Foundation Trust,07/05/2021,(81200) Medical Surgical Supplies & Equipment,(id:1634429) Dental Services,DENTSPLY LTD,id:14028716   , 766.67
Department of Health,Guys and St Thomas NHS Foundation Trust,14/05/2021,(81200) Medical Surgical Supplies & Equipment,(id:1634429) Dental Services,HENRY SCHEIN,id:14069479   , 509.16
Department of Health,Guys and St Thomas NHS Foundation Trust,27/05/2021,(81200) Medical Surgical Supplies & Equipment,(id:1634429) Dental Services,DENTAL 21 (DENTAL 21 (SUPPLIES) LTDSUPPLIES) LTD,id:14118951  , 780.00
Department of Health,Guys and St Thomas NHS Foundation Trust,07/05/2021,(81200) Medical Surgical Supplies & Equipment,(id:1634432) Dental Services,DENTSPLY LTD,id:14028716   ,1820.64
Department of Health,Guys and St Thomas NHS Foundation Trust,21/05/2021,(81200) Medical Surgical Supplies & Equipment,(id:1634433) Dental Services,NHS SUPPLY CHAIN (MAIDSTONE),id:13964496  ,  47.52
Department of Health,Guys and St Thomas NHS Foundation Trust,27/05/2021,(81200) Medical Surgical Supplies & Equipment,(id:1650420) Dental Services,DAVIS SCHOTTLANDER & DAVIS LTD,id:14085554,1918.99
Department of Health,Guys and St Thomas NHS Foundation Trust,14/05/2021,(50203) Consultants,(id:42193) Specialist Ambulatory Services,KINGS COLLEGE LONDON:03529700,id:13785934    ,1103.52
Department of Health,Guys and St Thomas NHS Foundation Trust,07/05/2021,(81000) Surgical Appliances,(id:42193) Specialist Ambulatory Services,LBG MEDICAL LTD,id:14064736, 137.28
Department of Health,Guys and St Thomas NHS Foundation Trust,27/05/2021,(81000) Surgical Appliances,(id:42195) Specialist Ambulatory Services,TALAR MADE ORTHOTICS LTD,id:14118115 , 117.60
Department of Health,Guys and St Thomas NHS Foundation Trust,21/05/2021,(81000) Surgical Appliances,(id:42195) Specialist Ambulatory Services,TALAR MADE ORTHOTICS LTD,id:14117174 ,  29.40
Department of Health,Guys and St Thomas NHS Foundation Trust,14/05/2021,(84656) Establishment,(id:42358) Specialist Ambulatory Services,DICT8 LIMITED,id:14073215   ,3415.08
Department of Health,Guys and St Thomas NHS Foundation Trust,21/05/2021,(81100) Dressings,(id:42091) Specialist Ambulatory Services,NHS SUPPLY CHAIN (MAIDSTONE),id:14006357  , 168.19
Department of Health,Guys and St Thomas NHS Foundation Trust,14/05/2021,(81200) Medical Surgical Supplies & Equipment,(id:42091) Specialist Ambulatory Services,LJA MIERS & CO LTD,id:14077459    ,1526.40
Department of Health,Guys and St Thomas NHS Foundation Trust,14/05/2021,(54060) Technical Officers,(id:42093) Specialist Ambulatory Services,VIAPATH ANALYTICS LLP,id:13930215,5450.00
Department of Health,Guys and St Thomas NHS Foundation Trust,14/05/2021,(54060) Technical Officers,(id:42093) Specialist Ambulatory Services,VIAPATH ANALYTICS LLP,id:13932959,5450.00
Department of Health,Guys and St Thomas NHS Foundation Trust,21/05/2021,(81100) Dressings,(id:42094) Specialist Ambulatory Services,NHS SUPPLY CHAIN (MAIDSTONE),id:14041934  , 212.42
Department of Health,Guys and St Thomas NHS Foundation Trust,07/05/2021,(83400) Office Equipment,(id:3607419) Specialist Ambulatory Services,LAZERBEAM FIRE AND SECURITY LTD,id:11682653,5148.00
Department of Health,Guys and St Thomas NHS Foundation Trust,21/05/2021,(81100) Dressings,(id:3608419) Specialist Ambulatory Services,NHS SUPPLY CHAIN (MAIDSTONE),id:14041934,  35.32
Department of Health,Guys and St Thomas NHS Foundation Trust,21/05/2021,(84656) Establishment,(id:42065) Specialist Ambulatory Services,DICT8 LIMITED,id:14073596   ,4304.28
Department of Health,Guys and St Thomas NHS Foundation Trust,21/05/2021,(81100) Dressings,(id:42079) Specialist Ambulatory Services,NHS SUPPLY CHAIN (MAIDSTONE),id:14041934  , 249.88
Department of Health,Guys and St Thomas NHS Foundation Trust,27/05/2021,(80010) Drug Costs,(id:42079) Specialist Ambulatory Services,THERAKOS (UK) LIMITED,id:14119019   ,-760.80
Department of Health,Guys and St Thomas NHS Foundation Trust,21/05/2021,(80010) Drug Costs,(id:42079) Specialist Ambulatory Services,THERAKOS (UK) LIMITED,id:14046915   ,    22824.00
Department of Health,Guys and St Thomas NHS Foundation Trust,21/05/2021,(80010) Drug Costs,(id:42079) Specialist Ambulatory Services,THERAKOS (UK) LIMITED,id:14105574   ,-760.80
Department of Health,Guys and St Thomas NHS Foundation Trust,21/05/2021,(84400) Transport,(id:42097) Specialist Ambulatory Services,CITYSPRINT (UK) LTD,id:14097694 , 796.84
Department of Health,Guys and St Thomas NHS Foundation Trust,21/05/2021,(83400) Office Equipment,(id:42050) Specialist Ambulatory Services,NHS SUPPLY CHAIN (MAIDSTONE),id:14006357, 161.95
Department of Health,Guys and St Thomas NHS Foundation Trust,21/05/2021,(82800) Bedding & Linen,(id:42050) Specialist Ambulatory Services,NHS SUPPLY CHAIN (MAIDSTONE),id:14006357 ,  70.58
Department of Health,Guys and St Thomas NHS Foundation Trust,21/05/2021,(82000) Provisions & Kitchens,(id:42050) Specialist Ambulatory Services,NHS SUPPLY CHAIN (MAIDSTONE),id:14041934,  21.00
Department of Health,Guys and St Thomas NHS Foundation Trust,14/05/2021,(80010) Drug Costs,(id:42159) Pharmacy,OFFICE DEPOT UK LTD,id:13980411  ,2528.40
Department of Health,Guys and St Thomas NHS Foundation Trust,11/05/2021,(53672) Pharmacists,(id:42159) Pharmacy,PRICEWATERHOUSECOOPERS LLP,id:14080934    ,1392.77
Department of Health,Guys and St Thomas NHS Foundation Trust,21/05/2021,(81200) Medical Surgical Supplies & Equipment,(id:42159) Pharmacy,UNIVERSITY OF MANCHESTER.,id:14098114    ,1800.00
Department of Health,Guys and St Thomas NHS Foundation Trust,21/05/2021,(81275) Medical Surgical Supplies & Equipment,(id:42159) Pharmacy,THERMO FISHER SCIENTIFIC,id:14110541, 662.94
Department of Health,Guys and St Thomas NHS Foundation Trust,27/05/2021,(83400) Office Equipment,(id:581409) Pharmacy,DURBIN PLC,id:14137117    , 889.62
Department of Health,Guys and St Thomas NHS Foundation Trust,12/05/2021,(54052) Technical Officers,(id:581409) Pharmacy,PRICEWATERHOUSECOOPERS LLP,id:14081734 ,3125.69
Department of Health,Guys and St Thomas NHS Foundation Trust,07/05/2021,(82000) Provisions & Kitchens,(id:581409) Pharmacy,FRESENIUS KABI LTD,id:14003920 ,1236.48
Department of Health,Guys and St Thomas NHS Foundation Trust,21/05/2021,(84400) Transport,(id:42156) Pharmacy,CITYSPRINT (UK) LTD,id:14097894   ,4807.67
Department of Health,Guys and St Thomas NHS Foundation Trust,26/05/2021,(54052) Technical Officers,(id:42160) Pharmacy,PRICEWATERHOUSECOOPERS LLP,id:14136634  , 917.09
Department of Health,Guys and St Thomas NHS Foundation Trust,21/05/2021,(83400) Office Equipment,(id:42160) Pharmacy,NHS SUPPLY CHAIN (MAIDSTONE),id:14006357  ,  12.00
Department of Health,Guys and St Thomas NHS Foundation Trust,14/05/2021,(84655) Establishment,(id:478416) Medical Specialties,LANGUAGE LINE LTD,id:14062374    ,6335.59
Department of Health,Guys and St Thomas NHS Foundation Trust,14/05/2021,(84655) Establishment,(id:478416) Medical Specialties,LANGUAGE LINE LTD,id:13956734    ,    25266.55
Department of Health,Guys and St Thomas NHS Foundation Trust,27/05/2021,(81000) Surgical Appliances,(id:42171) Medical Specialties,MEDI UK LTD,id:14134817,  98.76
Department of Health,Guys and St Thomas NHS Foundation Trust,27/05/2021,(81000) Surgical Appliances,(id:42171) Medical Specialties,TALAR MADE ORTHOTICS LTD,id:14134692  , 194.50
Department of Health,Guys and St Thomas NHS Foundation Trust,27/05/2021,(81000) Surgical Appliances,(id:42171) Medical Specialties,TALAR MADE ORTHOTICS LTD,id:14118115  , 252.00
Department of Health,Guys and St Thomas NHS Foundation Trust,07/05/2021,(50552) Qualified Nursing Staff,(id:42217) Medical Specialties,CONTINENTAL NURSE LTD,id:14063774 ,2321.64
Department of Health,Guys and St Thomas NHS Foundation Trust,26/05/2021,(51272) Dieticians,(id:42251) Medical Specialties,PRICEWATERHOUSECOOPERS LLP,id:14136635    ,2140.45
Department of Health,Guys and St Thomas NHS Foundation Trust,14/05/2021,(86300) Healthcare from non-NHS bodies,(id:42224) Medical Specialties,L DOLLAY OPTOMETRIST LTD,id:14018755 ,3561.00
Department of Health,Guys and St Thomas NHS Foundation Trust,07/05/2021,(83755) Rental under Operating Lease,(id:42224) Medical Specialties,COMMUNITY HEALTH PARTNERSHIPS,id:14050454   , 434.29
Department of Health,Guys and St Thomas NHS Foundation Trust,21/05/2021,(83400) Office Equipment,(id:42224) Medical Specialties,NHS SUPPLY CHAIN (MAIDSTONE),id:13964496 ,  12.60
Department of Health,Guys and St Thomas NHS Foundation Trust,21/05/2021,(83400) Office Equipment,(id:42221) Medical Specialties,NHS SUPPLY CHAIN (MAIDSTONE),id:14041934 ,  24.98
Department of Health,Guys and St Thomas NHS Foundation Trust,14/05/2021,(81200) Medical Surgical Supplies & Equipment,(id:42221) Medical Specialties,BEAVER-VISITEC INTERNATIONAL (SALES) LTD,id:14087437   , 632.40
Department of Health,Guys and St Thomas NHS Foundation Trust,21/05/2021,(81200) Medical Surgical Supplies & Equipment,(id:42221) Medical Specialties,NHS SUPPLY CHAIN (MAIDSTONE),id:14041934,1404.67
Department of Health,Guys and St Thomas NHS Foundation Trust,21/05/2021,(81200) Medical Surgical Supplies & Equipment,(id:42221) Medical Specialties,BEAVER-VISITEC INTERNATIONAL (SALES) LTD,id:14101395   , 664.70
Department of Health,Guys and St Thomas NHS Foundation Trust,27/05/2021,(81200) Medical Surgical Supplies & Equipment,(id:42221) Medical Specialties,CORE SURGICAL LTD,id:14123774 , 663.60
Department of Health,Guys and St Thomas NHS Foundation Trust,14/05/2021,(81225) Medical Surgical Supplies & Equipment,(id:42221) Medical Specialties,ALCON EYE CARE UK LIMITED,id:14068414   ,    13227.23
Department of Health,Guys and St Thomas NHS Foundation Trust,14/05/2021,(81200) Medical Surgical Supplies & Equipment,(id:42223) Medical Specialties,MAINLINE INSTRUMENTS LTD,id:14087114    , 972.00
Department of Health,Guys and St Thomas NHS Foundation Trust,14/05/2021,(81200) Medical Surgical Supplies & Equipment,(id:42223) Medical Specialties,AB EHR DIGITAL LTD,id:14074074,1000.00
Department of Health,Guys and St Thomas NHS Foundation Trust,11/05/2021,(50202) Consultants,(id:42223) Medical Specialties,PRICEWATERHOUSECOOPERS LLP,id:14080934   ,2946.40
Department of Health,Guys and St Thomas NHS Foundation Trust,21/05/2021,(82000) Provisions & Kitchens,(id:42208) Medical Specialties,NHS SUPPLY CHAIN (MAIDSTONE),id:13964496 ,  30.42
Department of Health,Guys and St Thomas NHS Foundation Trust,07/05/2021,(81200) Medical Surgical Supplies & Equipment,(id:42208) Medical Specialties,MEDTRONIC LTD,id:13988014,    -7948.63
Department of Health,Guys and St Thomas NHS Foundation Trust,14/05/2021,(81200) Medical Surgical Supplies & Equipment,(id:42208) Medical Specialties,MEDTRONIC LTD,id:13882479, 824.52
Department of Health,Guys and St Thomas NHS Foundation Trust,14/05/2021,(81200) Medical Surgical Supplies & Equipment,(id:42208) Medical Specialties,INSULET INTERNATIONAL LTD,id:14073874   , 712.08
Department of Health,Guys and St Thomas NHS Foundation Trust,14/05/2021,(81200) Medical Surgical Supplies & Equipment,(id:42208) Medical Specialties,INSULET INTERNATIONAL LTD,id:14026455   , 712.08
Department of Health,Guys and St Thomas NHS Foundation Trust,14/05/2021,(81200) Medical Surgical Supplies & Equipment,(id:42208) Medical Specialties,INSULET INTERNATIONAL LTD,id:14038155   , 706.32
Department of Health,Guys and St Thomas NHS Foundation Trust,14/05/2021,(81200) Medical Surgical Supplies & Equipment,(id:42208) Medical Specialties,ROCHE DIABETES CARE LIMITED,id:13984675 , 709.00
Department of Health,Guys and St Thomas NHS Foundation Trust,27/05/2021,(81200) Medical Surgical Supplies & Equipment,(id:42208) Medical Specialties,DEXCOM INTERNATIONAL LTD,id:14053354    , 793.50
Department of Health,Guys and St Thomas NHS Foundation Trust,27/05/2021,(81200) Medical Surgical Supplies & Equipment,(id:42208) Medical Specialties,DEXCOM INTERNATIONAL LTD,id:13999454    , 793.50
Department of Health,Guys and St Thomas NHS Foundation Trust,27/05/2021,(81200) Medical Surgical Supplies & Equipment,(id:42208) Medical Specialties,DEXCOM INTERNATIONAL LTD,id:13999774    , 793.50
Department of Health,Guys and St Thomas NHS Foundation Trust,27/05/2021,(81200) Medical Surgical Supplies & Equipment,(id:42208) Medical Specialties,DEXCOM INTERNATIONAL LTD,id:13999934    , 793.50
Department of Health,Guys and St Thomas NHS Foundation Trust,27/05/2021,(81200) Medical Surgical Supplies & Equipment,(id:42208) Medical Specialties,DEXCOM INTERNATIONAL LTD,id:13999955    , 793.50
Department of Health,Guys and St Thomas NHS Foundation Trust,27/05/2021,(81200) Medical Surgical Supplies & Equipment,(id:42208) Medical Specialties,DEXCOM INTERNATIONAL LTD,id:13999070    , 793.50
Department of Health,Guys and St Thomas NHS Foundation Trust,27/05/2021,(81200) Medical Surgical Supplies & Equipment,(id:42208) Medical Specialties,DEXCOM INTERNATIONAL LTD,id:13999071    , 793.50
Department of Health,Guys and St Thomas NHS Foundation Trust,27/05/2021,(81200) Medical Surgical Supplies & Equipment,(id:42208) Medical Specialties,DEXCOM INTERNATIONAL LTD,id:14046055    , 793.50
Department of Health,Guys and St Thomas NHS Foundation Trust,27/05/2021,(81200) Medical Surgical Supplies & Equipment,(id:42208) Medical Specialties,DEXCOM INTERNATIONAL LTD,id:14047604    , 793.50
Department of Health,Guys and St Thomas NHS Foundation Trust,27/05/2021,(81200) Medical Surgical Supplies & Equipment,(id:42208) Medical Specialties,DEXCOM INTERNATIONAL LTD,id:14136035    , 793.50
Department of Health,Guys and St Thomas NHS Foundation Trust,27/05/2021,(81200) Medical Surgical Supplies & Equipment,(id:42208) Medical Specialties,DEXCOM INTERNATIONAL LTD,id:14053574    , 793.50
Department of Health,Guys and St Thomas NHS Foundation Trust,27/05/2021,(81200) Medical Surgical Supplies & Equipment,(id:42208) Medical Specialties,DEXCOM INTERNATIONAL LTD,id:14053994    , 793.50
Department of Health,Guys and St Thomas NHS Foundation Trust,27/05/2021,(81200) Medical Surgical Supplies & Equipment,(id:42208) Medical Specialties,DEXCOM INTERNATIONAL LTD,id:14000114    , 793.50
Department of Health,Guys and St Thomas NHS Foundation Trust,27/05/2021,(81200) Medical Surgical Supplies & Equipment,(id:42208) Medical Specialties,DEXCOM INTERNATIONAL LTD,id:13999734    , 793.50
Department of Health,Guys and St Thomas NHS Foundation Trust,27/05/2021,(81200) Medical Surgical Supplies & Equipment,(id:42208) Medical Specialties,DEXCOM INTERNATIONAL LTD,id:13999077    , 793.50
Department of Health,Guys and St Thomas NHS Foundation Trust,07/05/2021,(81000) Surgical Appliances,(id:42209) Medical Specialties,TALAR MADE ORTHOTICS LTD,id:14064515  ,  93.00
Department of Health,Guys and St Thomas NHS Foundation Trust,07/05/2021,(81000) Surgical Appliances,(id:42209) Medical Specialties,TALAR MADE ORTHOTICS LTD,id:14064294  , 114.00
Department of Health,Guys and St Thomas NHS Foundation Trust,07/05/2021,(81000) Surgical Appliances,(id:42209) Medical Specialties,TALAR MADE ORTHOTICS LTD,id:14064494  , 220.80
Department of Health,Guys and St Thomas NHS Foundation Trust,21/05/2021,(81100) Dressings,(id:42213) Medical Specialties,NHS SUPPLY CHAIN (MAIDSTONE),id:14006357   , 160.98
Department of Health,Guys and St Thomas NHS Foundation Trust,14/05/2021,(89595) Non-Healthcare from Foundation Trusts,(id:42213) Medical Specialties,SOUTH LONDON AND MAUDSLEY NHS FOUNDATION TRUST,id:14018394  ,1793.00
Department of Health,Guys and St Thomas NHS Foundation Trust,21/05/2021,(89595) Non-Healthcare from Foundation Trusts,(id:42213) Medical Specialties,SOUTH LONDON AND MAUDSLEY NHS FOUNDATION TRUST,id:13905759  ,1793.00
Department of Health,Guys and St Thomas NHS Foundation Trust,21/05/2021,(81000) Surgical Appliances,(id:42213) Medical Specialties,TALAR MADE ORTHOTICS LTD,id:14117156  , 315.08
Department of Health,Guys and St Thomas NHS Foundation Trust,21/05/2021,(82800) Bedding & Linen,(id:42205) Medical Specialties,NHS SUPPLY CHAIN (MAIDSTONE),id:14041934  , 271.28
Department of Health,Guys and St Thomas NHS Foundation Trust,21/05/2021,(89440) Research and Development,(id:1869419) Medical Specialties,MAWDSLEY BROOKS LTD,id:14099126,4680.00
Department of Health,Guys and St Thomas NHS Foundation Trust,27/05/2021,(83610) IT Costs,(id:41937) Medical Specialties,COMPUTACENTER UK LTD,id:14006054  ,1104.00
Department of Health,Guys and St Thomas NHS Foundation Trust,21/05/2021,(82000) Provisions & Kitchens,(id:41937) Medical Specialties,NHS SUPPLY CHAIN (MAIDSTONE),id:14006357 , 278.88
Department of Health,Guys and St Thomas NHS Foundation Trust,21/05/2021,(82600) Uniforms & Clothing,(id:41937) Medical Specialties,NHS SUPPLY CHAIN (MAIDSTONE),id:14041934   ,  61.20
Department of Health,Guys and St Thomas NHS Foundation Trust,11/05/2021,(51872) Physiotherapists,(id:42230) Therapies and Rehabilitation,PRICEWATERHOUSECOOPERS LLP,id:14080934    ,1086.68
Department of Health,Guys and St Thomas NHS Foundation Trust,12/05/2021,(51872) Physiotherapists,(id:42230) Therapies and Rehabilitation,PRICEWATERHOUSECOOPERS LLP,id:14081734    ,1376.06
Department of Health,Guys and St Thomas NHS Foundation Trust,26/05/2021,(51872) Physiotherapists,(id:42230) Therapies and Rehabilitation,PRICEWATERHOUSECOOPERS LLP,id:14136634    ,1376.06
Department of Health,Guys and St Thomas NHS Foundation Trust,21/05/2021,(82800) Bedding & Linen,(id:42232) Therapies and Rehabilitation,NHS SUPPLY CHAIN (MAIDSTONE),id:14041934   ,  70.24
Department of Health,Guys and St Thomas NHS Foundation Trust,21/05/2021,(81200) Medical Surgical Supplies & Equipment,(id:42232) Therapies and Rehabilitation,NHS SUPPLY CHAIN (MAIDSTONE),id:14006357 ,1920.00
Department of Health,Guys and St Thomas NHS Foundation Trust,21/05/2021,(81200) Medical Surgical Supplies & Equipment,(id:42232) Therapies and Rehabilitation,NHS SUPPLY CHAIN (MAIDSTONE),id:14041934 , 176.40
Department of Health,Guys and St Thomas NHS Foundation Trust,26/05/2021,(51872) Physiotherapists,(id:42232) Therapies and Rehabilitation,PRICEWATERHOUSECOOPERS LLP,id:14136634    ,5272.90
Department of Health,Guys and St Thomas NHS Foundation Trust,07/05/2021,(81225) Medical Surgical Supplies & Equipment,(id:42239) Therapies and Rehabilitation,PROMEDICS ORTHOPAEDICS LTD,id:14049614   , 369.09
Department of Health,Guys and St Thomas NHS Foundation Trust,21/05/2021,(81225) Medical Surgical Supplies & Equipment,(id:42239) Therapies and Rehabilitation,NHS SUPPLY CHAIN (MAIDSTONE),id:14006357 ,  22.20
Department of Health,Guys and St Thomas NHS Foundation Trust,14/05/2021,(81200) Medical Surgical Supplies & Equipment,(id:42239) Therapies and Rehabilitation,PERFORMANCE HEALTH INTERNATIONAL LTD (PATTERSON),id:14060614 , 368.90
Department of Health,Guys and St Thomas NHS Foundation Trust,11/05/2021,(51462) Occupational Therapists,(id:42240) Therapies and Rehabilitation,PRICEWATERHOUSECOOPERS LLP,id:14080934  ,1919.36
Department of Health,Guys and St Thomas NHS Foundation Trust,12/05/2021,(51472) Occupational Therapists,(id:42240) Therapies and Rehabilitation,PRICEWATERHOUSECOOPERS LLP,id:14081734  ,5725.79
Department of Health,Guys and St Thomas NHS Foundation Trust,21/05/2021,(81200) Medical Surgical Supplies & Equipment,(id:590490) Therapies and Rehabilitation,NHS SUPPLY CHAIN (MAIDSTONE),id:14006357, 138.24
Department of Health,Guys and St Thomas NHS Foundation Trust,14/05/2021,(81000) Surgical Appliances,(id:590498) Therapies and Rehabilitation,KENWARD ORTHOPAEDIC LTD,id:13881935   ,    15638.90
Department of Health,Guys and St Thomas NHS Foundation Trust,14/05/2021,(81000) Surgical Appliances,(id:590498) Therapies and Rehabilitation,KENWARD ORTHOPAEDIC LTD,id:13950298   ,    15253.59
Department of Health,Guys and St Thomas NHS Foundation Trust,14/05/2021,(81200) Medical Surgical Supplies & Equipment,(id:590499) Therapies and Rehabilitation,INVACARE LTD,id:14025716 ,2530.80
Department of Health,Guys and St Thomas NHS Foundation Trust,27/05/2021,(81200) Medical Surgical Supplies & Equipment,(id:590499) Therapies and Rehabilitation,INVACARE LTD,id:14099854 ,1496.40
Department of Health,Guys and St Thomas NHS Foundation Trust,27/05/2021,(81200) Medical Surgical Supplies & Equipment,(id:590499) Therapies and Rehabilitation,INVACARE LTD,id:14099934 , 689.05
Department of Health,Guys and St Thomas NHS Foundation Trust,27/05/2021,(81200) Medical Surgical Supplies & Equipment,(id:590499) Therapies and Rehabilitation,INVACARE LTD,id:14100254 ,1339.20
Department of Health,Guys and St Thomas NHS Foundation Trust,27/05/2021,(81225) Medical Surgical Supplies & Equipment,(id:590499) Therapies and Rehabilitation,SUNRISE MEDICAL LIMITED,id:14102976,1071.36
Department of Health,Guys and St Thomas NHS Foundation Trust,27/05/2021,(84400) Transport,(id:1042419) Therapies and Rehabilitation,CITYSPRINT (UK) LTD,id:14088239 , 439.30
Department of Health,Guys and St Thomas NHS Foundation Trust,21/05/2021,(89440) Research and Development,(id:1772419) Clinical Imaging & Med Physics,KINGS COLLEGE LONDON:03529700,id:14099234    ,6449.93
Department of Health,Guys and St Thomas NHS Foundation Trust,27/05/2021,(81200) Medical Surgical Supplies & Equipment,(id:42366) Clinical Imaging & Med Physics,DELTA SURGICAL LTD,id:14118064    ,1922.10
Department of Health,Guys and St Thomas NHS Foundation Trust,21/05/2021,(83400) Office Equipment,(id:42366) Clinical Imaging & Med Physics,NHS SUPPLY CHAIN (MAIDSTONE),id:13964496, 218.34
Department of Health,Guys and St Thomas NHS Foundation Trust,21/05/2021,(81500) X Ray Equipment Purchase,(id:42366) Clinical Imaging & Med Physics,BAYER PLC,id:14098732 ,2131.20
Department of Health,Guys and St Thomas NHS Foundation Trust,27/05/2021,(82600) Uniforms & Clothing,(id:42367) Clinical Imaging & Med Physics,BUNZL HEALTHCARE,id:14120574    , 572.58
Department of Health,Guys and St Thomas NHS Foundation Trust,21/05/2021,(82000) Provisions & Kitchens,(id:42367) Clinical Imaging & Med Physics,NHS SUPPLY CHAIN (MAIDSTONE),id:14041934,  29.82
Department of Health,Guys and St Thomas NHS Foundation Trust,21/05/2021,(83400) Office Equipment,(id:42367) Clinical Imaging & Med Physics,NHS SUPPLY CHAIN (MAIDSTONE),id:14041934, 293.89
Department of Health,Guys and St Thomas NHS Foundation Trust,21/05/2021,(82800) Bedding & Linen,(id:42367) Clinical Imaging & Med Physics,NHS SUPPLY CHAIN (MAIDSTONE),id:14006357 , 632.71
Department of Health,Guys and St Thomas NHS Foundation Trust,21/05/2021,(81400) Medical Surgical Supplies & Equipment,(id:42367) Clinical Imaging & Med Physics,BAYER PLC,id:14109675   ,2015.00
Department of Health,Guys and St Thomas NHS Foundation Trust,07/05/2021,(81200) Medical Surgical Supplies & Equipment,(id:42367) Clinical Imaging & Med Physics,BOSTON SCIENTIFIC LTD,id:14009113 , 660.00
Department of Health,Guys and St Thomas NHS Foundation Trust,07/05/2021,(81200) Medical Surgical Supplies & Equipment,(id:42367) Clinical Imaging & Med Physics,BOSTON SCIENTIFIC LTD,id:14009111 , 670.14
Department of Health,Guys and St Thomas NHS Foundation Trust,14/05/2021,(81200) Medical Surgical Supplies & Equipment,(id:42367) Clinical Imaging & Med Physics,BOSTON SCIENTIFIC LTD,id:14019316 , 600.00
Department of Health,Guys and St Thomas NHS Foundation Trust,21/05/2021,(81200) Medical Surgical Supplies & Equipment,(id:42367) Clinical Imaging & Med Physics,MEDTRONIC LTD,id:14047337    ,3240.00
Department of Health,Guys and St Thomas NHS Foundation Trust,21/05/2021,(81200) Medical Surgical Supplies & Equipment,(id:42367) Clinical Imaging & Med Physics,TERUMO UK LTD,id:14088055    , 564.00
Department of Health,Guys and St Thomas NHS Foundation Trust,21/05/2021,(81200) Medical Surgical Supplies & Equipment,(id:42367) Clinical Imaging & Med Physics,BOSTON SCIENTIFIC LTD,id:14059216 , 564.00
Department of Health,Guys and St Thomas NHS Foundation Trust,21/05/2021,(81200) Medical Surgical Supplies & Equipment,(id:42367) Clinical Imaging & Med Physics,BOSTON SCIENTIFIC LTD,id:14055728 , 660.00
Department of Health,Guys and St Thomas NHS Foundation Trust,27/05/2021,(81200) Medical Surgical Supplies & Equipment,(id:42367) Clinical Imaging & Med Physics,MEDTRONIC LTD,id:14064956    ,2880.00
Department of Health,Guys and St Thomas NHS Foundation Trust,27/05/2021,(81200) Medical Surgical Supplies & Equipment,(id:42367) Clinical Imaging & Med Physics,TELEFLEX MEDICAL,id:14081497 , 660.00
Department of Health,Guys and St Thomas NHS Foundation Trust,27/05/2021,(81200) Medical Surgical Supplies & Equipment,(id:42367) Clinical Imaging & Med Physics,BOSTON SCIENTIFIC LTD,id:14069793 , 624.00
Department of Health,Guys and St Thomas NHS Foundation Trust,07/05/2021,(50200) Consultants,(id:42368) Clinical Imaging & Med Physics,KINGS COLLEGE LONDON:03529700,id:13932274    ,5171.55
Department of Health,Guys and St Thomas NHS Foundation Trust,07/05/2021,(50200) Consultants,(id:42368) Clinical Imaging & Med Physics,KINGS COLLEGE LONDON:03529700,id:13786456    ,5175.90
Department of Health,Guys and St Thomas NHS Foundation Trust,11/05/2021,(52062) Radiographers,(id:42368) Clinical Imaging & Med Physics,PRICEWATERHOUSECOOPERS LLP,id:14080934,1801.73
Department of Health,Guys and St Thomas NHS Foundation Trust,11/05/2021,(50202) Consultants,(id:42368) Clinical Imaging & Med Physics,PRICEWATERHOUSECOOPERS LLP,id:14080934  ,2390.49
Department of Health,Guys and St Thomas NHS Foundation Trust,21/05/2021,(82000) Provisions & Kitchens,(id:42372) Clinical Imaging & Med Physics,NHS SUPPLY CHAIN (MAIDSTONE),id:14041934,  15.78
Department of Health,Guys and St Thomas NHS Foundation Trust,21/05/2021,(83400) Office Equipment,(id:42372) Clinical Imaging & Med Physics,NHS SUPPLY CHAIN (MAIDSTONE),id:14041934,  49.97
Department of Health,Guys and St Thomas NHS Foundation Trust,21/05/2021,(82800) Bedding & Linen,(id:42372) Clinical Imaging & Med Physics,NHS SUPPLY CHAIN (MAIDSTONE),id:13964496 ,   3.38
Department of Health,Guys and St Thomas NHS Foundation Trust,14/05/2021,(81500) X Ray Equipment Purchase,(id:42372) Clinical Imaging & Med Physics,CURIUM PHARMA UK LTD,id:14049354,1994.40
Department of Health,Guys and St Thomas NHS Foundation Trust,21/05/2021,(81500) X Ray Equipment Purchase,(id:42372) Clinical Imaging & Med Physics,COURIER NETWORK SYSTEMS (CNS),id:14092695 ,6299.82
Department of Health,Guys and St Thomas NHS Foundation Trust,14/05/2021,(81500) X Ray Equipment Purchase,(id:4187419) Clinical Imaging & Med Physics,CURIUM PHARMA UK LTD,id:13954034   ,5358.00
Department of Health,Guys and St Thomas NHS Foundation Trust,27/05/2021,(81400) Medical Surgical Supplies & Equipment,(id:42378) Clinical Imaging & Med Physics,PHOENIX DOSIMETRY LTD,id:14118920 ,2664.00
Department of Health,Guys and St Thomas NHS Foundation Trust,27/05/2021,(81500) X Ray Equipment Purchase,(id:42378) Clinical Imaging & Med Physics,ONCOLOGY SYSTEMS LTD,id:14134677,2973.60
Department of Health,Guys and St Thomas NHS Foundation Trust,14/05/2021,(81400) Medical Surgical Supplies & Equipment,(id:42379) Clinical Imaging & Med Physics,B.BRAUN MEDICAL LTD,id:14071436   ,    15000.00
Department of Health,Guys and St Thomas NHS Foundation Trust,21/05/2021,(81400) Medical Surgical Supplies & Equipment,(id:42379) Clinical Imaging & Med Physics,TENACORE UK LTD,id:14073374  , 695.00
Department of Health,Guys and St Thomas NHS Foundation Trust,14/05/2021,(81200) Medical Surgical Supplies & Equipment,(id:42379) Clinical Imaging & Med Physics,PHILIPS HEALTHCARE,id:13122399    , 898.80
Department of Health,Guys and St Thomas NHS Foundation Trust,14/05/2021,(81200) Medical Surgical Supplies & Equipment,(id:42379) Clinical Imaging & Med Physics,PHILIPS HEALTHCARE,id:13316783    ,1054.20
Department of Health,Guys and St Thomas NHS Foundation Trust,21/05/2021,(81200) Medical Surgical Supplies & Equipment,(id:42379) Clinical Imaging & Med Physics,NHS SUPPLY CHAIN (MAIDSTONE),id:14041934    , 151.20
Department of Health,Guys and St Thomas NHS Foundation Trust,27/05/2021,(81250) Medical Surgical Supplies & Equipment,(id:1348419) Clinical Imaging & Med Physics,AQUILANT DISTRIBUTION,id:14118184    ,1044.00
Department of Health,Guys and St Thomas NHS Foundation Trust,21/05/2021,(81200) Medical Surgical Supplies & Equipment,(id:1348419) Clinical Imaging & Med Physics,MACROMED (UK) LTD,id:14110421   ,3030.00
Department of Health,Guys and St Thomas NHS Foundation Trust,21/05/2021,(81200) Medical Surgical Supplies & Equipment,(id:42255) Integrated Local Services,NHS SUPPLY CHAIN (MAIDSTONE),id:14041934    , 416.40
Department of Health,Guys and St Thomas NHS Foundation Trust,21/05/2021,(81200) Medical Surgical Supplies & Equipment,(id:42255) Integrated Local Services,NHS SUPPLY CHAIN (MAIDSTONE),id:14006357    ,  98.96
Department of Health,Guys and St Thomas NHS Foundation Trust,14/05/2021,(82000) Provisions & Kitchens,(id:4631420) Integrated Local Services,AMMO & COMPANY LTD,id:14087177   , 948.00
Department of Health,Guys and St Thomas NHS Foundation Trust,21/05/2021,(81700) Lab Equipment Purchase,(id:590563) Integrated Local Services,NHS SUPPLY CHAIN (MAIDSTONE),id:14006357   ,  29.11
Department of Health,Guys and St Thomas NHS Foundation Trust,21/05/2021,(81100) Dressings,(id:590579) Integrated Local Services,NHS SUPPLY CHAIN (MAIDSTONE),id:14006357 ,   2.04
Department of Health,Guys and St Thomas NHS Foundation Trust,27/05/2021,(50562) Qualified Nursing Staff,(id:1885424) Integrated Local Services,MSI GROUP LTD,id:14138768 ,1649.51
Department of Health,Guys and St Thomas NHS Foundation Trust,07/05/2021,(50572) Qualified Nursing Staff,(id:699422) Integrated Local Services,MSI GROUP LTD,id:14063706  , 491.81
Department of Health,Guys and St Thomas NHS Foundation Trust,27/05/2021,(50572) Qualified Nursing Staff,(id:699422) Integrated Local Services,MSI GROUP LTD,id:14138956  ,1303.75
Department of Health,Guys and St Thomas NHS Foundation Trust,21/05/2021,(50572) Qualified Nursing Staff,(id:699422) Integrated Local Services,MSI GROUP LTD,id:14116325  ,1438.69
Department of Health,Guys and St Thomas NHS Foundation Trust,14/05/2021,(84200) Rental under Operating Lease,(id:590523) Integrated Local Services,MARSH LTD,id:14076595 ,2187.56
Department of Health,Guys and St Thomas NHS Foundation Trust,11/05/2021,(51472) Occupational Therapists,(id:1888419) Integrated Local Services,PRICEWATERHOUSECOOPERS LLP,id:14080934   ,1239.28
Department of Health,Guys and St Thomas NHS Foundation Trust,07/05/2021,(86300) Healthcare from non-NHS bodies,(id:684420) Integrated Local Services,GRIPABLE LIMITED,id:14003955  ,2280.00
Department of Health,Guys and St Thomas NHS Foundation Trust,11/05/2021,(51462) Occupational Therapists,(id:1913419) Integrated Local Services,PRICEWATERHOUSECOOPERS LLP,id:14080934   ,1748.16
Department of Health,Guys and St Thomas NHS Foundation Trust,26/05/2021,(51462) Occupational Therapists,(id:1913419) Integrated Local Services,PRICEWATERHOUSECOOPERS LLP,id:14136635   ,2518.25
Department of Health,Guys and St Thomas NHS Foundation Trust,12/05/2021,(51862) Physiotherapists,(id:590504) Integrated Local Services,PRICEWATERHOUSECOOPERS LLP,id:14081734 ,2506.98
Department of Health,Guys and St Thomas NHS Foundation Trust,26/05/2021,(51462) Occupational Therapists,(id:684419) Integrated Local Services,PRICEWATERHOUSECOOPERS LLP,id:14136635    ,1261.61
Department of Health,Guys and St Thomas NHS Foundation Trust,11/05/2021,(51862) Physiotherapists,(id:684419) Integrated Local Services,PRICEWATERHOUSECOOPERS LLP,id:14080934 ,1970.29
Department of Health,Guys and St Thomas NHS Foundation Trust,26/05/2021,(51862) Physiotherapists,(id:684419) Integrated Local Services,PRICEWATERHOUSECOOPERS LLP,id:14136635 ,1978.70
Department of Health,Guys and St Thomas NHS Foundation Trust,14/05/2021,(81400) Medical Surgical Supplies & Equipment,(id:684419) Integrated Local Services,SPACELABS HEALTHCARE LTD,id:14090735  , 798.48
Department of Health,Guys and St Thomas NHS Foundation Trust,21/05/2021,(83400) Office Equipment,(id:590470) Integrated Local Services,NHS SUPPLY CHAIN (MAIDSTONE),id:14006357    ,   1.74
Department of Health,Guys and St Thomas NHS Foundation Trust,21/05/2021,(82600) Uniforms & Clothing,(id:590470) Integrated Local Services,NHS SUPPLY CHAIN (MAIDSTONE),id:14006357 ,  27.00
Department of Health,Guys and St Thomas NHS Foundation Trust,21/05/2021,(81200) Medical Surgical Supplies & Equipment,(id:590470) Integrated Local Services,NHS SUPPLY CHAIN (MAIDSTONE),id:13964496   , 510.00
Department of Health,Guys and St Thomas NHS Foundation Trust,14/05/2021,(84200) Rental under Operating Lease,(id:590471) Integrated Local Services,MARSH LTD,id:14076595 ,4375.12
Department of Health,Guys and St Thomas NHS Foundation Trust,21/05/2021,(81100) Dressings,(id:590473) Integrated Local Services,NHS SUPPLY CHAIN (MAIDSTONE),id:14006357 ,  40.67
Department of Health,Guys and St Thomas NHS Foundation Trust,14/05/2021,(84200) Rental under Operating Lease,(id:590473) Integrated Local Services,MARSH LTD,id:14076595 ,2187.56
Department of Health,Guys and St Thomas NHS Foundation Trust,27/05/2021,(50552) Qualified Nursing Staff,(id:590522) Integrated Local Services,MSI GROUP LTD,id:14138939  , 915.62
Department of Health,Guys and St Thomas NHS Foundation Trust,14/05/2021,(84200) Rental under Operating Lease,(id:590535) Integrated Local Services,MARSH LTD,id:14076595 ,6562.68
Department of Health,Guys and St Thomas NHS Foundation Trust,21/05/2021,(81225) Medical Surgical Supplies & Equipment,(id:590527) Integrated Local Services,BENMOR MEDICAL UK LTD,id:13608215,1926.00
Department of Health,Guys and St Thomas NHS Foundation Trust,21/05/2021,(81225) Medical Surgical Supplies & Equipment,(id:590527) Integrated Local Services,BENMOR MEDICAL UK LTD,id:13477794,1990.20
Department of Health,Guys and St Thomas NHS Foundation Trust,14/05/2021,(89270) Establishment,(id:590527) Integrated Local Services,ASSIST SECURITY LIMITED,id:14018414  ,5040.00
Department of Health,Guys and St Thomas NHS Foundation Trust,27/05/2021,(83350) Premises Services,(id:590527) Integrated Local Services,ASSIST SECURITY LIMITED,id:14137238   ,3390.00
Department of Health,Guys and St Thomas NHS Foundation Trust,21/05/2021,(83360) Premises Services,(id:590526) Integrated Local Services,CARLISLE SECURITY SERVICES LTD,id:14072534 ,    21164.54
Department of Health,Guys and St Thomas NHS Foundation Trust,21/05/2021,(82800) Bedding & Linen,(id:903421) Integrated Local Services,NHS SUPPLY CHAIN (MAIDSTONE),id:14041934,  62.21
Department of Health,Guys and St Thomas NHS Foundation Trust,21/05/2021,(81100) Dressings,(id:903421) Integrated Local Services,NHS SUPPLY CHAIN (MAIDSTONE),id:14041934 ,  56.34
Department of Health,Guys and St Thomas NHS Foundation Trust,14/05/2021,(83765) Rent,(id:903421) Integrated Local Services,SELDOC LTD,id:14067714    , 600.00
Department of Health,Guys and St Thomas NHS Foundation Trust,14/05/2021,(83765) Rent,(id:903421) Integrated Local Services,SELDOC LTD,id:14067715    ,    20878.00
Department of Health,Guys and St Thomas NHS Foundation Trust,21/05/2021,(50552) Qualified Nursing Staff,(id:4609420) Integrated Local Services,NURSING 2000 LTD,id:14063713   ,1276.18
Department of Health,Guys and St Thomas NHS Foundation Trust,27/05/2021,(50552) Qualified Nursing Staff,(id:4609420) Integrated Local Services,NURSING 2000 LTD,id:14095849   ,1380.39
Department of Health,Guys and St Thomas NHS Foundation Trust,21/05/2021,(81275) Medical Surgical Supplies & Equipment,(id:42518) Evelina Womens Services,NHS SUPPLY CHAIN (MAIDSTONE),id:14041934 ,  11.86
Department of Health,Guys and St Thomas NHS Foundation Trust,21/05/2021,(55042) Admin & Clerical,(id:42517) Evelina Womens Services,VENN GROUP LTD,id:14114448 , 854.56
Department of Health,Guys and St Thomas NHS Foundation Trust,21/05/2021,(55042) Admin & Clerical,(id:42517) Evelina Womens Services,VENN GROUP LTD,id:14114565 ,2905.49
Department of Health,Guys and St Thomas NHS Foundation Trust,14/05/2021,(81100) Dressings,(id:42517) Evelina Womens Services,365 HEALTHCARE LTD,id:14056974    , 720.00
Department of Health,Guys and St Thomas NHS Foundation Trust,27/05/2021,(89260) Clinical Services,(id:42517) Evelina Womens Services,DR JAN GRACE,id:14120734  ,9010.00
Department of Health,Guys and St Thomas NHS Foundation Trust,07/05/2021,(89640) Non-Healthcare from NHS Trusts,(id:42517) Evelina Womens Services,LEEDS TEACHING HOSPITALS NHS TRUST,id:13327061  ,1857.92
Department of Health,Guys and St Thomas NHS Foundation Trust,07/05/2021,(89640) Non-Healthcare from NHS Trusts,(id:42517) Evelina Womens Services,LEEDS TEACHING HOSPITALS NHS TRUST,id:13164334  ,4195.34
Department of Health,Guys and St Thomas NHS Foundation Trust,21/05/2021,(83400) Office Equipment,(id:42514) Evelina Womens Services,NHS SUPPLY CHAIN (MAIDSTONE),id:14041934  ,  29.45
Department of Health,Guys and St Thomas NHS Foundation Trust,27/05/2021,(83500) Furniture & Fittings,(id:42514) Evelina Womens Services,OFFICE DEPOT UK LTD,id:14081474  , 774.00
Department of Health,Guys and St Thomas NHS Foundation Trust,21/05/2021,(81200) Medical Surgical Supplies & Equipment,(id:42513) Evelina Womens Services,NHS SUPPLY CHAIN (MAIDSTONE),id:14041934 , 549.25
Department of Health,Guys and St Thomas NHS Foundation Trust,21/05/2021,(81225) Medical Surgical Supplies & Equipment,(id:42513) Evelina Womens Services,NHS SUPPLY CHAIN (MAIDSTONE),id:14041934 ,  24.25
Department of Health,Guys and St Thomas NHS Foundation Trust,21/05/2021,(81100) Dressings,(id:42509) Evelina Womens Services,NHS SUPPLY CHAIN (MAIDSTONE),id:14041934    ,  61.72
Department of Health,Guys and St Thomas NHS Foundation Trust,07/05/2021,(81200) Medical Surgical Supplies & Equipment,(id:42509) Evelina Womens Services,KEBOMED UK,id:14036219    , 792.00
Department of Health,Guys and St Thomas NHS Foundation Trust,07/05/2021,(81200) Medical Surgical Supplies & Equipment,(id:42509) Evelina Womens Services,STRYKER UK LTD,id:14048763,1699.20
Department of Health,Guys and St Thomas NHS Foundation Trust,14/05/2021,(81200) Medical Surgical Supplies & Equipment,(id:42509) Evelina Womens Services,STRYKER UK LTD,id:14057795, 281.28
Department of Health,Guys and St Thomas NHS Foundation Trust,21/05/2021,(81100) Dressings,(id:42510) Evelina Womens Services,NHS SUPPLY CHAIN (MAIDSTONE),id:13964496    ,   5.03
Department of Health,Guys and St Thomas NHS Foundation Trust,21/05/2021,(83400) Office Equipment,(id:42486) Evelina Womens Services,NHS SUPPLY CHAIN (MAIDSTONE),id:14006357  ,  19.02
Department of Health,Guys and St Thomas NHS Foundation Trust,27/05/2021,(80200) Drug Costs,(id:42486) Evelina Womens Services,THERMO FISHER DIAGNOSTICS LTD,id:14135854  ,9896.87
Department of Health,Guys and St Thomas NHS Foundation Trust,21/05/2021,(81225) Medical Surgical Supplies & Equipment,(id:42486) Evelina Womens Services,NHS SUPPLY CHAIN (MAIDSTONE),id:14041934 ,  37.10
Department of Health,Guys and St Thomas NHS Foundation Trust,21/05/2021,(82800) Bedding & Linen,(id:42491) Evelina Womens Services,NHS SUPPLY CHAIN (MAIDSTONE),id:14041934   , 111.45
Department of Health,Guys and St Thomas NHS Foundation Trust,21/05/2021,(82600) Uniforms & Clothing,(id:42492) Evelina Womens Services,NHS SUPPLY CHAIN (MAIDSTONE),id:14006357    ,  61.53
Department of Health,Guys and St Thomas NHS Foundation Trust,21/05/2021,(82700) Uniforms & Clothing,(id:42492) Evelina Womens Services,NHS SUPPLY CHAIN (MAIDSTONE),id:13964496    ,  57.47
Department of Health,Guys and St Thomas NHS Foundation Trust,21/05/2021,(82000) Provisions & Kitchens,(id:42492) Evelina Womens Services,NHS SUPPLY CHAIN (MAIDSTONE),id:13964496  , 210.20
Department of Health,Guys and St Thomas NHS Foundation Trust,21/05/2021,(82800) Bedding & Linen,(id:42492) Evelina Womens Services,NHS SUPPLY CHAIN (MAIDSTONE),id:14041934   , 703.46
Department of Health,Guys and St Thomas NHS Foundation Trust,27/05/2021,(81100) Dressings,(id:42492) Evelina Womens Services,365 HEALTHCARE LTD,id:14123794    , 996.00
Department of Health,Guys and St Thomas NHS Foundation Trust,27/05/2021,(81200) Medical Surgical Supplies & Equipment,(id:42492) Evelina Womens Services,COOK UK LTD,id:14081170   , 811.44
Department of Health,Guys and St Thomas NHS Foundation Trust,14/05/2021,(81200) Medical Surgical Supplies & Equipment,(id:42492) Evelina Womens Services,STERIS SOLUTIONS LTD,id:13459534    ,   9.41
Department of Health,Guys and St Thomas NHS Foundation Trust,21/05/2021,(81225) Medical Surgical Supplies & Equipment,(id:42492) Evelina Womens Services,NHS SUPPLY CHAIN (MAIDSTONE),id:14006357 ,  53.55
Department of Health,Guys and St Thomas NHS Foundation Trust,14/05/2021,(50562) Qualified Nursing Staff,(id:42492) Evelina Womens Services,MSI GROUP LTD,id:14095529, 431.37
Department of Health,Guys and St Thomas NHS Foundation Trust,21/05/2021,(81200) Medical Surgical Supplies & Equipment,(id:42493) Evelina Womens Services,NHS SUPPLY CHAIN (MAIDSTONE),id:14041934 , 710.52
Department of Health,Guys and St Thomas NHS Foundation Trust,21/05/2021,(82800) Bedding & Linen,(id:42497) Evelina Womens Services,NHS SUPPLY CHAIN (MAIDSTONE),id:14041934   ,  94.50
Department of Health,Guys and St Thomas NHS Foundation Trust,21/05/2021,(82800) Bedding & Linen,(id:42331) Evelina Central,NHS SUPPLY CHAIN (MAIDSTONE),id:13964496 ,  60.36
Department of Health,Guys and St Thomas NHS Foundation Trust,21/05/2021,(81200) Medical Surgical Supplies & Equipment,(id:42331) Evelina Central,NHS SUPPLY CHAIN (MAIDSTONE),id:13964496    , 701.06
Department of Health,Guys and St Thomas NHS Foundation Trust,21/05/2021,(81200) Medical Surgical Supplies & Equipment,(id:42331) Evelina Central,NHS SUPPLY CHAIN (MAIDSTONE),id:14041934    ,1240.28
Department of Health,Guys and St Thomas NHS Foundation Trust,21/05/2021,(81255) Medical Surgical Supplies & Equipment,(id:42331) Evelina Central,NHS SUPPLY CHAIN (MAIDSTONE),id:14041934    ,  18.72
Department of Health,Guys and St Thomas NHS Foundation Trust,21/05/2021,(82000) Provisions & Kitchens,(id:42331) Evelina Central,NHS SUPPLY CHAIN (MAIDSTONE),id:14041934,  85.16
Department of Health,Guys and St Thomas NHS Foundation Trust,21/05/2021,(82000) Provisions & Kitchens,(id:42348) Evelina Central,NHS SUPPLY CHAIN (MAIDSTONE),id:14006357, 134.67
Department of Health,Guys and St Thomas NHS Foundation Trust,21/05/2021,(82800) Bedding & Linen,(id:42348) Evelina Central,NHS SUPPLY CHAIN (MAIDSTONE),id:14041934 , 129.94
Department of Health,Guys and St Thomas NHS Foundation Trust,21/05/2021,(83400) Office Equipment,(id:42348) Evelina Central,NHS SUPPLY CHAIN (MAIDSTONE),id:14006357, 332.11
Department of Health,Guys and St Thomas NHS Foundation Trust,21/05/2021,(81275) Medical Surgical Supplies & Equipment,(id:42348) Evelina Central,NHS SUPPLY CHAIN (MAIDSTONE),id:14006357    ,  21.59
Department of Health,Guys and St Thomas NHS Foundation Trust,21/05/2021,(81275) Medical Surgical Supplies & Equipment,(id:42348) Evelina Central,NHS SUPPLY CHAIN (MAIDSTONE),id:14041934    ,  21.59
Department of Health,Guys and St Thomas NHS Foundation Trust,27/05/2021,(81200) Medical Surgical Supplies & Equipment,(id:2967419) Evelina Central,LJA MIERS & CO LTD,id:14117317  , 513.60
Department of Health,Guys and St Thomas NHS Foundation Trust,21/05/2021,(83880) Building & Engineering,(id:42316) Evelina Central,THORLUX LIGHTING,id:13970754 , 737.32
Department of Health,Guys and St Thomas NHS Foundation Trust,27/05/2021,(89595) Non-Healthcare from Foundation Trusts,(id:42316) Evelina Central,BIRMINGHAM WOMENS AND CHILDREN'S HOSPITAL NHS FOUNDATION TRUST,id:8835591 ,1296.00
Department of Health,Guys and St Thomas NHS Foundation Trust,14/05/2021,(55092) Admin & Clerical,(id:42316) Evelina Central,ALLEN LANE,id:14095486   ,2398.50
Department of Health,Guys and St Thomas NHS Foundation Trust,14/05/2021,(55092) Admin & Clerical,(id:42316) Evelina Central,ALLEN LANE,id:14095823   ,2398.50
Department of Health,Guys and St Thomas NHS Foundation Trust,14/05/2021,(81225) Medical Surgical Supplies & Equipment,(id:590444) Evelina Community Services,SONOVA UK LTD,id:13983803  ,5404.81
Department of Health,Guys and St Thomas NHS Foundation Trust,07/05/2021,(86300) Healthcare from non-NHS bodies,(id:590445) Evelina Community Services,NATUS NICOLET UK LTD ( T/A OTOMETRICS UK),id:14011275 ,2673.00
Department of Health,Guys and St Thomas NHS Foundation Trust,14/05/2021,(84200) Rental under Operating Lease,(id:590549) Evelina Community Services,MARSH LTD,id:14076595,2187.56
Department of Health,Guys and St Thomas NHS Foundation Trust,14/05/2021,(84200) Rental under Operating Lease,(id:590451) Evelina Community Services,MARSH LTD,id:14076595,2187.56
Department of Health,Guys and St Thomas NHS Foundation Trust,07/05/2021,(84500) Establishment,(id:590451) Evelina Community Services,JCA GLOBAL LTD,id:13991595, 560.00
Department of Health,Guys and St Thomas NHS Foundation Trust,21/05/2021,(81200) Medical Surgical Supplies & Equipment,(id:590449) Evelina Community Services,NHS SUPPLY CHAIN (MAIDSTONE),id:14006357  , 421.08
Department of Health,Guys and St Thomas NHS Foundation Trust,14/05/2021,(81200) Medical Surgical Supplies & Equipment,(id:590548) Evelina Community Services,SCC PLC)SPECIALIST COMPUTER CENTRES,id:14087695, 300.00
Department of Health,Guys and St Thomas NHS Foundation Trust,21/05/2021,(81225) Medical Surgical Supplies & Equipment,(id:590452) Evelina Community Services,NHS SUPPLY CHAIN (MAIDSTONE),id:14006357  , 936.00
Department of Health,Guys and St Thomas NHS Foundation Trust,21/05/2021,(82800) Bedding & Linen,(id:590419) Evelina Community Services,NHS SUPPLY CHAIN (MAIDSTONE),id:14006357    ,  70.24
Department of Health,Guys and St Thomas NHS Foundation Trust,21/05/2021,(83500) Furniture & Fittings,(id:590537) Evelina Community Services,NHS SUPPLY CHAIN (MAIDSTONE),id:13964496    ,  96.00
Department of Health,Guys and St Thomas NHS Foundation Trust,07/05/2021,(50562) Qualified Nursing Staff,(id:590542) Evelina Community Services,ARTHUR RAI MEDICAL SERVICES LTD,id:14063636   , 790.20
Department of Health,Guys and St Thomas NHS Foundation Trust,27/05/2021,(50562) Qualified Nursing Staff,(id:590542) Evelina Community Services,ARTHUR RAI MEDICAL SERVICES LTD,id:14138828   ,1053.60
Department of Health,Guys and St Thomas NHS Foundation Trust,14/05/2021,(84200) Rental under Operating Lease,(id:590538) Evelina Community Services,MARSH LTD,id:14076595,2187.56
Department of Health,Guys and St Thomas NHS Foundation Trust,21/05/2021,(81200) Medical Surgical Supplies & Equipment,(id:2356419) Evelina Medicine & Neonatology,NHS SUPPLY CHAIN (MAIDSTONE),id:14006357  ,2582.12
Department of Health,Guys and St Thomas NHS Foundation Trust,14/05/2021,(50200) Consultants,(id:42349) Evelina Medicine & Neonatology,NORTH MIDDLESEX UNIVERSITY HOSPITAL NHS TRUST,id:13933784   ,3556.00
Department of Health,Guys and St Thomas NHS Foundation Trust,14/05/2021,(50200) Consultants,(id:42349) Evelina Medicine & Neonatology,NORTH MIDDLESEX UNIVERSITY HOSPITAL NHS TRUST,id:13933785   ,3556.00
Department of Health,Guys and St Thomas NHS Foundation Trust,21/05/2021,(81200) Medical Surgical Supplies & Equipment,(id:42349) Evelina Medicine & Neonatology,JOHNSON & JOHNSON MEDICAL LTD,id:14051947   ,2177.93
Department of Health,Guys and St Thomas NHS Foundation Trust,14/05/2021,(81200) Medical Surgical Supplies & Equipment,(id:42349) Evelina Medicine & Neonatology,SQUADRON MEDICAL LTD,id:13313668  ,  15.10
Department of Health,Guys and St Thomas NHS Foundation Trust,14/05/2021,(81200) Medical Surgical Supplies & Equipment,(id:42349) Evelina Medicine & Neonatology,RADIOMETER LTD,id:14054914   ,1267.20
Department of Health,Guys and St Thomas NHS Foundation Trust,07/05/2021,(80010) Drug Costs,(id:42349) Evelina Medicine & Neonatology,BAXTER HEALTHCARE LTD,id:13870517   ,2690.00
Department of Health,Guys and St Thomas NHS Foundation Trust,21/05/2021,(81230) Medical Surgical Supplies & Equipment,(id:42350) Evelina Medicine & Neonatology,MEDTRONIC LTD,id:14052255    , 674.50
Department of Health,Guys and St Thomas NHS Foundation Trust,27/05/2021,(81100) Dressings,(id:42350) Evelina Medicine & Neonatology,NXSTAGE MEDICAL UK LIMITED,id:13019781    , 600.00
Department of Health,Guys and St Thomas NHS Foundation Trust,21/05/2021,(83400) Office Equipment,(id:817420) Evelina Medicine & Neonatology,NHS SUPPLY CHAIN (MAIDSTONE),id:14006357    ,  11.30
Department of Health,Guys and St Thomas NHS Foundation Trust,07/05/2021,(50200) Consultants,(id:42335) Evelina Medicine & Neonatology,KINGS COLLEGE LONDON:03529700,id:13786456    ,4644.77
Department of Health,Guys and St Thomas NHS Foundation Trust,27/05/2021,(80100) Drug Costs,(id:42335) Evelina Medicine & Neonatology,BOC LTD :02107500,id:14094199  , 989.73
Department of Health,Guys and St Thomas NHS Foundation Trust,21/05/2021,(81100) Dressings,(id:42335) Evelina Medicine & Neonatology,NHS SUPPLY CHAIN (MAIDSTONE),id:14006357  , 333.44
Department of Health,Guys and St Thomas NHS Foundation Trust,21/05/2021,(89640) Non-Healthcare from NHS Trusts,(id:42335) Evelina Medicine & Neonatology,BARTS HEALTH NHS TRUST,id:14114174  ,4500.00
Department of Health,Guys and St Thomas NHS Foundation Trust,21/05/2021,(81000) Surgical Appliances,(id:42335) Evelina Medicine & Neonatology,TALAR MADE ORTHOTICS LTD,id:14116755 , 186.00
Department of Health,Guys and St Thomas NHS Foundation Trust,28/05/2021,(83500) Furniture & Fittings,(id:42335) Evelina Medicine & Neonatology,COMPLETE STORAGE & INTERIORS LTD,id:14141214  , 687.13
Department of Health,Guys and St Thomas NHS Foundation Trust,07/05/2021,(50200) Consultants,(id:42327) Evelina Medicine & Neonatology,KINGS COLLEGE LONDON:03529700,id:13786456    ,8484.43
Department of Health,Guys and St Thomas NHS Foundation Trust,21/05/2021,(81100) Dressings,(id:42327) Evelina Medicine & Neonatology,NHS SUPPLY CHAIN (MAIDSTONE),id:13964496  ,  38.54
Department of Health,Guys and St Thomas NHS Foundation Trust,07/05/2021,(81200) Medical Surgical Supplies & Equipment,(id:42327) Evelina Medicine & Neonatology,ARDO MEDICAL LTD,id:14046922 , 595.46
Department of Health,Guys and St Thomas NHS Foundation Trust,21/05/2021,(81200) Medical Surgical Supplies & Equipment,(id:42327) Evelina Medicine & Neonatology,ARDO MEDICAL LTD,id:14111216 , 595.46
Department of Health,Guys and St Thomas NHS Foundation Trust,21/05/2021,(83400) Office Equipment,(id:42327) Evelina Medicine & Neonatology,NHS SUPPLY CHAIN (MAIDSTONE),id:14041934, 195.42
Department of Health,Guys and St Thomas NHS Foundation Trust,27/05/2021,(81200) Medical Surgical Supplies & Equipment,(id:1196420) Evelina Medicine & Neonatology,DEXCOM INTERNATIONAL LTD,id:14118558 , 793.50
Department of Health,Guys and St Thomas NHS Foundation Trust,21/05/2021,(81700) Lab Equipment Purchase,(id:1196420) Evelina Medicine & Neonatology,NHS SUPPLY CHAIN (MAIDSTONE),id:14006357  , 526.56
Department of Health,Guys and St Thomas NHS Foundation Trust,21/05/2021,(81100) Dressings,(id:2496419) Evelina Medicine & Neonatology,NHS SUPPLY CHAIN (MAIDSTONE),id:14006357,  17.14
Department of Health,Guys and St Thomas NHS Foundation Trust,14/05/2021,(81275) Medical Surgical Supplies & Equipment,(id:2981419) Evelina Medicine & Neonatology,LABORIE MEDICAL TECHNOLOGIES UK,id:14068355    ,2227.20
Department of Health,Guys and St Thomas NHS Foundation Trust,07/05/2021,(81200) Medical Surgical Supplies & Equipment,(id:2981419) Evelina Medicine & Neonatology,GBUK ENTERAL UK,id:14029434, 864.00
Department of Health,Guys and St Thomas NHS Foundation Trust,21/05/2021,(50552) Qualified Nursing Staff,(id:41874) Evelina Medicine & Neonatology,GLOBE LOCUMS LTD,id:14114672, 285.93
Department of Health,Guys and St Thomas NHS Foundation Trust,21/05/2021,(81200) Medical Surgical Supplies & Equipment,(id:41874) Evelina Medicine & Neonatology,NHS SUPPLY CHAIN (MAIDSTONE),id:14041934    , 619.11
Department of Health,Guys and St Thomas NHS Foundation Trust,21/05/2021,(82000) Provisions & Kitchens,(id:41874) Evelina Medicine & Neonatology,NHS SUPPLY CHAIN (MAIDSTONE),id:14006357,   6.29
Department of Health,Guys and St Thomas NHS Foundation Trust,21/05/2021,(83400) Office Equipment,(id:41874) Evelina Medicine & Neonatology,NHS SUPPLY CHAIN (MAIDSTONE),id:14041934,    .76
Department of Health,Guys and St Thomas NHS Foundation Trust,07/05/2021,(50552) Qualified Nursing Staff,(id:2495419) Evelina Medicine & Neonatology,CONTINENTAL NURSE LTD,id:14063751   ,1309.16
Department of Health,Guys and St Thomas NHS Foundation Trust,21/05/2021,(82800) Bedding & Linen,(id:42323) Evelina Medicine & Neonatology,NHS SUPPLY CHAIN (MAIDSTONE),id:14006357 , 120.43
Department of Health,Guys and St Thomas NHS Foundation Trust,21/05/2021,(81100) Dressings,(id:42315) Evelina Medicine & Neonatology,NHS SUPPLY CHAIN (MAIDSTONE),id:14006357  ,   5.68
Department of Health,Guys and St Thomas NHS Foundation Trust,21/05/2021,(81230) Medical Surgical Supplies & Equipment,(id:42315) Evelina Medicine & Neonatology,NHS SUPPLY CHAIN (MAIDSTONE),id:14041934    , 408.00
Department of Health,Guys and St Thomas NHS Foundation Trust,21/05/2021,(83400) Office Equipment,(id:42315) Evelina Medicine & Neonatology,NHS SUPPLY CHAIN (MAIDSTONE),id:14041934,  97.06
Department of Health,Guys and St Thomas NHS Foundation Trust,07/05/2021,(50200) Consultants,(id:42312) Evelina Surgery Theatres & PICU,KINGS COLLEGE LONDON:03529700,id:13786456   ,8652.32
Department of Health,Guys and St Thomas NHS Foundation Trust,14/05/2021,(81200) Medical Surgical Supplies & Equipment,(id:42312) Evelina Surgery Theatres & PICU,MERCIAN SURGICAL SUPPLY CO LTD,id:14073594 , 702.00
Department of Health,Guys and St Thomas NHS Foundation Trust,14/05/2021,(81200) Medical Surgical Supplies & Equipment,(id:42312) Evelina Surgery Theatres & PICU,MEDTRONIC LTD,id:13223004   ,5760.00
Department of Health,Guys and St Thomas NHS Foundation Trust,21/05/2021,(81200) Medical Surgical Supplies & Equipment,(id:42312) Evelina Surgery Theatres & PICU,NHS SUPPLY CHAIN (MAIDSTONE),id:14041934   ,4494.00
Department of Health,Guys and St Thomas NHS Foundation Trust,27/05/2021,(81200) Medical Surgical Supplies & Equipment,(id:42312) Evelina Surgery Theatres & PICU,ABBOTT MEDICAL UK LTD,id:14127974, 726.00
Department of Health,Guys and St Thomas NHS Foundation Trust,11/05/2021,(54072) Technical Officers,(id:42312) Evelina Surgery Theatres & PICU,PRICEWATERHOUSECOOPERS LLP,id:14080934    , 655.95
Department of Health,Guys and St Thomas NHS Foundation Trust,21/05/2021,(83400) Office Equipment,(id:42351) Evelina Surgery Theatres & PICU,NHS SUPPLY CHAIN (MAIDSTONE),id:14006357    ,  21.65
Department of Health,Guys and St Thomas NHS Foundation Trust,21/05/2021,(82800) Bedding & Linen,(id:41914) Evelina Surgery Theatres & PICU,NHS SUPPLY CHAIN (MAIDSTONE),id:14006357, 229.49
Department of Health,Guys and St Thomas NHS Foundation Trust,14/05/2021,(50562) Qualified Nursing Staff,(id:41914) Evelina Surgery Theatres & PICU,PULSE HEALTHCARE LIMITED,id:14095722 , 600.67
Department of Health,Guys and St Thomas NHS Foundation Trust,14/05/2021,(81100) Dressings,(id:41914) Evelina Surgery Theatres & PICU,SQUADRON MEDICAL LTD,id:13317139    ,   9.12
Department of Health,Guys and St Thomas NHS Foundation Trust,21/05/2021,(81225) Medical Surgical Supplies & Equipment,(id:41914) Evelina Surgery Theatres & PICU,NHS SUPPLY CHAIN (MAIDSTONE),id:13964496   ,  14.68
Department of Health,Guys and St Thomas NHS Foundation Trust,14/05/2021,(81200) Medical Surgical Supplies & Equipment,(id:41910) Evelina Surgery Theatres & PICU,SQUADRON MEDICAL LTD,id:13313668 , 274.82
Department of Health,Guys and St Thomas NHS Foundation Trust,21/05/2021,(81100) Dressings,(id:41910) Evelina Surgery Theatres & PICU,NHS SUPPLY CHAIN (MAIDSTONE),id:14041934 , 216.73
Department of Health,Guys and St Thomas NHS Foundation Trust,14/05/2021,(81400) Medical Surgical Supplies & Equipment,(id:41910) Evelina Surgery Theatres & PICU,NHS SUPPLY CHAIN ( CAPITAL FUND ONLY),id:14065094    ,    15291.41
Department of Health,Guys and St Thomas NHS Foundation Trust,21/05/2021,(82600) Uniforms & Clothing,(id:41910) Evelina Surgery Theatres & PICU,NHS SUPPLY CHAIN (MAIDSTONE),id:14006357 ,  25.92
Department of Health,Guys and St Thomas NHS Foundation Trust,21/05/2021,(81230) Medical Surgical Supplies & Equipment,(id:41910) Evelina Surgery Theatres & PICU,NHS SUPPLY CHAIN (MAIDSTONE),id:14006357   ,  23.66
Department of Health,Guys and St Thomas NHS Foundation Trust,07/05/2021,(81200) Medical Surgical Supplies & Equipment,(id:1196421) Evelina Surgery Theatres & PICU,JOHNSON & JOHNSON MEDICAL LTD,id:14009413, 700.56
Department of Health,Guys and St Thomas NHS Foundation Trust,07/05/2021,(81200) Medical Surgical Supplies & Equipment,(id:1196421) Evelina Surgery Theatres & PICU,NUVASIVE UK LTD,id:14048764    ,7548.00
Department of Health,Guys and St Thomas NHS Foundation Trust,14/05/2021,(81200) Medical Surgical Supplies & Equipment,(id:1196421) Evelina Surgery Theatres & PICU,SQUADRON MEDICAL LTD,id:13344390    , 193.73
Department of Health,Guys and St Thomas NHS Foundation Trust,14/05/2021,(81200) Medical Surgical Supplies & Equipment,(id:1196421) Evelina Surgery Theatres & PICU,ZIMMER BIOMET UK LTD,id:14081339    ,3124.80
Department of Health,Guys and St Thomas NHS Foundation Trust,14/05/2021,(81200) Medical Surgical Supplies & Equipment,(id:1196421) Evelina Surgery Theatres & PICU,NUVASIVE UK LTD,id:14054635    , 632.40
Department of Health,Guys and St Thomas NHS Foundation Trust,21/05/2021,(81200) Medical Surgical Supplies & Equipment,(id:1196421) Evelina Surgery Theatres & PICU,JOHNSON & JOHNSON MEDICAL LTD,id:14055777, 520.04
Department of Health,Guys and St Thomas NHS Foundation Trust,21/05/2021,(81000) Surgical Appliances,(id:431409) Evelina Surgery Theatres & PICU,TALAR MADE ORTHOTICS LTD,id:14117034    ,  93.00
Department of Health,Guys and St Thomas NHS Foundation Trust,21/05/2021,(81000) Surgical Appliances,(id:431409) Evelina Surgery Theatres & PICU,TALAR MADE ORTHOTICS LTD,id:14116755    , 570.00
Department of Health,Guys and St Thomas NHS Foundation Trust,27/05/2021,(81200) Medical Surgical Supplies & Equipment,(id:468410) Evelina Surgery Theatres & PICU,GBUK ENTERAL UK,id:14133154, 950.40
Department of Health,Guys and St Thomas NHS Foundation Trust,07/05/2021,(81200) Medical Surgical Supplies & Equipment,(id:468409) Evelina Surgery Theatres & PICU,STRYKER UK LTD,id:14036414 , 758.40
Department of Health,Guys and St Thomas NHS Foundation Trust,21/05/2021,(84656) Establishment,(id:468409) Evelina Surgery Theatres & PICU,DICT8 LIMITED,id:14091394 ,1149.48
Department of Health,Guys and St Thomas NHS Foundation Trust,21/05/2021,(81100) Dressings,(id:42347) Evelina Surgery Theatres & PICU,NHS SUPPLY CHAIN (MAIDSTONE),id:14006357 ,   1.44
Department of Health,Guys and St Thomas NHS Foundation Trust,07/05/2021,(81200) Medical Surgical Supplies & Equipment,(id:42347) Evelina Surgery Theatres & PICU,GBUK ENTERAL UK,id:13046516 , 880.80
Department of Health,Guys and St Thomas NHS Foundation Trust,27/05/2021,(81200) Medical Surgical Supplies & Equipment,(id:42347) Evelina Surgery Theatres & PICU,LAPROSURGE LTD,id:14119694  , 613.20
Department of Health,Guys and St Thomas NHS Foundation Trust,14/05/2021,(81200) Medical Surgical Supplies & Equipment,(id:42347) Evelina Surgery Theatres & PICU,SQUADRON MEDICAL LTD,id:13353130 ,  24.34
Department of Health,Guys and St Thomas NHS Foundation Trust,14/05/2021,(81200) Medical Surgical Supplies & Equipment,(id:42347) Evelina Surgery Theatres & PICU,JOHNSON & JOHNSON MEDICAL LTD,id:14030086  , 312.05
Department of Health,Guys and St Thomas NHS Foundation Trust,21/05/2021,(82000) Provisions & Kitchens,(id:42339) Evelina Surgery Theatres & PICU,NHS SUPPLY CHAIN (MAIDSTONE),id:14041934    , 148.95
Department of Health,Guys and St Thomas NHS Foundation Trust,21/05/2021,(82000) Provisions & Kitchens,(id:42339) Evelina Surgery Theatres & PICU,NHS SUPPLY CHAIN (MAIDSTONE),id:14006357    ,  43.50
Department of Health,Guys and St Thomas NHS Foundation Trust,21/05/2021,(81100) Dressings,(id:42339) Evelina Surgery Theatres & PICU,NHS SUPPLY CHAIN (MAIDSTONE),id:14041934 , 515.74
Department of Health,Guys and St Thomas NHS Foundation Trust,14/05/2021,(81200) Medical Surgical Supplies & Equipment,(id:42339) Evelina Surgery Theatres & PICU,EDWARDS LIFESCIENCES LTD,id:14071495  ,1998.00
Department of Health,Guys and St Thomas NHS Foundation Trust,27/05/2021,(84400) Transport,(id:42339) Evelina Surgery Theatres & PICU,MARITIME AND COASTGUARD AGENCY,id:14060595    ,    21444.27
Department of Health,Guys and St Thomas NHS Foundation Trust,14/05/2021,(81230) Medical Surgical Supplies & Equipment,(id:42339) Evelina Surgery Theatres & PICU,VYGON (UK) LTD,id:14081350  , 450.84
Department of Health,Guys and St Thomas NHS Foundation Trust,07/05/2021,(50200) Consultants,(id:4400419) Evelina R&D and Charity,KINGS COLLEGE LONDON:03529700,id:13932274    ,5496.66
Department of Health,Guys and St Thomas NHS Foundation Trust,07/05/2021,(50200) Consultants,(id:3008419) Evelina R&D and Charity,KINGS COLLEGE LONDON:03529700,id:13786456    ,4927.91
Department of Health,Guys and St Thomas NHS Foundation Trust,21/05/2021,(81200) Medical Surgical Supplies & Equipment,(id:3805419) Evelina R&D and Charity,NHS SUPPLY CHAIN (MAIDSTONE),id:14041934    ,  63.00
Department of Health,Guys and St Thomas NHS Foundation Trust,27/05/2021,(89270) Establishment,(id:2634419) Evelina R&D and Charity,KING'S COLLEGE HOSPITAL NHS FOUNDATION TRUST,id:14136616  ,1001.27
Department of Health,Guys and St Thomas NHS Foundation Trust,27/05/2021,(81230) Medical Surgical Supplies & Equipment,(id:639421) Cardiovascular Services,COOK UK LTD,id:14019389  ,1248.00
Department of Health,Guys and St Thomas NHS Foundation Trust,07/05/2021,(81200) Medical Surgical Supplies & Equipment,(id:639421) Cardiovascular Services,BOSTON SCIENTIFIC LTD,id:14051911  , 564.00
Department of Health,Guys and St Thomas NHS Foundation Trust,14/05/2021,(81200) Medical Surgical Supplies & Equipment,(id:639421) Cardiovascular Services,WL GORE & ASSOCIATES (UK) LTD,id:14042515    ,1618.80
Department of Health,Guys and St Thomas NHS Foundation Trust,27/05/2021,(81200) Medical Surgical Supplies & Equipment,(id:639421) Cardiovascular Services,COOK UK LTD,id:14064854  ,    10200.00
Department of Health,Guys and St Thomas NHS Foundation Trust,27/05/2021,(81200) Medical Surgical Supplies & Equipment,(id:639421) Cardiovascular Services,COOK UK LTD,id:14052087  ,3960.00
Department of Health,Guys and St Thomas NHS Foundation Trust,14/05/2021,(81200) Medical Surgical Supplies & Equipment,(id:639421) Cardiovascular Services,WL GORE & ASSOCIATES (UK) LTD,id:14042514    ,1618.80
Department of Health,Guys and St Thomas NHS Foundation Trust,14/05/2021,(81200) Medical Surgical Supplies & Equipment,(id:639421) Cardiovascular Services,WL GORE & ASSOCIATES (UK) LTD,id:14055476    ,8388.00
Department of Health,Guys and St Thomas NHS Foundation Trust,14/05/2021,(81235) Medical Surgical Supplies & Equipment,(id:639421) Cardiovascular Services,BOSTON SCIENTIFIC LTD,id:14081495  , 564.00
Department of Health,Guys and St Thomas NHS Foundation Trust,14/05/2021,(81100) Dressings,(id:780420) Cardiovascular Services,KCI MEDICAL LTD,id:14085996 ,1231.43
Department of Health,Guys and St Thomas NHS Foundation Trust,21/05/2021,(82600) Uniforms & Clothing,(id:780420) Cardiovascular Services,NHS SUPPLY CHAIN (MAIDSTONE),id:14041934   ,  12.63
Department of Health,Guys and St Thomas NHS Foundation Trust,21/05/2021,(81200) Medical Surgical Supplies & Equipment,(id:780420) Cardiovascular Services,NHS SUPPLY CHAIN (MAIDSTONE),id:14006357, 881.28
Department of Health,Guys and St Thomas NHS Foundation Trust,14/05/2021,(81200) Medical Surgical Supplies & Equipment,(id:41950) Cardiovascular Services,BOSTON SCIENTIFIC LTD,id:14024771   , 822.00
Department of Health,Guys and St Thomas NHS Foundation Trust,14/05/2021,(81400) Medical Surgical Supplies & Equipment,(id:41950) Cardiovascular Services,BAYER PLC,id:14081340,3096.00
Department of Health,Guys and St Thomas NHS Foundation Trust,07/05/2021,(81000) Surgical Appliances,(id:41950) Cardiovascular Services,MEDI UK LTD,id:14064615 , 485.56
Department of Health,Guys and St Thomas NHS Foundation Trust,21/05/2021,(82800) Bedding & Linen,(id:41950) Cardiovascular Services,NHS SUPPLY CHAIN (MAIDSTONE),id:14041934   , 152.62
Department of Health,Guys and St Thomas NHS Foundation Trust,07/05/2021,(81400) Medical Surgical Supplies & Equipment,(id:41948) Cardiovascular Services,SIGH LTD,id:14043354 , 535.00
Department of Health,Guys and St Thomas NHS Foundation Trust,21/05/2021,(81200) Medical Surgical Supplies & Equipment,(id:41948) Cardiovascular Services,BARD LTD,id:14051993 , 610.61
Department of Health,Guys and St Thomas NHS Foundation Trust,27/05/2021,(81200) Medical Surgical Supplies & Equipment,(id:41948) Cardiovascular Services,BARD LTD,id:14069874 ,1022.82
Department of Health,Guys and St Thomas NHS Foundation Trust,21/05/2021,(83400) Office Equipment,(id:41947) Cardiovascular Services,NHS SUPPLY CHAIN (MAIDSTONE),id:14006357  ,  22.65
Department of Health,Guys and St Thomas NHS Foundation Trust,21/05/2021,(81200) Medical Surgical Supplies & Equipment,(id:41947) Cardiovascular Services,NHS SUPPLY CHAIN (MAIDSTONE),id:14006357 ,  16.58
Department of Health,Guys and St Thomas NHS Foundation Trust,14/05/2021,(81400) Medical Surgical Supplies & Equipment,(id:41947) Cardiovascular Services,OPTIMA MEDICAL LTD,id:14087054 ,5659.92
Department of Health,Guys and St Thomas NHS Foundation Trust,21/05/2021,(81400) Medical Surgical Supplies & Equipment,(id:42305) Cardiovascular Services,NHS SUPPLY CHAIN ( CAPITAL FUND ONLY),id:14109676  ,    10013.61
Department of Health,Guys and St Thomas NHS Foundation Trust,21/05/2021,(83400) Office Equipment,(id:42300) Cardiovascular Services,NHS SUPPLY CHAIN (MAIDSTONE),id:14041934  , 135.63
Department of Health,Guys and St Thomas NHS Foundation Trust,21/05/2021,(81700) Lab Equipment Purchase,(id:42301) Cardiovascular Services,NHS SUPPLY CHAIN (MAIDSTONE),id:14006357 ,  11.86
Department of Health,Guys and St Thomas NHS Foundation Trust,27/05/2021,(83400) Office Equipment,(id:42302) Cardiovascular Services,EDWARDS LIFESCIENCES LTD,id:14125094 ,    25530.00
Department of Health,Guys and St Thomas NHS Foundation Trust,14/05/2021,(83400) Office Equipment,(id:42302) Cardiovascular Services,EDWARDS LIFESCIENCES LTD,id:14051704 ,    25530.00
Department of Health,Guys and St Thomas NHS Foundation Trust,14/05/2021,(83400) Office Equipment,(id:42302) Cardiovascular Services,EDWARDS LIFESCIENCES LTD,id:14070974 ,    25530.00
Department of Health,Guys and St Thomas NHS Foundation Trust,14/05/2021,(83400) Office Equipment,(id:42302) Cardiovascular Services,EDWARDS LIFESCIENCES LTD,id:14071034 ,    25530.00
Department of Health,Guys and St Thomas NHS Foundation Trust,21/05/2021,(82800) Bedding & Linen,(id:42302) Cardiovascular Services,NHS SUPPLY CHAIN (MAIDSTONE),id:13964496   , 110.40
Department of Health,Guys and St Thomas NHS Foundation Trust,07/05/2021,(81200) Medical Surgical Supplies & Equipment,(id:42302) Cardiovascular Services,XAVIOURMED LLP,id:14042139, 510.00
Department of Health,Guys and St Thomas NHS Foundation Trust,07/05/2021,(81200) Medical Surgical Supplies & Equipment,(id:42302) Cardiovascular Services,XAVIOURMED LLP,id:14042137,1020.00
Department of Health,Guys and St Thomas NHS Foundation Trust,07/05/2021,(81200) Medical Surgical Supplies & Equipment,(id:42302) Cardiovascular Services,VOLCANO EUROPE BVBA/SPRL,id:14039555, 540.00
Department of Health,Guys and St Thomas NHS Foundation Trust,07/05/2021,(81200) Medical Surgical Supplies & Equipment,(id:42302) Cardiovascular Services,TERUMO UK LTD,id:14036292 , 780.00
Department of Health,Guys and St Thomas NHS Foundation Trust,07/05/2021,(81200) Medical Surgical Supplies & Equipment,(id:42302) Cardiovascular Services,TERUMO UK LTD,id:14036295 ,1140.00
Department of Health,Guys and St Thomas NHS Foundation Trust,21/05/2021,(81200) Medical Surgical Supplies & Equipment,(id:42302) Cardiovascular Services,VOLCANO EUROPE BVBA/SPRL,id:14098747, 540.00
Department of Health,Guys and St Thomas NHS Foundation Trust,21/05/2021,(81200) Medical Surgical Supplies & Equipment,(id:42302) Cardiovascular Services,BOSTON SCIENTIFIC LTD,id:14051906   , 624.00
Department of Health,Guys and St Thomas NHS Foundation Trust,21/05/2021,(81200) Medical Surgical Supplies & Equipment,(id:42302) Cardiovascular Services,BOSTON SCIENTIFIC LTD,id:14055739   ,2880.00
Department of Health,Guys and St Thomas NHS Foundation Trust,27/05/2021,(81200) Medical Surgical Supplies & Equipment,(id:42302) Cardiovascular Services,TERUMO UK LTD,id:14138475 ,1140.00
Department of Health,Guys and St Thomas NHS Foundation Trust,27/05/2021,(81235) Medical Surgical Supplies & Equipment,(id:42302) Cardiovascular Services,CARDINAL HEALTH UK 432 LIMITED,id:14069786    , 640.80
Department of Health,Guys and St Thomas NHS Foundation Trust,14/05/2021,(81400) Medical Surgical Supplies & Equipment,(id:42303) Cardiovascular Services,SPACELABS HEALTHCARE LTD,id:14090754,    13058.52
Department of Health,Guys and St Thomas NHS Foundation Trust,11/05/2021,(54072) Technical Officers,(id:42303) Cardiovascular Services,PRICEWATERHOUSECOOPERS LLP,id:14080934  ,6434.03
Department of Health,Guys and St Thomas NHS Foundation Trust,07/05/2021,(50200) Consultants,(id:42304) Cardiovascular Services,SURREY AND SUSSEX HEALTHCARE NHS TRUST,id:13933781  , 753.92
Department of Health,Guys and St Thomas NHS Foundation Trust,07/05/2021,(50200) Consultants,(id:42304) Cardiovascular Services,KINGS COLLEGE LONDON:03529700,id:13932476 ,    57838.28
Department of Health,Guys and St Thomas NHS Foundation Trust,14/05/2021,(50200) Consultants,(id:42304) Cardiovascular Services,SURREY AND SUSSEX HEALTHCARE NHS TRUST,id:14024494  , 753.92
Department of Health,Guys and St Thomas NHS Foundation Trust,21/05/2021,(81700) Lab Equipment Purchase,(id:3923419) Cardiovascular Services,NHS SUPPLY CHAIN (MAIDSTONE),id:14006357    ,  33.26
Department of Health,Guys and St Thomas NHS Foundation Trust,21/05/2021,(82800) Bedding & Linen,(id:3923419) Cardiovascular Services,NHS SUPPLY CHAIN (MAIDSTONE),id:14041934 ,  81.33
Department of Health,Guys and St Thomas NHS Foundation Trust,21/05/2021,(83400) Office Equipment,(id:3923419) Cardiovascular Services,NHS SUPPLY CHAIN (MAIDSTONE),id:13964496,   5.21
Department of Health,Guys and St Thomas NHS Foundation Trust,21/05/2021,(81225) Medical Surgical Supplies & Equipment,(id:3923419) Cardiovascular Services,NHS SUPPLY CHAIN (MAIDSTONE),id:14041934    ,   4.85
Department of Health,Guys and St Thomas NHS Foundation Trust,21/05/2021,(50552) Qualified Nursing Staff,(id:3923419) Cardiovascular Services,CARE PROVIDERS HEALTHCARE,id:14114702 , 383.81
Department of Health,Guys and St Thomas NHS Foundation Trust,07/05/2021,(50522) Unqualified Nursing Staff,(id:3923419) Cardiovascular Services,MSI GROUP LTD,id:14063663 , 232.12
Department of Health,Guys and St Thomas NHS Foundation Trust,26/05/2021,(54072) Technical Officers,(id:1243420) Cardiovascular Services,PRICEWATERHOUSECOOPERS LLP,id:14136634,4905.79
Department of Health,Guys and St Thomas NHS Foundation Trust,12/05/2021,(54072) Technical Officers,(id:1243420) Cardiovascular Services,PRICEWATERHOUSECOOPERS LLP,id:14081734,5071.72
Department of Health,Guys and St Thomas NHS Foundation Trust,27/05/2021,(81400) Medical Surgical Supplies & Equipment,(id:1243420) Cardiovascular Services,NHS SUPPLY CHAIN ( CAPITAL FUND ONLY),id:14126634,3101.56
Department of Health,Guys and St Thomas NHS Foundation Trust,27/05/2021,(81500) X Ray Equipment Purchase,(id:1243419) Cardiovascular Services,PECO SERVICES LTD,id:14121614   , 643.20
Department of Health,Guys and St Thomas NHS Foundation Trust,21/05/2021,(82800) Bedding & Linen,(id:42290) Cardiovascular Services,NHS SUPPLY CHAIN (MAIDSTONE),id:13964496   ,   1.57
Department of Health,Guys and St Thomas NHS Foundation Trust,14/05/2021,(50552) Qualified Nursing Staff,(id:42290) Cardiovascular Services,GENEVA HEALTH INTERNATIONAL LIMITED,id:14095511   , 599.04
Department of Health,Guys and St Thomas NHS Foundation Trust,07/05/2021,(50522) Unqualified Nursing Staff,(id:42290) Cardiovascular Services,GLOBE LOCUMS LTD,id:14063670, 216.84
Department of Health,Guys and St Thomas NHS Foundation Trust,07/05/2021,(81200) Medical Surgical Supplies & Equipment,(id:42298) Cardiovascular Services,JOHNSON & JOHNSON MEDICAL LTD,id:14019122,5030.56
Department of Health,Guys and St Thomas NHS Foundation Trust,07/05/2021,(81200) Medical Surgical Supplies & Equipment,(id:42298) Cardiovascular Services,TELEFLEX MEDICAL,id:13994327   ,1620.00
Department of Health,Guys and St Thomas NHS Foundation Trust,07/05/2021,(81200) Medical Surgical Supplies & Equipment,(id:42298) Cardiovascular Services,JOHNSON & JOHNSON MEDICAL LTD,id:14019123,6000.00
Department of Health,Guys and St Thomas NHS Foundation Trust,14/05/2021,(81200) Medical Surgical Supplies & Equipment,(id:42298) Cardiovascular Services,SPECTRANETICS UK,id:13990795   ,1323.60
Department of Health,Guys and St Thomas NHS Foundation Trust,14/05/2021,(81200) Medical Surgical Supplies & Equipment,(id:42298) Cardiovascular Services,SPECTRANETICS UK,id:14038394   ,1323.60
Department of Health,Guys and St Thomas NHS Foundation Trust,14/05/2021,(81200) Medical Surgical Supplies & Equipment,(id:42298) Cardiovascular Services,JOHNSON & JOHNSON MEDICAL LTD,id:14030073,1828.22
Department of Health,Guys and St Thomas NHS Foundation Trust,14/05/2021,(81200) Medical Surgical Supplies & Equipment,(id:42298) Cardiovascular Services,JOHNSON & JOHNSON MEDICAL LTD,id:14030054,1500.00
Department of Health,Guys and St Thomas NHS Foundation Trust,14/05/2021,(81200) Medical Surgical Supplies & Equipment,(id:42298) Cardiovascular Services,TELEFLEX MEDICAL,id:13954667   ,2040.00
Department of Health,Guys and St Thomas NHS Foundation Trust,14/05/2021,(81200) Medical Surgical Supplies & Equipment,(id:42298) Cardiovascular Services,MEDTRONIC LTD,id:14030094 ,2880.00
Department of Health,Guys and St Thomas NHS Foundation Trust,27/05/2021,(81200) Medical Surgical Supplies & Equipment,(id:42298) Cardiovascular Services,VASCULAR PERSPECTIVES LTD,id:14126754    , 660.00
Department of Health,Guys and St Thomas NHS Foundation Trust,27/05/2021,(81200) Medical Surgical Supplies & Equipment,(id:42298) Cardiovascular Services,JOHNSON & JOHNSON MEDICAL LTD,id:14069819,3000.00
Department of Health,Guys and St Thomas NHS Foundation Trust,27/05/2021,(81200) Medical Surgical Supplies & Equipment,(id:42298) Cardiovascular Services,ABBOTT MEDICAL UK LTD,id:14133794   ,3240.00
Department of Health,Guys and St Thomas NHS Foundation Trust,27/05/2021,(81200) Medical Surgical Supplies & Equipment,(id:42298) Cardiovascular Services,ABBOTT MEDICAL UK LTD,id:14127114   ,   -10800.00
Department of Health,Guys and St Thomas NHS Foundation Trust,21/05/2021,(81200) Medical Surgical Supplies & Equipment,(id:42298) Cardiovascular Services,SPECTRANETICS UK,id:14107796   ,1440.00
Department of Health,Guys and St Thomas NHS Foundation Trust,21/05/2021,(81200) Medical Surgical Supplies & Equipment,(id:42298) Cardiovascular Services,MERIT MEDICAL UK LTD,id:14106454    , 523.80
Department of Health,Guys and St Thomas NHS Foundation Trust,14/05/2021,(81280) Medical Surgical Supplies & Equipment,(id:42298) Cardiovascular Services,MEDTRONIC LTD,id:14030136 ,8400.00
Department of Health,Guys and St Thomas NHS Foundation Trust,27/05/2021,(81265) Medical Surgical Supplies & Equipment,(id:42298) Cardiovascular Services,MEDTRONIC LTD,id:14081579 ,1800.00
Department of Health,Guys and St Thomas NHS Foundation Trust,27/05/2021,(81265) Medical Surgical Supplies & Equipment,(id:42298) Cardiovascular Services,ABBOTT MEDICAL UK LTD,id:14133655   ,    27213.60
Department of Health,Guys and St Thomas NHS Foundation Trust,07/05/2021,(81240) Medical Surgical Supplies & Equipment,(id:42298) Cardiovascular Services,MEDTRONIC LTD,id:14019179 ,3720.00
Department of Health,Guys and St Thomas NHS Foundation Trust,07/05/2021,(81240) Medical Surgical Supplies & Equipment,(id:42298) Cardiovascular Services,MEDTRONIC LTD,id:14009179 ,3240.00
Department of Health,Guys and St Thomas NHS Foundation Trust,07/05/2021,(81240) Medical Surgical Supplies & Equipment,(id:42298) Cardiovascular Services,ABBOTT MEDICAL UK LTD,id:14043454   ,3600.00
Department of Health,Guys and St Thomas NHS Foundation Trust,21/05/2021,(81240) Medical Surgical Supplies & Equipment,(id:42298) Cardiovascular Services,MEDTRONIC LTD,id:14051964 ,7560.00
Department of Health,Guys and St Thomas NHS Foundation Trust,27/05/2021,(81240) Medical Surgical Supplies & Equipment,(id:42298) Cardiovascular Services,ABBOTT MEDICAL UK LTD,id:14130534   ,    46800.00
Department of Health,Guys and St Thomas NHS Foundation Trust,21/05/2021,(81200) Medical Surgical Supplies & Equipment,(id:42292) Cardiovascular Services,GETINGE LTD,id:14096574   , 950.40
Department of Health,Guys and St Thomas NHS Foundation Trust,27/05/2021,(81200) Medical Surgical Supplies & Equipment,(id:42292) Cardiovascular Services,LIVANOVA UK LTD,id:14139226    , 521.57
Department of Health,Guys and St Thomas NHS Foundation Trust,27/05/2021,(81200) Medical Surgical Supplies & Equipment,(id:42292) Cardiovascular Services,LIVANOVA UK LTD,id:14139223    ,2582.14
Department of Health,Guys and St Thomas NHS Foundation Trust,27/05/2021,(81200) Medical Surgical Supplies & Equipment,(id:42292) Cardiovascular Services,LIVANOVA UK LTD,id:14139222    ,1350.29
Department of Health,Guys and St Thomas NHS Foundation Trust,27/05/2021,(81200) Medical Surgical Supplies & Equipment,(id:42292) Cardiovascular Services,LIVANOVA UK LTD,id:14139225    , 608.40
Department of Health,Guys and St Thomas NHS Foundation Trust,14/05/2021,(81200) Medical Surgical Supplies & Equipment,(id:42292) Cardiovascular Services,LIVANOVA UK LTD,id:14069155    , 547.08
Department of Health,Guys and St Thomas NHS Foundation Trust,14/05/2021,(81200) Medical Surgical Supplies & Equipment,(id:42292) Cardiovascular Services,LIVANOVA UK LTD,id:14069215    , 567.36
Department of Health,Guys and St Thomas NHS Foundation Trust,21/05/2021,(81225) Medical Surgical Supplies & Equipment,(id:42293) Cardiovascular Services,NHS SUPPLY CHAIN (MAIDSTONE),id:14006357 ,  14.55
Department of Health,Guys and St Thomas NHS Foundation Trust,07/05/2021,(81200) Medical Surgical Supplies & Equipment,(id:42293) Cardiovascular Services,EDWARDS LIFESCIENCES LTD,id:14049914, 576.00
Department of Health,Guys and St Thomas NHS Foundation Trust,07/05/2021,(81200) Medical Surgical Supplies & Equipment,(id:42293) Cardiovascular Services,JOHNSON & JOHNSON MEDICAL LTD,id:14009440, 722.06
Department of Health,Guys and St Thomas NHS Foundation Trust,21/05/2021,(81200) Medical Surgical Supplies & Equipment,(id:42293) Cardiovascular Services,EDWARDS LIFESCIENCES LTD,id:14098963, 576.00
Department of Health,Guys and St Thomas NHS Foundation Trust,14/05/2021,(81200) Medical Surgical Supplies & Equipment,(id:42293) Cardiovascular Services,EDWARDS LIFESCIENCES LTD,id:14071274, 576.00
Department of Health,Guys and St Thomas NHS Foundation Trust,07/05/2021,(81280) Medical Surgical Supplies & Equipment,(id:42293) Cardiovascular Services,EDWARDS LIFESCIENCES LTD,id:14051294,5376.00
Department of Health,Guys and St Thomas NHS Foundation Trust,21/05/2021,(81280) Medical Surgical Supplies & Equipment,(id:42293) Cardiovascular Services,VASCUTEK LTD,id:14113574  ,1152.60
Department of Health,Guys and St Thomas NHS Foundation Trust,21/05/2021,(81280) Medical Surgical Supplies & Equipment,(id:42293) Cardiovascular Services,EDWARDS LIFESCIENCES LTD,id:14098969,1440.00
Department of Health,Guys and St Thomas NHS Foundation Trust,21/05/2021,(81280) Medical Surgical Supplies & Equipment,(id:42293) Cardiovascular Services,EDWARDS LIFESCIENCES LTD,id:14098970,3504.00
Department of Health,Guys and St Thomas NHS Foundation Trust,21/05/2021,(81280) Medical Surgical Supplies & Equipment,(id:42293) Cardiovascular Services,EDWARDS LIFESCIENCES LTD,id:14097134,1752.00
Department of Health,Guys and St Thomas NHS Foundation Trust,21/05/2021,(82600) Uniforms & Clothing,(id:42287) Cardiovascular Services,NHS SUPPLY CHAIN (MAIDSTONE),id:14041934    ,  73.23
Department of Health,Guys and St Thomas NHS Foundation Trust,21/05/2021,(82000) Provisions & Kitchens,(id:42287) Cardiovascular Services,NHS SUPPLY CHAIN (MAIDSTONE),id:14006357  , 265.40
Department of Health,Guys and St Thomas NHS Foundation Trust,21/05/2021,(81700) Lab Equipment Purchase,(id:42287) Cardiovascular Services,NHS SUPPLY CHAIN (MAIDSTONE),id:14041934 ,  72.03
Department of Health,Guys and St Thomas NHS Foundation Trust,21/05/2021,(81255) Medical Surgical Supplies & Equipment,(id:42287) Cardiovascular Services,NHS SUPPLY CHAIN (MAIDSTONE),id:14006357 ,   6.55
Department of Health,Guys and St Thomas NHS Foundation Trust,21/05/2021,(83400) Office Equipment,(id:41863) PACCS,NHS SUPPLY CHAIN (MAIDSTONE),id:14006357,  32.57
Department of Health,Guys and St Thomas NHS Foundation Trust,21/05/2021,(81200) Medical Surgical Supplies & Equipment,(id:41863) PACCS,RESMED (UK) LTD,id:14095395  ,4080.00
Department of Health,Guys and St Thomas NHS Foundation Trust,21/05/2021,(81200) Medical Surgical Supplies & Equipment,(id:41863) PACCS,RESMED (UK) LTD,id:14109994  ,4620.00
Department of Health,Guys and St Thomas NHS Foundation Trust,21/05/2021,(81200) Medical Surgical Supplies & Equipment,(id:41863) PACCS,RESMED (UK) LTD,id:14097341  ,4620.00
Department of Health,Guys and St Thomas NHS Foundation Trust,21/05/2021,(82800) Bedding & Linen,(id:41863) PACCS,NHS SUPPLY CHAIN (MAIDSTONE),id:14041934 ,  46.82
Department of Health,Guys and St Thomas NHS Foundation Trust,27/05/2021,(81255) Medical Surgical Supplies & Equipment,(id:41863) PACCS,FISHER & PAYKEL HEALTHCARE LTD,id:14137094  ,2187.00
Department of Health,Guys and St Thomas NHS Foundation Trust,14/05/2021,(81200) Medical Surgical Supplies & Equipment,(id:41935) PACCS,RESMED (UK) LTD,id:14068956  , 864.00
Department of Health,Guys and St Thomas NHS Foundation Trust,14/05/2021,(81200) Medical Surgical Supplies & Equipment,(id:41935) PACCS,BREAS MEDICAL LTD,id:14086674,    15000.00
Department of Health,Guys and St Thomas NHS Foundation Trust,21/05/2021,(81200) Medical Surgical Supplies & Equipment,(id:41935) PACCS,RESMED (UK) LTD,id:14068674  ,1152.00
Department of Health,Guys and St Thomas NHS Foundation Trust,21/05/2021,(81200) Medical Surgical Supplies & Equipment,(id:41935) PACCS,NHS SUPPLY CHAIN (MAIDSTONE),id:13964496    , 508.17
Department of Health,Guys and St Thomas NHS Foundation Trust,07/05/2021,(86300) Healthcare from non-NHS bodies,(id:1856419) PACCS,REMEO HEALTHCARE LIMITED,id:14047974   ,   186875.92
Department of Health,Guys and St Thomas NHS Foundation Trust,07/05/2021,(81200) Medical Surgical Supplies & Equipment,(id:2545419) PACCS,DRAEGER MEDICAL UK LTD,id:14056774   , 790.32
Department of Health,Guys and St Thomas NHS Foundation Trust,21/05/2021,(81100) Dressings,(id:2545419) PACCS,NHS SUPPLY CHAIN (MAIDSTONE),id:14006357, 106.05
Department of Health,Guys and St Thomas NHS Foundation Trust,21/05/2021,(81200) Medical Surgical Supplies & Equipment,(id:41919) PACCS,NHS SUPPLY CHAIN (MAIDSTONE),id:13964496    , 110.02
Department of Health,Guys and St Thomas NHS Foundation Trust,27/05/2021,(81200) Medical Surgical Supplies & Equipment,(id:863419) PACCS,MEDTRONIC LTD,id:14137318   , 864.00
Department of Health,Guys and St Thomas NHS Foundation Trust,21/05/2021,(81200) Medical Surgical Supplies & Equipment,(id:1842421) PACCS,NHS SUPPLY CHAIN (MAIDSTONE),id:14006357  ,1234.41
Department of Health,Guys and St Thomas NHS Foundation Trust,21/05/2021,(82000) Provisions & Kitchens,(id:1842421) PACCS,NHS SUPPLY CHAIN (MAIDSTONE),id:14006357   , 234.27
Department of Health,Guys and St Thomas NHS Foundation Trust,07/05/2021,(50562) Qualified Nursing Staff,(id:1842421) PACCS,AMC PROFESSIONAL LTD,id:14063715    , 735.20
Department of Health,Guys and St Thomas NHS Foundation Trust,27/05/2021,(50562) Qualified Nursing Staff,(id:1842421) PACCS,AMC PROFESSIONAL LTD,id:14138866    , 497.15
Department of Health,Guys and St Thomas NHS Foundation Trust,14/05/2021,(50562) Qualified Nursing Staff,(id:1842421) PACCS,MEDICSPRO LTD,id:14095615 , 455.20
Department of Health,Guys and St Thomas NHS Foundation Trust,14/05/2021,(50562) Qualified Nursing Staff,(id:1842421) PACCS,JUST NURSES (NURSCO HEALTHCARE LIMITED),id:14095784, 668.35
Department of Health,Guys and St Thomas NHS Foundation Trust,21/05/2021,(50562) Qualified Nursing Staff,(id:1842421) PACCS,AMC PROFESSIONAL LTD,id:14114627    , 456.18
Department of Health,Guys and St Thomas NHS Foundation Trust,07/05/2021,(50562) Qualified Nursing Staff,(id:2121419) PACCS,AMC PROFESSIONAL LTD,id:14063860    ,1525.77
Department of Health,Guys and St Thomas NHS Foundation Trust,21/05/2021,(81700) Lab Equipment Purchase,(id:2121419) PACCS,NHS SUPPLY CHAIN (MAIDSTONE),id:14041934  ,   3.10
Department of Health,Guys and St Thomas NHS Foundation Trust,27/05/2021,(50522) Unqualified Nursing Staff,(id:2121419) PACCS,CARE PROVIDERS HEALTHCARE,id:14138835  , 252.06
Department of Health,Guys and St Thomas NHS Foundation Trust,21/05/2021,(82800) Bedding & Linen,(id:41927) PACCS,NHS SUPPLY CHAIN (MAIDSTONE),id:13964496 ,  55.80
Department of Health,Guys and St Thomas NHS Foundation Trust,21/05/2021,(81100) Dressings,(id:41927) PACCS,NHS SUPPLY CHAIN (MAIDSTONE),id:13964496  ,  85.53
Department of Health,Guys and St Thomas NHS Foundation Trust,21/05/2021,(82600) Uniforms & Clothing,(id:41928) PACCS,NHS SUPPLY CHAIN (MAIDSTONE),id:14006357  , 417.40
Department of Health,Guys and St Thomas NHS Foundation Trust,21/05/2021,(82600) Uniforms & Clothing,(id:41928) PACCS,NHS SUPPLY CHAIN (MAIDSTONE),id:14041934  ,4818.60
Department of Health,Guys and St Thomas NHS Foundation Trust,21/05/2021,(80100) Drug Costs,(id:41928) PACCS,BOC LTD :02107500,id:13655374  ,4334.82
Department of Health,Guys and St Thomas NHS Foundation Trust,07/05/2021,(81200) Medical Surgical Supplies & Equipment,(id:41928) PACCS,B.BRAUN MEDICAL LTD,id:13850134   , 760.80
Department of Health,Guys and St Thomas NHS Foundation Trust,07/05/2021,(81200) Medical Surgical Supplies & Equipment,(id:41928) PACCS,DRAEGER MEDICAL UK LTD,id:14066374, 816.00
Department of Health,Guys and St Thomas NHS Foundation Trust,21/05/2021,(81200) Medical Surgical Supplies & Equipment,(id:41928) PACCS,NHS SUPPLY CHAIN (MAIDSTONE),id:14041934    ,    11112.07
Department of Health,Guys and St Thomas NHS Foundation Trust,21/05/2021,(81200) Medical Surgical Supplies & Equipment,(id:41928) PACCS,PULMONX INTERNATIONAL SARL,id:14108596 ,7200.00
Department of Health,Guys and St Thomas NHS Foundation Trust,07/05/2021,(50552) Qualified Nursing Staff,(id:41928) PACCS,AMC PROFESSIONAL LTD,id:14063583 ,3052.80
Department of Health,Guys and St Thomas NHS Foundation Trust,07/05/2021,(50552) Qualified Nursing Staff,(id:41928) PACCS,MSI GROUP LTD,id:14063576   , 352.01
Department of Health,Guys and St Thomas NHS Foundation Trust,21/05/2021,(50552) Qualified Nursing Staff,(id:41928) PACCS,PULSE HEALTHCARE LIMITED,id:14111998  ,1058.00
Department of Health,Guys and St Thomas NHS Foundation Trust,21/05/2021,(50552) Qualified Nursing Staff,(id:41928) PACCS,PULSE HEALTHCARE LIMITED,id:14111962  ,1587.00
Department of Health,Guys and St Thomas NHS Foundation Trust,27/05/2021,(50522) Unqualified Nursing Staff,(id:41928) PACCS,CARE PROVIDERS HEALTHCARE,id:14138764    , 252.06
Department of Health,Guys and St Thomas NHS Foundation Trust,21/05/2021,(86010) Audit Fees,(id:41928) PACCS,UBQO LIMITED,id:14116254  ,1200.00
Department of Health,Guys and St Thomas NHS Foundation Trust,21/05/2021,(81230) Medical Surgical Supplies & Equipment,(id:41928) PACCS,NHS SUPPLY CHAIN (MAIDSTONE),id:14006357    ,1308.26
Department of Health,Guys and St Thomas NHS Foundation Trust,21/05/2021,(81225) Medical Surgical Supplies & Equipment,(id:41928) PACCS,NHS SUPPLY CHAIN (MAIDSTONE),id:14006357    , 215.27
Department of Health,Guys and St Thomas NHS Foundation Trust,21/05/2021,(89000) Other - Training courses and conferences,(id:41928) PACCS,ROYAL FREE LONDON NHS FOUNDATION TRUST,id:14111771 ,9750.00
Department of Health,Guys and St Thomas NHS Foundation Trust,07/05/2021,(50562) Qualified Nursing Staff,(id:41928) PACCS,JUST NURSES (NURSCO HEALTHCARE LIMITED),id:14048386  , 668.38
Department of Health,Guys and St Thomas NHS Foundation Trust,07/05/2021,(50562) Qualified Nursing Staff,(id:41928) PACCS,AMC PROFESSIONAL LTD,id:14063689 , 735.20
Department of Health,Guys and St Thomas NHS Foundation Trust,07/05/2021,(50562) Qualified Nursing Staff,(id:41928) PACCS,AMC PROFESSIONAL LTD,id:14063890 , 754.97
Department of Health,Guys and St Thomas NHS Foundation Trust,21/05/2021,(50562) Qualified Nursing Staff,(id:41928) PACCS,URGENT STAFFING LTD,id:14114690  , 843.96
Department of Health,Guys and St Thomas NHS Foundation Trust,21/05/2021,(50562) Qualified Nursing Staff,(id:41928) PACCS,GLOBE LOCUMS LTD,id:14114450,1264.05
Department of Health,Guys and St Thomas NHS Foundation Trust,21/05/2021,(50562) Qualified Nursing Staff,(id:41928) PACCS,AMC PROFESSIONAL LTD,id:14114726 , 449.16
Department of Health,Guys and St Thomas NHS Foundation Trust,21/05/2021,(50562) Qualified Nursing Staff,(id:41928) PACCS,AMC PROFESSIONAL LTD,id:14114524 , 449.16
Department of Health,Guys and St Thomas NHS Foundation Trust,21/05/2021,(50562) Qualified Nursing Staff,(id:41928) PACCS,JUST NURSES (NURSCO HEALTHCARE LIMITED),id:14114788  , 449.16
Department of Health,Guys and St Thomas NHS Foundation Trust,21/05/2021,(50562) Qualified Nursing Staff,(id:41928) PACCS,AMC PROFESSIONAL LTD,id:14114832 , 449.16
Department of Health,Guys and St Thomas NHS Foundation Trust,27/05/2021,(50562) Qualified Nursing Staff,(id:41928) PACCS,JUST NURSES (NURSCO HEALTHCARE LIMITED),id:14138732  , 898.31
Department of Health,Guys and St Thomas NHS Foundation Trust,14/05/2021,(50562) Qualified Nursing Staff,(id:41928) PACCS,AMC PROFESSIONAL LTD,id:14095585 , 439.07
Department of Health,Guys and St Thomas NHS Foundation Trust,14/05/2021,(50562) Qualified Nursing Staff,(id:41928) PACCS,AMC PROFESSIONAL LTD,id:14095732 , 449.16
Department of Health,Guys and St Thomas NHS Foundation Trust,14/05/2021,(50562) Qualified Nursing Staff,(id:41928) PACCS,AMC PROFESSIONAL LTD,id:14095490 , 469.98
Department of Health,Guys and St Thomas NHS Foundation Trust,14/05/2021,(50562) Qualified Nursing Staff,(id:41928) PACCS,NATIONWIDE NURSING LTD,id:14095564    , 822.48
Department of Health,Guys and St Thomas NHS Foundation Trust,21/05/2021,(50562) Qualified Nursing Staff,(id:41928) PACCS,AMC PROFESSIONAL LTD,id:14114578 , 449.16
Department of Health,Guys and St Thomas NHS Foundation Trust,21/05/2021,(50562) Qualified Nursing Staff,(id:41928) PACCS,PULSE HEALTHCARE LIMITED,id:14114443  , 497.15
Department of Health,Guys and St Thomas NHS Foundation Trust,21/05/2021,(50562) Qualified Nursing Staff,(id:41928) PACCS,AMC PROFESSIONAL LTD,id:14114527 , 735.20
Department of Health,Guys and St Thomas NHS Foundation Trust,21/05/2021,(50562) Qualified Nursing Staff,(id:41928) PACCS,AMC PROFESSIONAL LTD,id:14114523 , 803.84
Department of Health,Guys and St Thomas NHS Foundation Trust,21/05/2021,(50562) Qualified Nursing Staff,(id:41928) PACCS,PULSE HEALTHCARE LIMITED,id:14112354  ,-431.60
Department of Health,Guys and St Thomas NHS Foundation Trust,21/05/2021,(50562) Qualified Nursing Staff,(id:41928) PACCS,PULSE HEALTHCARE LIMITED,id:14112294  ,-442.41
Department of Health,Guys and St Thomas NHS Foundation Trust,21/05/2021,(50562) Qualified Nursing Staff,(id:41928) PACCS,PULSE HEALTHCARE LIMITED,id:14112275  ,-515.09
Department of Health,Guys and St Thomas NHS Foundation Trust,21/05/2021,(82600) Uniforms & Clothing,(id:41931) PACCS,NHS SUPPLY CHAIN (MAIDSTONE),id:14041934  ,  42.21
Department of Health,Guys and St Thomas NHS Foundation Trust,07/05/2021,(50522) Unqualified Nursing Staff,(id:41931) PACCS,CARE PROVIDERS HEALTHCARE,id:14066934    , 504.12
Department of Health,Guys and St Thomas NHS Foundation Trust,21/05/2021,(81225) Medical Surgical Supplies & Equipment,(id:41931) PACCS,NHS SUPPLY CHAIN (MAIDSTONE),id:13964496    ,  34.84
Department of Health,Guys and St Thomas NHS Foundation Trust,14/05/2021,(81200) Medical Surgical Supplies & Equipment,(id:4620419) PACCS,GBUK ENTERAL UK,id:13701895, 856.80
Department of Health,Guys and St Thomas NHS Foundation Trust,14/05/2021,(81700) Lab Equipment Purchase,(id:4620419) PACCS,WERFEN LIMITED,id:13860035 ,4109.18
Department of Health,Guys and St Thomas NHS Foundation Trust,27/05/2021,(81200) Medical Surgical Supplies & Equipment,(id:41864) PACCS,EDAN MEDICAL (UK) LTD,id:14118968 ,2537.76
Department of Health,Guys and St Thomas NHS Foundation Trust,14/05/2021,(81400) Medical Surgical Supplies & Equipment,(id:41864) PACCS,NHS SUPPLY CHAIN ( CAPITAL FUND ONLY),id:14078674,1391.75
Department of Health,Guys and St Thomas NHS Foundation Trust,21/05/2021,(89270) Establishment,(id:2188419) Chief Executive,PA CONSULTING GROUP,id:14104456,    32224.00
Department of Health,Guys and St Thomas NHS Foundation Trust,14/05/2021,(89310) Other - Training courses and conferences,(id:42680) Chief Executive,TENEO BUSINESS CONSULTING LTD,id:14079514,    13855.20
Department of Health,Guys and St Thomas NHS Foundation Trust,21/05/2021,(83400) Office Equipment,(id:42680) Chief Executive,NHS SUPPLY CHAIN (MAIDSTONE),id:14006357,  34.84
Department of Health,Guys and St Thomas NHS Foundation Trust,21/05/2021,(82000) Provisions & Kitchens,(id:42680) Chief Executive,NHS SUPPLY CHAIN (MAIDSTONE),id:13964496,  44.42
Department of Health,Guys and St Thomas NHS Foundation Trust,14/05/2021,(50200) Consultants,(id:221408) Hosted Services,SOUTH LONDON AND MAUDSLEY NHS FOUNDATION TRUST,id:14050694 ,    14374.01
Department of Health,Guys and St Thomas NHS Foundation Trust,21/05/2021,(55080) Admin & Clerical,(id:221406) Hosted Services,KINGS COLLEGE LONDON:03529700,id:14099294   ,    13151.34
Department of Health,Guys and St Thomas NHS Foundation Trust,21/05/2021,(83400) Office Equipment,(id:49447) Debtors (I&E Rechargable),NHS SUPPLY CHAIN (MAIDSTONE),id:14006357, 213.37
Department of Health,Guys and St Thomas NHS Foundation Trust,07/05/2021,(84100) Transport,(id:590619) Central Services,OMD AUTOS LIMITED,id:14051732 ,1939.82
Department of Health,Guys and St Thomas NHS Foundation Trust,07/05/2021,(84100) Transport,(id:590619) Central Services,Q DESPATCH (WEST) LTD,id:14033274  ,2205.00
Department of Health,Guys and St Thomas NHS Foundation Trust,01/05/2021,(84100) Transport,(id:590619) Central Services,LEASEPLAN UK LIMITED,id:14044054   ,3369.54
Department of Health,Guys and St Thomas NHS Foundation Trust,27/05/2021,(84100) Transport,(id:590619) Central Services,OMD AUTOS LIMITED,id:14136666 , 600.00
Department of Health,Guys and St Thomas NHS Foundation Trust,27/05/2021,(84100) Transport,(id:590619) Central Services,OMD AUTOS LIMITED,id:14136663 , 600.00
Department of Health,Guys and St Thomas NHS Foundation Trust,07/05/2021,(84400) Transport,(id:42579) Central Services,STARCROSS TRADING LTD T/A BEARS,id:14046274   , 810.40
Department of Health,Guys and St Thomas NHS Foundation Trust,07/05/2021,(84400) Transport,(id:42579) Central Services,STARCROSS TRADING LTD T/A BEARS,id:14051614   , 851.51
Department of Health,Guys and St Thomas NHS Foundation Trust,07/05/2021,(84400) Transport,(id:42579) Central Services,STARCROSS TRADING LTD T/A BEARS,id:14051598   ,1525.86
Department of Health,Guys and St Thomas NHS Foundation Trust,07/05/2021,(84400) Transport,(id:42579) Central Services,STARCROSS TRADING LTD T/A BEARS,id:14051710   ,3824.23
Department of Health,Guys and St Thomas NHS Foundation Trust,07/05/2021,(84400) Transport,(id:42579) Central Services,STARCROSS TRADING LTD T/A BEARS,id:14046076   ,4297.50
Department of Health,Guys and St Thomas NHS Foundation Trust,07/05/2021,(84400) Transport,(id:42579) Central Services,STARCROSS TRADING LTD T/A BEARS,id:14051595   ,4713.95
Department of Health,Guys and St Thomas NHS Foundation Trust,21/05/2021,(84400) Transport,(id:42579) Central Services,STARCROSS TRADING LTD T/A BEARS,id:14113794   ,1500.88
Department of Health,Guys and St Thomas NHS Foundation Trust,21/05/2021,(84400) Transport,(id:42579) Central Services,STARCROSS TRADING LTD T/A BEARS,id:14112077   ,2648.82
Department of Health,Guys and St Thomas NHS Foundation Trust,21/05/2021,(84400) Transport,(id:42579) Central Services,STARCROSS TRADING LTD T/A BEARS,id:14112027   , 791.20
Department of Health,Guys and St Thomas NHS Foundation Trust,21/05/2021,(84400) Transport,(id:42579) Central Services,STARCROSS TRADING LTD T/A BEARS,id:14113839   , 800.00
Department of Health,Guys and St Thomas NHS Foundation Trust,21/05/2021,(84400) Transport,(id:42579) Central Services,STARCROSS TRADING LTD T/A BEARS,id:14112466   , 871.92
Department of Health,Guys and St Thomas NHS Foundation Trust,14/05/2021,(84400) Transport,(id:42579) Central Services,STARCROSS TRADING LTD T/A BEARS,id:14089256   , 440.00
Department of Health,Guys and St Thomas NHS Foundation Trust,14/05/2021,(84400) Transport,(id:42579) Central Services,STARCROSS TRADING LTD T/A BEARS,id:14081120   , 609.00
Department of Health,Guys and St Thomas NHS Foundation Trust,14/05/2021,(84400) Transport,(id:42579) Central Services,STARCROSS TRADING LTD T/A BEARS,id:14089458   , 675.00
Department of Health,Guys and St Thomas NHS Foundation Trust,14/05/2021,(84400) Transport,(id:42579) Central Services,STARCROSS TRADING LTD T/A BEARS,id:14081034   , 720.00
Department of Health,Guys and St Thomas NHS Foundation Trust,14/05/2021,(84400) Transport,(id:42579) Central Services,STARCROSS TRADING LTD T/A BEARS,id:14089195   ,3735.00
Department of Health,Guys and St Thomas NHS Foundation Trust,14/05/2021,(84400) Transport,(id:42579) Central Services,STARCROSS TRADING LTD T/A BEARS,id:14083494   ,3967.82
Department of Health,Guys and St Thomas NHS Foundation Trust,14/05/2021,(84400) Transport,(id:42579) Central Services,STARCROSS TRADING LTD T/A BEARS,id:14091274   ,4024.23
Department of Health,Guys and St Thomas NHS Foundation Trust,14/05/2021,(84400) Transport,(id:42579) Central Services,STARCROSS TRADING LTD T/A BEARS,id:14091214   ,4707.26
Department of Health,Guys and St Thomas NHS Foundation Trust,14/05/2021,(84400) Transport,(id:42579) Central Services,STARCROSS TRADING LTD T/A BEARS,id:14083334   ,7172.16
Department of Health,Guys and St Thomas NHS Foundation Trust,14/05/2021,(84400) Transport,(id:42579) Central Services,STARCROSS TRADING LTD T/A BEARS,id:14089414   ,7461.96
Department of Health,Guys and St Thomas NHS Foundation Trust,14/05/2021,(84400) Transport,(id:42579) Central Services,STARCROSS TRADING LTD T/A BEARS,id:14089374   ,8593.45
Department of Health,Guys and St Thomas NHS Foundation Trust,14/05/2021,(84400) Transport,(id:42579) Central Services,STARCROSS TRADING LTD T/A BEARS,id:14080876   ,1178.25
Department of Health,Guys and St Thomas NHS Foundation Trust,14/05/2021,(84400) Transport,(id:42579) Central Services,STARCROSS TRADING LTD T/A BEARS,id:14083575   ,1307.88
Department of Health,Guys and St Thomas NHS Foundation Trust,14/05/2021,(84400) Transport,(id:42579) Central Services,STARCROSS TRADING LTD T/A BEARS,id:14080715   ,1700.00
Department of Health,Guys and St Thomas NHS Foundation Trust,14/05/2021,(84400) Transport,(id:42579) Central Services,STARCROSS TRADING LTD T/A BEARS,id:14081077   ,2107.70
Department of Health,Guys and St Thomas NHS Foundation Trust,21/05/2021,(84400) Transport,(id:42579) Central Services,STARCROSS TRADING LTD T/A BEARS,id:14112465   ,4512.37
Department of Health,Guys and St Thomas NHS Foundation Trust,21/05/2021,(84400) Transport,(id:42579) Central Services,STARCROSS TRADING LTD T/A BEARS,id:14113701   ,6323.37
Department of Health,Guys and St Thomas NHS Foundation Trust,21/05/2021,(84400) Transport,(id:42579) Central Services,STARCROSS TRADING LTD T/A BEARS,id:14113674   ,8166.89
Department of Health,Guys and St Thomas NHS Foundation Trust,27/05/2021,(84400) Transport,(id:42579) Central Services,STARCROSS TRADING LTD T/A BEARS,id:14138594   , 587.80
Department of Health,Guys and St Thomas NHS Foundation Trust,27/05/2021,(84400) Transport,(id:42579) Central Services,STARCROSS TRADING LTD T/A BEARS,id:14137243   ,1020.00
Department of Health,Guys and St Thomas NHS Foundation Trust,27/05/2021,(84400) Transport,(id:42579) Central Services,STARCROSS TRADING LTD T/A BEARS,id:14138620   ,1873.74
Department of Health,Guys and St Thomas NHS Foundation Trust,27/05/2021,(84400) Transport,(id:42579) Central Services,STARCROSS TRADING LTD T/A BEARS,id:14138560   ,1875.00
Department of Health,Guys and St Thomas NHS Foundation Trust,27/05/2021,(84400) Transport,(id:42579) Central Services,STARCROSS TRADING LTD T/A BEARS,id:14138501   ,2090.00
Department of Health,Guys and St Thomas NHS Foundation Trust,27/05/2021,(84400) Transport,(id:42579) Central Services,STARCROSS TRADING LTD T/A BEARS,id:14138622   ,2653.24
Department of Health,Guys and St Thomas NHS Foundation Trust,27/05/2021,(84400) Transport,(id:42579) Central Services,STARCROSS TRADING LTD T/A BEARS,id:14138561   ,2726.25
Department of Health,Guys and St Thomas NHS Foundation Trust,27/05/2021,(84400) Transport,(id:42579) Central Services,STARCROSS TRADING LTD T/A BEARS,id:14138651   ,3032.32
Department of Health,Guys and St Thomas NHS Foundation Trust,27/05/2021,(84400) Transport,(id:42579) Central Services,STARCROSS TRADING LTD T/A BEARS,id:14137260   ,3234.17
Department of Health,Guys and St Thomas NHS Foundation Trust,27/05/2021,(84400) Transport,(id:42579) Central Services,STARCROSS TRADING LTD T/A BEARS,id:14137248   ,7568.81
Department of Health,Guys and St Thomas NHS Foundation Trust,27/05/2021,(84400) Transport,(id:42579) Central Services,STARCROSS TRADING LTD T/A BEARS,id:14136768   ,    22760.00
Department of Health,Guys and St Thomas NHS Foundation Trust,27/05/2021,(84400) Transport,(id:42579) Central Services,SAVOY VENTURES LTD.,id:14066735,    50000.00
Department of Health,Guys and St Thomas NHS Foundation Trust,27/05/2021,(84400) Transport,(id:42579) Central Services,SAVOY VENTURES LTD.,id:14122134,    70000.00
Department of Health,Guys and St Thomas NHS Foundation Trust,07/05/2021,(84100) Transport,(id:42579) Central Services,OMD AUTOS LIMITED,id:14051716  , 250.00
Department of Health,Guys and St Thomas NHS Foundation Trust,27/05/2021,(84100) Transport,(id:42579) Central Services,OMD AUTOS LIMITED,id:14139095  ,3500.00
Department of Health,Guys and St Thomas NHS Foundation Trust,14/05/2021,(55432) Ancillary Staff,(id:4622429) Central Services,PPHE SUPPORT SERVICES LTD,id:13288980 ,    11143.92
Department of Health,Guys and St Thomas NHS Foundation Trust,14/05/2021,(55432) Ancillary Staff,(id:4622429) Central Services,PPHE SUPPORT SERVICES LTD,id:13554493 ,    15265.99
Department of Health,Guys and St Thomas NHS Foundation Trust,14/05/2021,(55432) Ancillary Staff,(id:4622429) Central Services,PPHE SUPPORT SERVICES LTD,id:13693794 ,    72593.02
Department of Health,Guys and St Thomas NHS Foundation Trust,21/05/2021,(82600) Uniforms & Clothing,(id:42566) Central Services,NHS SUPPLY CHAIN (MAIDSTONE),id:14041934 ,  62.03
Department of Health,Guys and St Thomas NHS Foundation Trust,21/05/2021,(82000) Provisions & Kitchens,(id:42566) Central Services,NHS SUPPLY CHAIN (MAIDSTONE),id:14006357    , 220.06
Department of Health,Guys and St Thomas NHS Foundation Trust,07/05/2021,(55432) Ancillary Staff,(id:42524) Central Services,BLUE ARROW LIMITED,id:14063679, 667.50
Department of Health,Guys and St Thomas NHS Foundation Trust,14/05/2021,(89570) Other – Other Operating Expenditure,(id:42538) Central Services,PPL PRS LTD,id:14084594 ,1901.33
Department of Health,Guys and St Thomas NHS Foundation Trust,14/05/2021,(82000) Provisions & Kitchens,(id:4629421) Asset Management,AMMO & COMPANY LTD,id:14087274  ,3282.00
Department of Health,Guys and St Thomas NHS Foundation Trust,07/05/2021,(83710) Rates,(id:2718419) Asset Management,LONDON BOROUGH OF LAMBETH:24845200,id:13978774  ,    28728.00
Department of Health,Guys and St Thomas NHS Foundation Trust,07/05/2021,(89110) Other - Insurance,(id:220643) Asset Management,SCOTTISH WIDOWS PLC & UNIT FUNDS LTD,id:14050674    ,    39422.45
Department of Health,Guys and St Thomas NHS Foundation Trust,27/05/2021,(83755) Rental under Operating Lease,(id:446410) Asset Management,LAMBERT SMITH HAMPTON,id:14134664   ,2953.24
Department of Health,Guys and St Thomas NHS Foundation Trust,27/05/2021,(83755) Rental under Operating Lease,(id:446410) Asset Management,LAMBERT SMITH HAMPTON,id:14134660   ,    10412.27
Department of Health,Guys and St Thomas NHS Foundation Trust,14/05/2021,(89110) Other - Insurance,(id:42655) Asset Management,ASSURA ASPIRE UK LTD,id:14092516 , 582.65
Department of Health,Guys and St Thomas NHS Foundation Trust,14/05/2021,(83220) Water & Sewerage,(id:42655) Asset Management,BUSINESS STREAM,id:14088015  ,1015.74
Department of Health,Guys and St Thomas NHS Foundation Trust,17/05/2021,(83755) Rental under Operating Lease,(id:553409) Asset Management,NEXUS HEALTH GROUP,id:14081333 ,9360.00
Department of Health,Guys and St Thomas NHS Foundation Trust,14/05/2021,(83881) Building & Engineering,(id:492601) Essentia Community Services,HMC COMPLIANCE LTD,id:14095154 , 982.50
Department of Health,Guys and St Thomas NHS Foundation Trust,14/05/2021,(83881) Building & Engineering,(id:492606) Essentia Community Services,UK GRITTING LTD T/A UK GRITTING SERVICES,id:14074095    , 902.00
Department of Health,Guys and St Thomas NHS Foundation Trust,07/05/2021,(83881) Building & Engineering,(id:1116424) Essentia Community Services,ZURICH INSURANCE COMPANY,id:14036419    ,1092.34
Department of Health,Guys and St Thomas NHS Foundation Trust,07/05/2021,(83881) Building & Engineering,(id:1116423) Essentia Community Services,ZURICH INSURANCE COMPANY,id:14036419    , 743.18
Department of Health,Guys and St Thomas NHS Foundation Trust,14/05/2021,(83881) Building & Engineering,(id:1116423) Essentia Community Services,ELITE ENTRANCE SYSTEMS LTD,id:14008734  , 350.00
Department of Health,Guys and St Thomas NHS Foundation Trust,14/05/2021,(83880) Building & Engineering,(id:1116423) Essentia Community Services,MASKOLD ENVIRONMENTAL LTD,id:14049374   ,2315.00
Department of Health,Guys and St Thomas NHS Foundation Trust,07/05/2021,(83881) Building & Engineering,(id:1116422) Essentia Community Services,ZURICH INSURANCE COMPANY,id:14036419    , 740.25
Department of Health,Guys and St Thomas NHS Foundation Trust,21/05/2021,(83881) Building & Engineering,(id:1627419) Essentia Community Services,MASKOLD ENVIRONMENTAL LTD,id:14091094   ,1062.00
Department of Health,Guys and St Thomas NHS Foundation Trust,14/05/2021,(83881) Building & Engineering,(id:1116429) Essentia Community Services,ELITE ENTRANCE SYSTEMS LTD,id:14008734  , 350.00
Department of Health,Guys and St Thomas NHS Foundation Trust,14/05/2021,(83340) Premises Services,(id:3950419) Essentia Community Services,CITY & KENT CLEANING LTD,id:14077895    ,8893.56
Department of Health,Guys and St Thomas NHS Foundation Trust,07/05/2021,(83881) Building & Engineering,(id:1116419) Essentia Community Services,ZURICH INSURANCE COMPANY,id:14036419    , 824.12
Department of Health,Guys and St Thomas NHS Foundation Trust,14/05/2021,(83343) Premises Services,(id:1116419) Essentia Community Services,BYWATERS (LEYTON) LTD,id:14092177  , 417.47
Department of Health,Guys and St Thomas NHS Foundation Trust,14/05/2021,(83343) Premises Services,(id:1116419) Essentia Community Services,BYWATERS (LEYTON) LTD,id:14091635  , 755.44
Department of Health,Guys and St Thomas NHS Foundation Trust,14/05/2021,(83343) Premises Services,(id:1116419) Essentia Community Services,BYWATERS (LEYTON) LTD,id:14092495  ,2009.90
Department of Health,Guys and St Thomas NHS Foundation Trust,07/05/2021,(83881) Building & Engineering,(id:1116432) Essentia Community Services,ABBEY LIFTCARE LTD,id:13988954,1305.00
Department of Health,Guys and St Thomas NHS Foundation Trust,14/05/2021,(83110) Energy Costs,(id:492573) Essentia Community Services,BRITISH GAS BUSINESS:70299300,id:14088242,  69.58
Department of Health,Guys and St Thomas NHS Foundation Trust,14/05/2021,(83881) Building & Engineering,(id:492549) Essentia Community Services,UK GRITTING LTD T/A UK GRITTING SERVICES,id:14074095    ,  20.00
Department of Health,Guys and St Thomas NHS Foundation Trust,14/05/2021,(83881) Building & Engineering,(id:492533) Essentia Community Services,ELITE ENTRANCE SYSTEMS LTD,id:14008734   , 350.00
Department of Health,Guys and St Thomas NHS Foundation Trust,14/05/2021,(83881) Building & Engineering,(id:492540) Essentia Community Services,MRFS GROUP,id:14074208    , 514.58
Department of Health,Guys and St Thomas NHS Foundation Trust,14/05/2021,(83880) Building & Engineering,(id:2528419) Essentia Community Services,UK GRITTING LTD T/A UK GRITTING SERVICES,id:14074435   ,9410.00
Department of Health,Guys and St Thomas NHS Foundation Trust,21/05/2021,(83342) Premises Services,(id:492421) Essentia Commercial,SRCL LTD,id:14099480    ,1256.10
Department of Health,Guys and St Thomas NHS Foundation Trust,21/05/2021,(83342) Premises Services,(id:492421) Essentia Commercial,PHS GROUP,id:14087968   ,1364.43
Department of Health,Guys and St Thomas NHS Foundation Trust,21/05/2021,(83342) Premises Services,(id:492421) Essentia Commercial,PHS GROUP,id:14087977   ,2096.44
Department of Health,Guys and St Thomas NHS Foundation Trust,21/05/2021,(83342) Premises Services,(id:492421) Essentia Commercial,SRCL LTD,id:14099515    ,2415.05
Department of Health,Guys and St Thomas NHS Foundation Trust,14/05/2021,(83110) Energy Costs,(id:492462) Essentia Commercial,BRITISH GAS BUSINESS:70299300,id:14088118   , 405.74
Department of Health,Guys and St Thomas NHS Foundation Trust,07/05/2021,(83120) Energy Costs,(id:1789419) Essentia Infrastructure,TOTAL GAS & POWER LIMITED,id:14008214  ,1057.09
Department of Health,Guys and St Thomas NHS Foundation Trust,14/05/2021,(82000) Provisions & Kitchens,(id:1736419) Essentia COO,AMMO & COMPANY LTD,id:14087194 , 876.00
Department of Health,Guys and St Thomas NHS Foundation Trust,21/05/2021,(89000) Other - Training courses and conferences,(id:42593) Essentia COO,THE CHANGE MAKER GROUP LIMITED,id:14079337  ,1580.00
Department of Health,Guys and St Thomas NHS Foundation Trust,21/05/2021,(83400) Office Equipment,(id:1361419) Essentia COO,TARA SIGNS LTD,id:14110447, 587.27
Department of Health,Guys and St Thomas NHS Foundation Trust,07/05/2021,(83400) Office Equipment,(id:42662) Guys Site services,MATRIX A I LTD,id:14031674 ,6987.60
Department of Health,Guys and St Thomas NHS Foundation Trust,27/05/2021,(83400) Office Equipment,(id:42662) Guys Site services,J.P.MCDOUGALL LTD T/A DULUX DECORATOR CENTRES,id:13021903,1493.50
Department of Health,Guys and St Thomas NHS Foundation Trust,07/05/2021,(83500) Furniture & Fittings,(id:42662) Guys Site services,H C SLINGSBY PLC,id:13927734, 887.98
Department of Health,Guys and St Thomas NHS Foundation Trust,21/05/2021,(55642) Maintenance Staff,(id:42662) Guys Site services,MORGAN HUNT UK LTD,id:14114773 , 966.60
Department of Health,Guys and St Thomas NHS Foundation Trust,21/05/2021,(83880) Building & Engineering,(id:42662) Guys Site services,GRANTLEIGH LTD,id:14104735,9745.00
Department of Health,Guys and St Thomas NHS Foundation Trust,21/05/2021,(83881) Building & Engineering,(id:2507419) Guys Site services,AIREDALE INTERNATIONAL AIR CONDITIONING LTD,id:14033154    ,3308.61
Department of Health,Guys and St Thomas NHS Foundation Trust,07/05/2021,(83400) Office Equipment,(id:42631) Guys Site services,RICHMONDS OF LONDON LTD,id:14002674  ,2228.62
Department of Health,Guys and St Thomas NHS Foundation Trust,14/05/2021,(83400) Office Equipment,(id:42631) Guys Site services,RICHMONDS OF LONDON LTD,id:14064654  , 551.23
Department of Health,Guys and St Thomas NHS Foundation Trust,21/05/2021,(83400) Office Equipment,(id:42631) Guys Site services,INSTRUMENTS & GAUGES ELECTRONICS LT,id:14111199,1284.96
Department of Health,Guys and St Thomas NHS Foundation Trust,27/05/2021,(83400) Office Equipment,(id:42631) Guys Site services,CERTUSS UK LTD,id:13922394 ,1552.09
Department of Health,Guys and St Thomas NHS Foundation Trust,07/05/2021,(83880) Building & Engineering,(id:42631) Guys Site services,STEVE MORGAN,id:14028178  ,1150.00
Department of Health,Guys and St Thomas NHS Foundation Trust,07/05/2021,(83880) Building & Engineering,(id:42631) Guys Site services,STEVE MORGAN,id:14028177  ,1170.00
Department of Health,Guys and St Thomas NHS Foundation Trust,07/05/2021,(83880) Building & Engineering,(id:42631) Guys Site services,STEVE MORGAN,id:14028154  ,1750.00
Department of Health,Guys and St Thomas NHS Foundation Trust,14/05/2021,(83880) Building & Engineering,(id:42631) Guys Site services,LAST CONTRACTING LTD,id:14094877    ,2376.00
Department of Health,Guys and St Thomas NHS Foundation Trust,21/05/2021,(83880) Building & Engineering,(id:42631) Guys Site services,ACORN MECHANICAL PIPEWORK SERVICES LTD - ACORM MPS,id:14096474    ,6004.22
Department of Health,Guys and St Thomas NHS Foundation Trust,27/05/2021,(83880) Building & Engineering,(id:42631) Guys Site services,ABBEY HEAT TRANSFER LTD,id:13958236 ,    17270.00
Department of Health,Guys and St Thomas NHS Foundation Trust,27/05/2021,(83880) Building & Engineering,(id:42631) Guys Site services,EQUIAX LTD,id:13922814    ,3556.00
Department of Health,Guys and St Thomas NHS Foundation Trust,14/05/2021,(83400) Office Equipment,(id:42632) Guys Site services,SAMSON CONTROLS LTD,id:13966755 ,2050.20
Department of Health,Guys and St Thomas NHS Foundation Trust,14/05/2021,(55652) Maintenance Staff,(id:42632) Guys Site services,MICHAEL PAGE INTERNATIONAL RECRUITMENT LTD,id:14063655  ,1156.06
Department of Health,Guys and St Thomas NHS Foundation Trust,21/05/2021,(82600) Uniforms & Clothing,(id:42632) Guys Site services,1ST BIOTECH LIMITED,id:13933840   ,2296.62
Department of Health,Guys and St Thomas NHS Foundation Trust,21/05/2021,(55632) Maintenance Staff,(id:42632) Guys Site services,COMMUNITY RESOURCING LTD (T/A RESOURCING GROUP),id:14116320  , 680.16
Department of Health,Guys and St Thomas NHS Foundation Trust,14/05/2021,(55642) Maintenance Staff,(id:42632) Guys Site services,MICHAEL PAGE INTERNATIONAL RECRUITMENT LTD,id:14095567  , 905.40
Department of Health,Guys and St Thomas NHS Foundation Trust,21/05/2021,(55642) Maintenance Staff,(id:42632) Guys Site services,COMMUNITY RESOURCING LTD (T/A RESOURCING GROUP),id:14116332  , 577.00
Department of Health,Guys and St Thomas NHS Foundation Trust,07/05/2021,(55652) Maintenance Staff,(id:42633) Guys Site services,MICHAEL PAGE INTERNATIONAL RECRUITMENT LTD,id:14063723  , 693.63
Department of Health,Guys and St Thomas NHS Foundation Trust,07/05/2021,(55652) Maintenance Staff,(id:42633) Guys Site services,COMMUNITY RESOURCING LTD (T/A RESOURCING GROUP),id:14063760  , 995.04
Department of Health,Guys and St Thomas NHS Foundation Trust,27/05/2021,(55652) Maintenance Staff,(id:42633) Guys Site services,COMMUNITY RESOURCING LTD (T/A RESOURCING GROUP),id:14138852  , 995.04
Department of Health,Guys and St Thomas NHS Foundation Trust,21/05/2021,(55652) Maintenance Staff,(id:42633) Guys Site services,MORGAN HUNT UK LTD,id:14114569 ,1163.41
Department of Health,Guys and St Thomas NHS Foundation Trust,21/05/2021,(55652) Maintenance Staff,(id:42633) Guys Site services,MORGAN HUNT UK LTD,id:14114830 ,1228.96
Department of Health,Guys and St Thomas NHS Foundation Trust,21/05/2021,(55632) Maintenance Staff,(id:42633) Guys Site services,MORGAN HUNT UK LTD,id:14114625 , 790.66
Department of Health,Guys and St Thomas NHS Foundation Trust,07/05/2021,(83880) Building & Engineering,(id:42634) Guys Site services,SCHNEIDER ELECTRIC,id:14050275 ,    12008.00
Department of Health,Guys and St Thomas NHS Foundation Trust,21/05/2021,(83880) Building & Engineering,(id:42634) Guys Site services,LAST CONTRACTING LTD,id:14111977    ,7623.72
Department of Health,Guys and St Thomas NHS Foundation Trust,07/05/2021,(83400) Office Equipment,(id:42634) Guys Site services,ROBLETT ELECTRICAL SUPPLIES LTD,id:13997114    ,1028.94
Department of Health,Guys and St Thomas NHS Foundation Trust,14/05/2021,(83880) Building & Engineering,(id:197407) Guys Site services,SCHNEIDER ELECTRIC,id:14081256, 843.33
Department of Health,Guys and St Thomas NHS Foundation Trust,07/05/2021,(83881) Building & Engineering,(id:197407) Guys Site services,SOCOTEC UK LTD,id:14045014    ,1221.76
Department of Health,Guys and St Thomas NHS Foundation Trust,07/05/2021,(83881) Building & Engineering,(id:197407) Guys Site services,ELITE ENTRANCE SYSTEMS LTD,id:14008737  ,2980.00
Department of Health,Guys and St Thomas NHS Foundation Trust,21/05/2021,(83881) Building & Engineering,(id:197407) Guys Site services,CAMFIL LTD,id:14027294   ,1402.95
Department of Health,Guys and St Thomas NHS Foundation Trust,27/05/2021,(83881) Building & Engineering,(id:197407) Guys Site services,TRANE UK LTD (FORMERLY INGERSOLL-RAND UK LTD),id:14134783   ,1622.50
Department of Health,Guys and St Thomas NHS Foundation Trust,27/05/2021,(55642) Maintenance Staff,(id:42637) STH Site Services,COMMUNITY RESOURCING LTD (T/A RESOURCING GROUP),id:14138690   , 601.56
Department of Health,Guys and St Thomas NHS Foundation Trust,14/05/2021,(55632) Maintenance Staff,(id:42637) STH Site Services,MORGAN HUNT UK LTD,id:14095695  , 834.30
Department of Health,Guys and St Thomas NHS Foundation Trust,21/05/2021,(55632) Maintenance Staff,(id:42637) STH Site Services,MORGAN HUNT UK LTD,id:14114520  , 852.30
Department of Health,Guys and St Thomas NHS Foundation Trust,07/05/2021,(83400) Office Equipment,(id:42638) STH Site Services,RICHMONDS OF LONDON LTD,id:14002694   ,1012.12
Department of Health,Guys and St Thomas NHS Foundation Trust,07/05/2021,(83880) Building & Engineering,(id:42638) STH Site Services,MASKOLD ENVIRONMENTAL LTD,id:13824854, 490.00
Department of Health,Guys and St Thomas NHS Foundation Trust,07/05/2021,(83880) Building & Engineering,(id:42638) STH Site Services,SOCOTEC UK LTD,id:14016276 , 650.00
Department of Health,Guys and St Thomas NHS Foundation Trust,14/05/2021,(83880) Building & Engineering,(id:42638) STH Site Services,SOCOTEC UK LTD,id:14030156 , 424.00
Department of Health,Guys and St Thomas NHS Foundation Trust,14/05/2021,(83880) Building & Engineering,(id:42638) STH Site Services,AIRISQ LTD,id:13985414,1690.00
Department of Health,Guys and St Thomas NHS Foundation Trust,14/05/2021,(83880) Building & Engineering,(id:42638) STH Site Services,MASKOLD ENVIRONMENTAL LTD,id:14036335, 524.40
Department of Health,Guys and St Thomas NHS Foundation Trust,21/05/2021,(83880) Building & Engineering,(id:42638) STH Site Services,ANDREWS SYKES HIRE LTD,id:14045494   ,1138.81
Department of Health,Guys and St Thomas NHS Foundation Trust,21/05/2021,(83880) Building & Engineering,(id:42638) STH Site Services,ANDREWS SYKES HIRE LTD,id:14045474   ,1318.35
Department of Health,Guys and St Thomas NHS Foundation Trust,21/05/2021,(83880) Building & Engineering,(id:42638) STH Site Services,TESGL LTD,id:13936394 , 625.00
Department of Health,Guys and St Thomas NHS Foundation Trust,21/05/2021,(83880) Building & Engineering,(id:42638) STH Site Services,TESGL LTD,id:14068678 , 890.00
Department of Health,Guys and St Thomas NHS Foundation Trust,21/05/2021,(83880) Building & Engineering,(id:42638) STH Site Services,MASKOLD ENVIRONMENTAL LTD,id:14079175,1867.34
Department of Health,Guys and St Thomas NHS Foundation Trust,21/05/2021,(83880) Building & Engineering,(id:42638) STH Site Services,SOCOTEC UK LTD,id:14099077 ,    14663.12
Department of Health,Guys and St Thomas NHS Foundation Trust,27/05/2021,(83880) Building & Engineering,(id:42638) STH Site Services,D C MECHANICAL SERVICES CIS4,id:13581474  ,1200.00
Department of Health,Guys and St Thomas NHS Foundation Trust,27/05/2021,(83880) Building & Engineering,(id:42638) STH Site Services,ETA PROJECTS LTD,id:14112794    ,1600.00
Department of Health,Guys and St Thomas NHS Foundation Trust,07/05/2021,(83400) Office Equipment,(id:42642) STH Site Services,SERVICE GRAPHICS PRINT & DESIGN,id:13940674,2181.00
Department of Health,Guys and St Thomas NHS Foundation Trust,14/05/2021,(83610) IT Costs,(id:42642) STH Site Services,OFFICE DEPOT UK LTD,id:14046883, 586.01
Department of Health,Guys and St Thomas NHS Foundation Trust,07/05/2021,(83881) Building & Engineering,(id:197406) STH Site Services,TESGL LTD,id:13937034,6487.74
Department of Health,Guys and St Thomas NHS Foundation Trust,27/05/2021,(83881) Building & Engineering,(id:197406) STH Site Services,TESGL LTD,id:14036363,2029.83
Department of Health,Guys and St Thomas NHS Foundation Trust,14/05/2021,(83400) Office Equipment,(id:1271419) STH Site Services,MATRIX A I LTD,id:14087554, 831.45
Department of Health,Guys and St Thomas NHS Foundation Trust,14/05/2021,(83360) Premises Services,(id:198413) STH Site Services,ALL CLEAN SERVICES LTD,id:14069541  ,5615.32
Department of Health,Guys and St Thomas NHS Foundation Trust,21/05/2021,(83400) Office Equipment,(id:42544) STH Site Services,NHS SUPPLY CHAIN (MAIDSTONE),id:14041934   , 708.00
Department of Health,Guys and St Thomas NHS Foundation Trust,27/05/2021,(83880) Building & Engineering,(id:4625420) STH Site Services,CITY & KENT CLEANING LTD,id:14123294    ,1170.00
Department of Health,Guys and St Thomas NHS Foundation Trust,14/05/2021,(83400) Office Equipment,(id:42664) STH Site Services,STIRLING MEDICAL & SCIENTIFIC,id:14095156  , 988.80
Department of Health,Guys and St Thomas NHS Foundation Trust,07/05/2021,(83880) Building & Engineering,(id:42664) STH Site Services,AMTICO FLOORING INSTALLATIONS LTD,id:14016334  , 675.00
Department of Health,Guys and St Thomas NHS Foundation Trust,21/05/2021,(83880) Building & Engineering,(id:42664) STH Site Services,WPG REFURBISHMENTS LTD CIS6,id:14099038   ,4920.00
Department of Health,Guys and St Thomas NHS Foundation Trust,27/05/2021,(83880) Building & Engineering,(id:42664) STH Site Services,AMTICO FLOORING INSTALLATIONS LTD,id:14109197  ,4934.50
Department of Health,Guys and St Thomas NHS Foundation Trust,14/05/2021,(83400) Office Equipment,(id:42548) STH Site Services,BIOQUELL UK LTD,id:14087614 ,2552.16
Department of Health,Guys and St Thomas NHS Foundation Trust,14/05/2021,(83400) Office Equipment,(id:42548) STH Site Services,CITY & KENT CLEANING LTD,id:14047108  ,2106.00
Department of Health,Guys and St Thomas NHS Foundation Trust,14/05/2021,(83400) Office Equipment,(id:42548) STH Site Services,CITY & KENT CLEANING LTD,id:14047118  , 885.60
Department of Health,Guys and St Thomas NHS Foundation Trust,21/05/2021,(83400) Office Equipment,(id:42548) STH Site Services,NHS SUPPLY CHAIN (MAIDSTONE),id:14006357   , 143.59
Department of Health,Guys and St Thomas NHS Foundation Trust,21/05/2021,(83400) Office Equipment,(id:42548) STH Site Services,NHS SUPPLY CHAIN (MAIDSTONE),id:14041934   , 123.48
Department of Health,Guys and St Thomas NHS Foundation Trust,21/05/2021,(83400) Office Equipment,(id:42548) STH Site Services,BIOQUELL UK LTD,id:14108514 ,1200.00
Department of Health,Guys and St Thomas NHS Foundation Trust,07/05/2021,(83880) Building & Engineering,(id:42548) STH Site Services,ALL CLEAN SERVICES LTD,id:14036225   ,5615.32
Department of Health,Guys and St Thomas NHS Foundation Trust,14/05/2021,(83880) Building & Engineering,(id:42548) STH Site Services,ALL CLEAN SERVICES LTD,id:14069536   ,5615.32
Department of Health,Guys and St Thomas NHS Foundation Trust,14/05/2021,(84500) Establishment,(id:42548) STH Site Services,OFFICE DEPOT UK LTD,id:14019164,1321.63
Department of Health,Guys and St Thomas NHS Foundation Trust,14/05/2021,(84500) Establishment,(id:42548) STH Site Services,OFFICE DEPOT UK LTD,id:13999139,1762.18
Department of Health,Guys and St Thomas NHS Foundation Trust,27/05/2021,(84500) Establishment,(id:42548) STH Site Services,OFFICE DEPOT UK LTD,id:14069857,2202.72
Department of Health,Guys and St Thomas NHS Foundation Trust,21/05/2021,(83360) Premises Services,(id:42548) STH Site Services,ALLSOP & FRANCIS LTD,id:14113594, 518.40
Department of Health,Guys and St Thomas NHS Foundation Trust,26/05/2021,(82000) Provisions & Kitchens,(id:42530) STH Site Services,PELICAN PROCUREMENT SERVICES LTD,id:14136647    ,1857.52
Department of Health,Guys and St Thomas NHS Foundation Trust,21/05/2021,(81100) Dressings,(id:42599) Sterile Services,ELIS UK LIMITED,id:14099148    , 507.12
Department of Health,Guys and St Thomas NHS Foundation Trust,21/05/2021,(81100) Dressings,(id:42599) Sterile Services,NHS SUPPLY CHAIN (MAIDSTONE),id:14006357 ,2489.24
Department of Health,Guys and St Thomas NHS Foundation Trust,14/05/2021,(81100) Dressings,(id:42599) Sterile Services,ELIS UK LIMITED,id:14034178    , 581.20
Department of Health,Guys and St Thomas NHS Foundation Trust,21/05/2021,(81100) Dressings,(id:42599) Sterile Services,NHS SUPPLY CHAIN (MAIDSTONE),id:13964496 , 205.72
Department of Health,Guys and St Thomas NHS Foundation Trust,21/05/2021,(81100) Dressings,(id:42599) Sterile Services,ELIS UK LIMITED,id:14099179    , 774.57
Department of Health,Guys and St Thomas NHS Foundation Trust,07/05/2021,(81200) Medical Surgical Supplies & Equipment,(id:42599) Sterile Services,GETINGE UK LTD,id:14056514  ,3171.60
Department of Health,Guys and St Thomas NHS Foundation Trust,14/05/2021,(81200) Medical Surgical Supplies & Equipment,(id:42599) Sterile Services,KEY SURGICAL LTD,id:14068854, 493.20
Department of Health,Guys and St Thomas NHS Foundation Trust,21/05/2021,(81200) Medical Surgical Supplies & Equipment,(id:42599) Sterile Services,NHS SUPPLY CHAIN (MAIDSTONE),id:14041934   , 319.56
Department of Health,Guys and St Thomas NHS Foundation Trust,21/05/2021,(81200) Medical Surgical Supplies & Equipment,(id:42599) Sterile Services,LAZERBEAM FIRE AND SECURITY LTD,id:14112455, 460.00
Department of Health,Guys and St Thomas NHS Foundation Trust,07/05/2021,(81200) Medical Surgical Supplies & Equipment,(id:42601) Sterile Services,GETINGE UK LTD,id:14056534  , 960.00
Department of Health,Guys and St Thomas NHS Foundation Trust,07/05/2021,(81200) Medical Surgical Supplies & Equipment,(id:2486419) Sterile Services,KEY SURGICAL LTD,id:14046990   ,1513.56
Department of Health,Guys and St Thomas NHS Foundation Trust,14/05/2021,(83340) Premises Services,(id:42576) Security & Waste Services,H C SLINGSBY PLC,id:14055598 , 700.00
Department of Health,Guys and St Thomas NHS Foundation Trust,14/05/2021,(83340) Premises Services,(id:42576) Security & Waste Services,INDEPENDENT SAFETY SERVICES LIMITED,id:14092321  ,3250.00
Department of Health,Guys and St Thomas NHS Foundation Trust,07/05/2021,(83400) Office Equipment,(id:42540) Security & Waste Services,WOODNUT CONSTRUCTION & DEVELOPMENT LTD,id:14016235,1400.00
Department of Health,Guys and St Thomas NHS Foundation Trust,21/05/2021,(83400) Office Equipment,(id:42540) Security & Waste Services,LAZERBEAM FIRE AND SECURITY LTD,id:14099020  ,2120.00
Department of Health,Guys and St Thomas NHS Foundation Trust,21/05/2021,(83400) Office Equipment,(id:42540) Security & Waste Services,LAZERBEAM FIRE AND SECURITY LTD,id:14113844  ,2280.00
Department of Health,Guys and St Thomas NHS Foundation Trust,21/05/2021,(83400) Office Equipment,(id:42540) Security & Waste Services,LAZERBEAM FIRE AND SECURITY LTD,id:14113843  ,2380.00
Department of Health,Guys and St Thomas NHS Foundation Trust,14/05/2021,(89270) Establishment,(id:42540) Security & Waste Services,ASSIST SECURITY LIMITED,id:14083776   ,2520.00
Department of Health,Guys and St Thomas NHS Foundation Trust,14/05/2021,(89270) Establishment,(id:42540) Security & Waste Services,ASSIST SECURITY LIMITED,id:14084175   ,2520.00
Department of Health,Guys and St Thomas NHS Foundation Trust,14/05/2021,(89270) Establishment,(id:42540) Security & Waste Services,ASSIST SECURITY LIMITED,id:14018874   ,5550.00
Department of Health,Guys and St Thomas NHS Foundation Trust,27/05/2021,(89270) Establishment,(id:42540) Security & Waste Services,ASSIST SECURITY LIMITED,id:14133835   ,2880.00
Department of Health,Guys and St Thomas NHS Foundation Trust,14/05/2021,(83350) Premises Services,(id:4625422) Security & Waste Services,PPHE SUPPORT SERVICES LTD,id:13816148,    70912.02
Department of Health,Guys and St Thomas NHS Foundation Trust,14/05/2021,(83350) Premises Services,(id:4625422) Security & Waste Services,PPHE SUPPORT SERVICES LTD,id:13841794,    78061.28
Department of Health,Guys and St Thomas NHS Foundation Trust,14/05/2021,(84501) Establishment,(id:42580) Security & Waste Services,PELEMAN INDUSTRIES LTD (UNIBIND),id:14092294    , 739.20
Department of Health,Guys and St Thomas NHS Foundation Trust,21/05/2021,(82000) Provisions & Kitchens,(id:42580) Security & Waste Services,NHS SUPPLY CHAIN (MAIDSTONE),id:14006357,   2.88
Department of Health,Guys and St Thomas NHS Foundation Trust,21/05/2021,(82800) Bedding & Linen,(id:1678420) Security & Waste Services,NHS SUPPLY CHAIN (MAIDSTONE),id:14006357    ,  14.40
Department of Health,Guys and St Thomas NHS Foundation Trust,14/05/2021,(81200) Medical Surgical Supplies & Equipment,(id:42684) Chief Nurse,TELEFLEX MEDICAL,id:14093234,1020.00
Department of Health,Guys and St Thomas NHS Foundation Trust,21/05/2021,(81200) Medical Surgical Supplies & Equipment,(id:42684) Chief Nurse,TELEFLEX MEDICAL,id:14059221,1404.00
Department of Health,Guys and St Thomas NHS Foundation Trust,21/05/2021,(80150) Drug Costs,(id:42684) Chief Nurse,NHS SUPPLY CHAIN (MAIDSTONE),id:14041934, 302.40
Department of Health,Guys and St Thomas NHS Foundation Trust,21/05/2021,(83400) Office Equipment,(id:42684) Chief Nurse,NHS SUPPLY CHAIN (MAIDSTONE),id:14006357    , 242.79
Department of Health,Guys and St Thomas NHS Foundation Trust,21/05/2021,(83610) IT Costs,(id:42685) Chief Nurse,COMPUTACENTER UK LTD,id:14107314, 693.34
Department of Health,Guys and St Thomas NHS Foundation Trust,21/05/2021,(82600) Uniforms & Clothing,(id:590618) Finance Director,1ST BIOTECH LIMITED,id:14022994    ,1339.80
Department of Health,Guys and St Thomas NHS Foundation Trust,14/05/2021,(82600) Uniforms & Clothing,(id:590618) Finance Director,1ST BIOTECH LIMITED,id:14061575    , 917.40
Department of Health,Guys and St Thomas NHS Foundation Trust,21/05/2021,(81100) Dressings,(id:4080419) Finance Director,VYGON (UK) LTD,id:14055749   ,2626.56
Department of Health,Guys and St Thomas NHS Foundation Trust,14/05/2021,(81200) Medical Surgical Supplies & Equipment,(id:4080419) Finance Director,GBUK HEALTHCARE,id:14076874    , 826.80
Department of Health,Guys and St Thomas NHS Foundation Trust,14/05/2021,(81200) Medical Surgical Supplies & Equipment,(id:4080419) Finance Director,MOLNLYCKE HEALTH CARE LTD,id:13821314    ,3235.51
Department of Health,Guys and St Thomas NHS Foundation Trust,21/05/2021,(81200) Medical Surgical Supplies & Equipment,(id:4080419) Finance Director,CONVATEC LTD,id:14103014  , 918.00
Department of Health,Guys and St Thomas NHS Foundation Trust,21/05/2021,(81200) Medical Surgical Supplies & Equipment,(id:4080419) Finance Director,JOHNSON & JOHNSON MEDICAL LTD,id:14055814,1910.44
Department of Health,Guys and St Thomas NHS Foundation Trust,14/05/2021,(83400) Office Equipment,(id:847436) Finance Director,LEEDS AND YORK PARTNERSHIP NHS FOUNDATION TRUST,id:14024589    ,    63786.55
Department of Health,Guys and St Thomas NHS Foundation Trust,21/05/2021,(83400) Office Equipment,(id:847436) Finance Director,CROWN COMMERCIAL SERVICE,id:14115297  ,    12000.00
Department of Health,Guys and St Thomas NHS Foundation Trust,14/05/2021,(89270) Establishment,(id:42705) Finance Director,CCI LEGAL SERVICES LTD,id:13964677   , 526.25
Department of Health,Guys and St Thomas NHS Foundation Trust,14/05/2021,(55112) Admin & Clerical,(id:42707) Finance Director,HAYS ACCOUNTANCY PERSONNEL,id:14039724 ,3214.80
Department of Health,Guys and St Thomas NHS Foundation Trust,13/05/2021,(83630) IT Costs,(id:42707) Finance Director,VISUAL LEASE LLC,id:14074975    ,    15801.12
Department of Health,Guys and St Thomas NHS Foundation Trust,14/05/2021,(88720) Other – Other Operating Expenditure,(id:40456) Finance Director,EDWARDS LIFESCIENCES LTD,id:14071155   ,  -5.76
Department of Health,Guys and St Thomas NHS Foundation Trust,14/05/2021,(88720) Other – Other Operating Expenditure,(id:40456) Finance Director,EDWARDS LIFESCIENCES LTD,id:14071234   ,  -9.60
Department of Health,Guys and St Thomas NHS Foundation Trust,14/05/2021,(88720) Other – Other Operating Expenditure,(id:40456) Finance Director,EDWARDS LIFESCIENCES LTD,id:14051654   ,-255.30
Department of Health,Guys and St Thomas NHS Foundation Trust,14/05/2021,(88720) Other – Other Operating Expenditure,(id:40456) Finance Director,EDWARDS LIFESCIENCES LTD,id:14070894   ,-255.30
Department of Health,Guys and St Thomas NHS Foundation Trust,14/05/2021,(88720) Other – Other Operating Expenditure,(id:40456) Finance Director,EDWARDS LIFESCIENCES LTD,id:14071014   ,-255.30
Department of Health,Guys and St Thomas NHS Foundation Trust,14/05/2021,(88720) Other – Other Operating Expenditure,(id:40456) Finance Director,EDWARDS LIFESCIENCES LTD,id:14071094   ,-255.30
Department of Health,Guys and St Thomas NHS Foundation Trust,14/05/2021,(88720) Other – Other Operating Expenditure,(id:40456) Finance Director,EDWARDS LIFESCIENCES LTD,id:14071114   ,-255.30
Department of Health,Guys and St Thomas NHS Foundation Trust,14/05/2021,(88720) Other – Other Operating Expenditure,(id:40456) Finance Director,EDWARDS LIFESCIENCES LTD,id:14051699   ,-255.30
Department of Health,Guys and St Thomas NHS Foundation Trust,14/05/2021,(88720) Other – Other Operating Expenditure,(id:40456) Finance Director,EDWARDS LIFESCIENCES LTD,id:14051706   ,-255.30
Department of Health,Guys and St Thomas NHS Foundation Trust,21/05/2021,(88720) Other – Other Operating Expenditure,(id:40456) Finance Director,EDWARDS LIFESCIENCES LTD,id:14098993   , -56.40
Department of Health,Guys and St Thomas NHS Foundation Trust,21/05/2021,(88720) Other – Other Operating Expenditure,(id:40456) Finance Director,EDWARDS LIFESCIENCES LTD,id:14098947   ,-255.30
Department of Health,Guys and St Thomas NHS Foundation Trust,21/05/2021,(50200) Consultants,(id:817421) Finance Director,KINGS COLLEGE LONDON:03529700,id:14099278  ,   -21789.42
Department of Health,Guys and St Thomas NHS Foundation Trust,21/05/2021,(89000) Other - Training courses and conferences,(id:42722) Human Resources,TIGERLILLY TRAINING LTD,id:14100314 ,1050.00
Department of Health,Guys and St Thomas NHS Foundation Trust,27/05/2021,(89680) Non-Healthcare from CCGs & NHS England,(id:42719) Human Resources,MONITOR,id:13687362    ,    39264.00
Department of Health,Guys and St Thomas NHS Foundation Trust,07/05/2021,(89000) Other - Training courses and conferences,(id:1693420) Training and Education,EMDR WORKS LTD,id:13991154 ,1200.00
Department of Health,Guys and St Thomas NHS Foundation Trust,14/05/2021,(89000) Other - Training courses and conferences,(id:1693420) Training and Education,A TO E TRAINING SOLUTIONS LTD,id:14085174 ,    15200.00
Department of Health,Guys and St Thomas NHS Foundation Trust,21/05/2021,(81400) Medical Surgical Supplies & Equipment,(id:42761) Quality and Assurance,NHS SUPPLY CHAIN (MAIDSTONE),id:14006357   ,  71.12
Department of Health,Guys and St Thomas NHS Foundation Trust,14/05/2021,(86300) Healthcare from non-NHS bodies,(id:1135419) R&D : NIHR,BRIGSTOCK MEDICAL PRACTICE,id:14074258 ,1210.00
Department of Health,Guys and St Thomas NHS Foundation Trust,21/05/2021,(54070) Technical Officers,(id:2908428) R&D : NIHR,KINGS COLLEGE LONDON:03529700,id:13934854,4177.99
Department of Health,Guys and St Thomas NHS Foundation Trust,21/05/2021,(55070) Admin & Clerical,(id:2908420) R&D : NIHR,KINGS COLLEGE LONDON:03529700,id:13934854  ,5069.31
Department of Health,Guys and St Thomas NHS Foundation Trust,21/05/2021,(81275) Medical Surgical Supplies & Equipment,(id:2907432) R&D : NIHR,KINGS COLLEGE LONDON:03529700,id:13934854 ,    16460.15
Department of Health,Guys and St Thomas NHS Foundation Trust,21/05/2021,(50203) Consultants,(id:2907432) R&D : NIHR,KINGS COLLEGE LONDON:03529700,id:13934854  ,2110.08
Department of Health,Guys and St Thomas NHS Foundation Trust,21/05/2021,(81275) Medical Surgical Supplies & Equipment,(id:2978419) R&D : NIHR,KINGS COLLEGE LONDON:03529700,id:13934854 ,1433.34
Department of Health,Guys and St Thomas NHS Foundation Trust,21/05/2021,(53270) Clinical Scientists,(id:2907430) R&D : NIHR,KINGS COLLEGE LONDON:03529700,id:13934854    ,5209.26
Department of Health,Guys and St Thomas NHS Foundation Trust,21/05/2021,(54060) Technical Officers,(id:4994419) R&D : NIHR,KINGS COLLEGE LONDON:03529700,id:13934854,3646.59
Department of Health,Guys and St Thomas NHS Foundation Trust,21/05/2021,(81700) Lab Equipment Purchase,(id:801419) R&D : NIHR,NHS SUPPLY CHAIN (MAIDSTONE),id:14041934   ,   4.16
Department of Health,Guys and St Thomas NHS Foundation Trust,07/05/2021,(81275) Medical Surgical Supplies & Equipment,(id:803458) R&D : NIHR,DURBIN PLC,id:14055895 , 542.57
Department of Health,Guys and St Thomas NHS Foundation Trust,21/05/2021,(55050) Admin & Clerical,(id:803489) R&D : NIHR,KINGS COLLEGE LONDON:03529700,id:13934854   ,2352.50
Department of Health,Guys and St Thomas NHS Foundation Trust,21/05/2021,(55070) Admin & Clerical,(id:2908438) R&D : NIHR,KINGS COLLEGE LONDON:03529700,id:13934854  ,4187.71
Department of Health,Guys and St Thomas NHS Foundation Trust,21/05/2021,(81275) Medical Surgical Supplies & Equipment,(id:4713420) R&D : NIHR,KINGS COLLEGE LONDON:03529700,id:13934854 ,5811.15
Department of Health,Guys and St Thomas NHS Foundation Trust,21/05/2021,(81200) Medical Surgical Supplies & Equipment,(id:4716419) R&D : NIHR,NHS SUPPLY CHAIN (MAIDSTONE),id:14041934  ,  11.45
Department of Health,Guys and St Thomas NHS Foundation Trust,21/05/2021,(81700) Lab Equipment Purchase,(id:4716419) R&D : NIHR,THERMO FISHER SCIENTIFIC,id:14103336 ,1460.59
Department of Health,Guys and St Thomas NHS Foundation Trust,21/05/2021,(81100) Dressings,(id:4716419) R&D : NIHR,NHS SUPPLY CHAIN (MAIDSTONE),id:14006357,  20.90
Department of Health,Guys and St Thomas NHS Foundation Trust,07/05/2021,(83500) Furniture & Fittings,(id:4716419) R&D : NIHR,OCURA HEALTHCARE FURNITURE,id:14036374 , 840.00
Department of Health,Guys and St Thomas NHS Foundation Trust,07/05/2021,(55052) Admin & Clerical,(id:810419) R&D : NIHR,MICHAEL PAGE INTERNATIONAL RECRUITMENT LTD,id:14039738, 975.65
Department of Health,Guys and St Thomas NHS Foundation Trust,21/05/2021,(81275) Medical Surgical Supplies & Equipment,(id:4713423) R&D : NIHR,KINGS COLLEGE LONDON:03529700,id:13934854 ,4694.55
Department of Health,Guys and St Thomas NHS Foundation Trust,14/05/2021,(89440) Research and Development,(id:4063419) R&D : NIHR,MEDSCINET UK LTD,id:14079578  ,1200.00
Department of Health,Guys and St Thomas NHS Foundation Trust,27/05/2021,(83400) Office Equipment,(id:4927426) Vaccination Programme,CABINET OFFICE,id:14087715 ,    38529.05
Department of Health,Guys and St Thomas NHS Foundation Trust,07/05/2021,(81200) Medical Surgical Supplies & Equipment,(id:4927426) Vaccination Programme,SCC PLC)SPECIALIST COMPUTER CENTRES,id:13975637    , 150.00
Department of Health,Guys and St Thomas NHS Foundation Trust,21/05/2021,(83610) IT Costs,(id:4927426) Vaccination Programme,NSSE LTD,id:14047024,3036.00
Department of Health,Guys and St Thomas NHS Foundation Trust,21/05/2021,(83130) Energy Costs,(id:4927427) Vaccination Programme,KEY STRUCTURES LTD,id:14105477 ,8961.23
Department of Health,Guys and St Thomas NHS Foundation Trust,21/05/2021,(83400) Office Equipment,(id:4927427) Vaccination Programme,KEY STRUCTURES LTD,id:14105456  ,3300.00
Department of Health,Guys and St Thomas NHS Foundation Trust,14/05/2021,(83400) Office Equipment,(id:4927429) Vaccination Programme,ANDREWS SYKES HIRE LTD,id:14036372   ,2003.35
Department of Health,Guys and St Thomas NHS Foundation Trust,07/05/2021,(83880) Building & Engineering,(id:4927429) Vaccination Programme,MEDICARE SERVICES (CIS5),id:14029907,    15440.00
Department of Health,Guys and St Thomas NHS Foundation Trust,21/05/2021,(83500) Furniture & Fittings,(id:4961419) Vaccination Programme,1ST BIOTECH LIMITED,id:14110581  ,  82.80
Department of Health,Guys and St Thomas NHS Foundation Trust,27/05/2021,(81200) Medical Surgical Supplies & Equipment,(id:4752419) Coronavirus [FCOVID],EFINITY LABS LIMITED,id:14097655,4860.00
Department of Health,Guys and St Thomas NHS Foundation Trust,27/05/2021,(83400) Office Equipment,(id:42416) Coronavirus [FCOVID],EFINITY LABS LIMITED,id:14097638   ,4725.54
Department of Health,Guys and St Thomas NHS Foundation Trust,21/05/2021,(83400) Office Equipment,(id:41968) Inpatient Services,LAZERBEAM FIRE AND SECURITY LTD,id:14098997    ,6555.00
Department of Health,Guys and St Thomas NHS Foundation Trust,21/05/2021,(83500) Furniture & Fittings,(id:41968) Inpatient Services,OFFICE FURNITURE ONLINE,id:14113034   ,3240.00
Department of Health,Guys and St Thomas NHS Foundation Trust,21/05/2021,(55052) Admin & Clerical,(id:42714) Health Informatics  COO,VENN GROUP LTD,id:14114718 ,5477.22
Department of Health,Guys and St Thomas NHS Foundation Trust,21/05/2021,(55082) Admin & Clerical,(id:42715) Health Informatics  COO,VENN GROUP LTD,id:14114563 ,8431.13
